Workbook

Sheet Data
A1: Gyártás kezdete | B1: Muszakszorzó | C1: E/N | D1: Mérések időpontja | E1: Mérőlap digitális aláírása | F1: SPC lap | G1: Műszakvezetők | H1: Sorvezetők | I1: Megjegyzés(sorállás)
A2: 2019.06.02. 06:00:00 | C2: Nappal | D2: 2019-06-02T06:28:31.163 | E2: Van | F2: 2019-06-02T06:28:00.625 | G2: K Laszlo (McP/MSE4-MFO) | H2: B Ferenc (McP/MSE4-MFO) | I2: 01:27:33
D3: 2019-06-02T10:24:44.926 | E3: Van | F3: 2019-06-02T10:24:15.479
D4: 2019-06-02T14:24:23.604 | E4: Van | F4: 2019-06-02T14:23:48.991
D5: 2019-06-02T16:21:23.537 | E5: Van | F5: 2019-06-02T16:20:50.507
A8: 2019.06.02. 18:00:00 | C8: Ejszaka | D8: 2019-06-02T19:46:43.085 | E8: Van | F8: Nincs | G8: Z Lajos (McP/MSE4-MFO) | H8: O Andras (McP/MSE4-MFO) | I8: 08:05:48
A14: 2019.06.03. 06:00:00 | C14: Nappal | D14: 2019-06-03T09:42:36.220 | E14: Van | F14: 2019-06-03T09:41:35.009 | G14: K Laszlo (McP/MSE4-MFO) | H14: B Ferenc (McP/MSE4-MFO) | I14: 02:05:15
D15: 2019-06-03T12:17:55.686 | E15: Van | F15: 2019-06-03T12:17:18.166
D16: 2019-06-03T16:19:58.224 | E16: Van | F16: 2019-06-03T16:19:26.576
A20: 2019.06.03. 18:00:00 | C20: Ejszaka | D20: 2019-06-03T18:14:15.124 | E20: Van | F20: Nincs | G20: Z Lajos (McP/MSE4-MFO) | H20: O Andras (McP/MSE4-MFO) | I20: 01:54:56
D21: 2019-06-03T20:40:41.538 | E21: Van | F21: Nincs
D22: 2019-06-03T23:28:57.606 | E22: Van | F22: Nincs
D23: 2019-06-04T01:50:13.509 | E23: Van | F23: Nincs
D24: 2019-06-04T04:19:32.035 | E24: Van | F24: Nincs
A26: 2019.06.04. 18:00:00 | C26: Ejszaka | D26: 2019-06-04T18:41:28.966 | E26: Van | F26: 2019-06-04T18:41:01.398 | G26: M Dora (McP/MSE4-MFO) | H26: B Ferenc (McP/MSE4-MFO)
D27: 2019-06-04T20:02:52.651 | E27: Van | F27: 2019-06-04T20:02:09.270
D28: 2019-06-04T22:08:18.604 | E28: Van | F28: 2019-06-04T22:07:36.348
D29: 2019-06-05T02:11:38.091 | E29: Van | F29: 2019-06-05T02:11:07.219
D30: 2019-06-05T03:57:54.887 | E30: Van | F30: 2019-06-05T03:57:19.694
A32: 2019.06.06. 18:00:00 | C32: Ejszaka | D32: 2019-06-06T18:32:17.845 | E32: Van | F32: 2019-06-06T18:31:48.243 | G32: K Laszlo (McP/MSE4-MFO) | H32: B Ferenc (McP/MSE4-MFO)
D33: 2019-06-06T21:54:31.941 | E33: Van | F33: 2019-06-06T21:53:58.245
D34: 2019-06-07T00:48:10.571 | E34: Van | F34: 2019-06-07T00:47:03.837
D35: 2019-06-07T02:29:23.873 | E35: Van | F35: 2019-06-07T02:28:49.746
A38: 2019.06.07. 18:00:00 | C38: Ejszaka | D38: 2019-06-07T18:46:53.320 | E38: Van | F38: 2019-06-07T18:46:20.472 | G38: K Laszlo (McP/MSE4-MFO) | H38: B Ferenc (McP/MSE4-MFO)
D39: 2019-06-07T20:04:46.117 | E39: Van | F39: 2019-06-07T20:04:10.918
D40: 2019-06-07T21:57:06.225 | E40: Van | F40: 2019-06-07T21:56:30.673
D41: 2019-06-08T02:21:00.409 | E41: Van | F41: 2019-06-08T02:20:27.577
D42: 2019-06-08T04:36:01.227 | E42: Van | F42: 2019-06-08T04:35:26.421
A44: 2019.06.11. 06:00:00 | C44: Nappal | D44: 2019-06-11T06:41:19.739 | E44: Van | F44: 2019-06-11T06:40:27.286 | G44: K Laszlo (McP/MSE4-MFO) | H44: B Ferenc (McP/MSE4-MFO)
D45: 2019-06-11T07:55:23.626 | E45: Van | F45: 2019-06-11T07:54:50.640
D46: 2019-06-11T10:34:00.885 | E46: Van | F46: 2019-06-11T10:33:26.992
D47: 2019-06-11T14:39:35.931 | E47: Van | F47: 2019-06-11T14:38:39.734
D48: 2019-06-11T16:17:54.361 | E48: Van | F48: 2019-06-11T16:17:07.317
A50: 2019.06.14. 18:00:00 | C50: Ejszaka | D50: 2019-06-14T18:19:39.398 | E50: Van | F50: 2019-06-14T18:19:06.665 | G50: K Laszlo (McP/MSE4-MFO) | H50: B Ferenc (McP/MSE4-MFO) | I50: 00:33:44
D51: 2019-06-14T20:21:03.683 | E51: Van | F51: 2019-06-14T20:20:21.951
D52: 2019-06-14T22:33:39.639 | E52: Van | F52: 2019-06-14T22:33:09.564
D53: 2019-06-15T00:50:29.643 | E53: Van | F53: 2019-06-15T00:49:31.412
D54: 2019-06-15T05:27:03.846 | E54: Van | F54: 2019-06-15T05:26:31.770
A56: 2019.06.15. 18:00:00 | C56: Ejszaka | D56: 2019-06-15T18:31:30.422 | E56: Van | F56: 2019-06-15T18:30:46.480 | G56: K Laszlo (McP/MSE4-MFO) | H56: B Ferenc (McP/MSE4-MFO)
D57: 2019-06-15T20:37:26.242 | E57: Van | F57: 2019-06-15T20:35:56.390
D58: 2019-06-16T01:49:07.075 | E58: Van | F58: 2019-06-16T01:48:36.405
D59: 2019-06-16T04:34:12.628 | E59: Van | F59: 2019-06-16T04:33:36.354
A62: 2019.06.16. 18:00:00 | C62: Ejszaka | D62: 2019-06-16T19:05:45.037 | E62: Van | F62: 2019-06-16T19:05:15.474 | G62: T Lajos (McP/MSE4-MFO) | H62: B Ferenc (McP/MSE4-MFO) | I62: 00:15:03
D63: 2019-06-16T20:30:34.064 | E63: Van | F63: 2019-06-16T20:30:03.139
D64: 2019-06-17T01:41:53.654 | E64: Van | F64: 2019-06-17T01:40:37.875
A68: 2019.06.18. 06:00:00 | C68: Nappal | D68: 2019-06-18T06:55:24.975 | E68: Van | F68: 2019-06-18T06:54:52.520 | G68: K Laszlo (McP/MSE4-MFO) | H68: B Ferenc (McP/MSE4-MFO) | I68: 00:15:27
D69: 2019-06-18T12:36:26.664 | E69: Van | F69: 2019-06-18T12:35:58.224
D70: 2019-06-18T14:12:09.991 | E70: Van | F70: 2019-06-18T14:11:15.856
D71: 2019-06-18T16:23:13.508 | E71: Van | F71: 2019-06-18T16:22:40.782
A74: 2019.06.19. 06:00:00 | C74: Nappal | G74: K Laszlo (McP/MSE4-MFO) | H74: B Ferenc (McP/MSE4-MFO)
D76: 2019-06-19T06:18:33.719 | E76: Van | F76: 2019-06-19T06:17:58.753
D77: 2019-06-19T09:57:19.372 | E77: Van | F77: 2019-06-19T09:56:49.542
D78: 2019-06-19T12:23:09.992 | E78: Van | F78: 2019-06-19T12:22:37.001
D79: 2019-06-19T13:57:46.975 | E79: Van | F79: 2019-06-19T13:57:06.744
A80: 2019.06.22. 18:00:00 | C80: Ejszaka | D80: 2019-06-22T18:20:08.788 | E80: Van | F80: 2019-06-22T18:19:26.211 | G80: K Laszlo (McP/MSE4-MFO) | H80: B Ferenc (McP/MSE4-MFO)
D81: 2019-06-22T20:11:16.456 | E81: Van | F81: 2019-06-22T20:08:50.139
D82: 2019-06-23T00:32:17.408 | E82: Van | F82: 2019-06-23T00:31:43.240
D83: 2019-06-23T02:36:36.025 | E83: Van | F83: 2019-06-23T02:36:02.733
D84: 2019-06-23T03:51:25.072 | E84: Nincs | F84: 2019-06-23T03:56:22.075
D85: 2019-06-23T03:57:26.590 | E85: Van | F85: 2019-06-23T03:58:02.936
A86: 2019.06.23. 06:00:00 | C86: Nappal | D86: 2019-06-23T06:18:37.477 | E86: Van | F86: Nincs | G86: Z Lajos (McP/MSE4-MFO) | H86: O Andras (McP/MSE4-MFO)
D87: 2019-06-23T08:19:24.508 | E87: Van | F87: Nincs
D88: 2019-06-23T09:58:40.946 | E88: Van | F88: Nincs
D89: 2019-06-23T11:53:30.914 | E89: Van | F89: Nincs
D90: 2019-06-23T13:58:46.414 | E90: Van | F90: Nincs
D91: 2019-06-23T16:02:54.833 | E91: Van | F91: Nincs
A92: 2019.06.23. 18:00:00 | C92: Ejszaka | D92: 2019-06-23T18:23:51.622 | E92: Van | F92: 2019-06-23T18:23:21.618 | G92: K Laszlo (McP/MSE4-MFO) | H92: B Ferenc (McP/MSE4-MFO)
D93: 2019-06-24T01:11:27.073 | E93: Van | F93: 2019-06-24T01:09:28.999
D94: 2019-06-24T02:47:31.350 | E94: Van | F94: 2019-06-24T02:46:54.738
D95: 2019-06-24T04:33:54.555 | E95: Van | F95: 2019-06-24T04:33:20.574
A98: 2019.06.26. 06:00:00 | C98: Nappal | D98: 2019-06-26T07:09:01.658 | E98: Van | F98: 2019-06-26T07:12:33 | G98: K Laszlo (McP/MSE4-MFO) | H98: Sz Laszlo (McP/MSE4-MFO)
D99: 2019-06-26T08:21:08.888 | E99: Van | F99: 2019-06-26T08:22:16.781
D100: 2019-06-26T10:18:48.605 | E100: Van | F100: 2019-06-26T10:19:47.888
D101: 2019-06-26T12:06:37.071 | E101: Van | F101: 2019-06-26T12:07:49.105
D102: 2019-06-26T14:43:30.358 | E102: Van | F102: 2019-06-26T14:44:33.405
D103: 2019-06-26T16:20:55.077 | E103: Van | F103: 2019-06-26T16:24:57.215
A104: 2019.06.27. 06:00:00 | C104: Nappal | D104: 2019-06-27T06:20:49.167 | E104: Van | F104: 2019-06-27T06:20:12.466 | G104: K Laszlo (McP/MSE4-MFO) | H104: B Ferenc (McP/MSE4-MFO)
D105: 2019-06-27T09:35:48.886 | E105: Van | F105: 2019-06-27T09:35:17.440
D106: 2019-06-27T11:48:13.661 | E106: Van | F106: 2019-06-27T11:47:40.792
D107: 2019-06-27T16:01:24.902 | E107: Van | F107: 2019-06-27T16:00:38.870
A110: 2019.06.27. 18:00:00 | C110: Ejszaka | D110: 2019-06-27T18:16:21.996 | E110: Van | F110: Nincs | G110: Z Lajos (McP/MSE4-MFO) | H110: O Andras (McP/MSE4-MFO) | I110: 00:18:01
D111: 2019-06-27T19:59:49.566 | E111: Van | F111: Nincs
D112: 2019-06-27T22:22:07.577 | E112: Van | F112: Nincs
D113: 2019-06-28T00:28:23.566 | E113: Van | F113: Nincs
D114: 2019-06-28T02:32:21.800 | E114: Van | F114: Nincs
D115: 2019-06-28T05:20:11.343 | E115: Van | F115: Nincs
A116: 2019.06.28. 06:00:00 | C116: Nappal | D116: 2019-06-28T06:32:37.449 | E116: Van | F116: 2019-06-28T06:32:02.816 | G116: T Lajos (McP/MSE4-MFO) | H116: B Ferenc (McP/MSE4-MFO) | I116: 00:20:30
D117: 2019-06-28T08:14:41.793 | E117: Van | F117: 2019-06-28T08:13:50.077
D118: 2019-06-28T10:04:03.504 | E118: Van | F118: 2019-06-28T10:03:26.332
D119: 2019-06-28T12:44:51.319 | E119: Van | F119: 2019-06-28T12:44:08.527
D120: 2019-06-28T14:04:49.898 | E120: Van | F120: 2019-06-28T14:04:17.276
D121: 2019-06-28T16:23:47.031 | E121: Van | F121: 2019-06-28T16:23:13.708
A122: 2019.06.30. 18:00:00 | C122: Ejszaka | D122: 2019-06-30T20:11:46.587 | E122: Van | F122: 2019-06-30T20:11:15.669 | G122: K Laszlo (McP/MSE4-MFO) | H122: B Ferenc (McP/MSE4-MFO)
D123: 2019-06-30T21:50:06.328 | E123: Van | F123: 2019-06-30T21:49:31.411
D124: 2019-07-01T00:41:26.391 | E124: Van | F124: 2019-07-01T00:40:56.914
D125: 2019-07-01T02:32:25.682 | E125: Van | F125: 2019-07-01T02:31:49.234
D126: 2019-07-01T04:31:14.510 | E126: Van | F126: 2019-07-01T04:30:40.605
A128: 2019.07.01. 18:00:00 | C128: Ejszaka | D128: 2019-07-01T18:55:33.104 | E128: Van | F128: 2019-07-01T18:55:01.511 | G128: K Laszlo (McP/MSE4-MFO) | H128: B Ferenc (McP/MSE4-MFO) | I128: 00:10:57
D129: 2019-07-01T20:22:54.874 | E129: Van | F129: 2019-07-01T20:22:24.078
D130: 2019-07-01T22:41:41.081 | E130: Van | F130: 2019-07-01T22:41:02.561
D131: 2019-07-02T05:13:02.821 | E131: Van | F131: 2019-07-02T05:12:30.101
A134: 2019.07.04. 06:00:00 | C134: Nappal | D134: 2019-07-04T06:19:35.686 | E134: Van | F134: 2019-07-04T06:19:01.772 | G134: K Laszlo (McP/MSE4-MFO) | H134: B Ferenc (McP/MSE4-MFO)
D135: 2019-07-04T08:34:05.850 | E135: Van | F135: 2019-07-04T08:33:23.267
D136: 2019-07-04T10:27:00.763 | E136: Van | F136: 2019-07-04T10:26:31.907
D137: 2019-07-04T14:25:09.745 | E137: Van | F137: 2019-07-04T14:24:38.420
D138: 2019-07-04T16:30:47.648 | E138: Van | F138: 2019-07-04T16:30:15.226
A140: 2019.07.05. 06:00:00 | C140: Nappal | D140: 2019-07-05T06:17:46.493 | E140: Van | F140: 2019-07-05T06:17:13.069 | G140: K Laszlo (McP/MSE4-MFO) | H140: B Ferenc (McP/MSE4-MFO) | I140: 00:16:12
D141: 2019-07-05T08:49:10.341 | E141: Van | F141: 2019-07-05T08:48:39.151
D142: 2019-07-05T10:24:36.127 | E142: Van | F142: 2019-07-05T10:23:57.508
D143: 2019-07-05T12:16:41.483 | E143: Van | F143: 2019-07-05T12:16:04.364
D144: 2019-07-05T16:46:02.197 | E144: Van | F144: 2019-07-05T16:45:13.585
A146: 2019.07.08. 18:00:00 | C146: Ejszaka | D146: 2019-07-08T18:23:11.974 | E146: Van | F146: 2019-07-08T18:22:26.330 | G146: K Laszlo (McP/MSE4-MFO) | H146: B Ferenc (McP/MSE4-MFO) | I146: 00:20:34
D147: 2019-07-08T20:52:47.221 | E147: Van | F147: 2019-07-08T20:52:15.184
D148: 2019-07-08T22:43:57.102 | E148: Van | F148: 2019-07-08T22:43:23.469
D149: 2019-07-09T02:30:46.798 | E149: Van | F149: 2019-07-09T02:30:13.167
D150: 2019-07-09T04:23:17.340 | E150: Van | F150: 2019-07-09T04:22:40.511
A152: 2019.07.12. 06:00:00 | C152: Nappal | D152: 2019-07-12T07:23:41 | E152: Nincs | F152: 2019-07-12T07:28:45.954 | G152: K Laszlo (McP/MSE4-MFO) | H152: Sz Laszlo (McP/MSE4-MFO)
D153: 2019-07-12T12:36:09 | E153: Nincs | F153: 2019-07-12T12:37:25.046
D154: 2019-07-12T15:25:45 | E154: Nincs | F154: 2019-07-12T15:26:51.030
A158: 2019.07.13. 06:00:00 | C158: Nappal | D158: 2019-07-13T06:19:33.006 | E158: Van | F158: 2019-07-13T06:18:53.896 | G158: K Laszlo (McP/MSE4-MFO) | H158: B Ferenc (McP/MSE4-MFO) | I158: 00:09:25
D159: 2019-07-13T08:14:06.367 | E159: Van | F159: 2019-07-13T08:13:33.055
D160: 2019-07-13T13:15:10.040 | E160: Van | F160: 2019-07-13T13:14:22.603
D161: 2019-07-13T16:04:33.376 | E161: Van | F161: 2019-07-13T16:03:59.654

Sheet Muszakok
A1: Kezdete | B1: Vége | C1: Műszakvezető | D1: Sorvezető | E1: Nem terv. állás | F1: Időpont év | G1: hónap | H1: nap | I1: óra | J1: perc | K1: Egyben | L1: E/N | M1: Muszakszorzok
A2: 2019.06.02. 06:00:00 | B2: 2019.06.02. 18:00:00 | C2: K Laszlo (McP/MSE4-MFO) | D2: B Ferenc (McP/MSE4-MFO) | E2: 01:27:33 | F2: 19 | G2: 6 | H2: 2 | I2: 6 | J2: 0 | K2: 190602 | L2: =IF(I2<6,"Ejszaka",IF(I2<18,"Nappal","Ejszaka")) -> Nappal | M2: =IF(L2="Nappal",K2*10,K2*100) -> 1906020
A3: 2019.06.02. 18:00:00 | B3: 2019.06.03. 06:00:00 | C3: Z Lajos (McP/MSE4-MFO) | D3: O Andras (McP/MSE4-MFO) | E3: 08:05:48 | F3: 19 | G3: 6 | H3: 2 | I3: 18 | J3: 0 | K3: 190602 | L3: =IF(I3<6,"Ejszaka",IF(I3<18,"Nappal","Ejszaka")) -> Ejszaka | M3: =IF(L3="Nappal",K3*10,K3*100) -> 19060200
A4: 2019.06.03. 06:00:00 | B4: 2019.06.03. 18:00:00 | C4: K Laszlo (McP/MSE4-MFO) | D4: B Ferenc (McP/MSE4-MFO) | E4: 02:05:15 | F4: 19 | G4: 6 | H4: 3 | I4: 6 | J4: 0 | K4: 190603 | L4: Nappal | M4: =IF(L4="Nappal",K4*10,K4*100) -> 1906030
A5: 2019.06.03. 18:00:00 | B5: 2019.06.04. 06:00:00 | C5: Z Lajos (McP/MSE4-MFO) | D5: O Andras (McP/MSE4-MFO) | E5: 01:54:56 | F5: 19 | G5: 6 | H5: 3 | I5: 18 | J5: 0 | K5: 190603 | L5: Ejszaka | M5: =IF(L5="Nappal",K5*10,K5*100) -> 19060300
A6: 2019.06.04. 18:00:00 | B6: 2019.06.05. 06:00:00 | C6: M Dora (McP/MSE4-MFO) | D6: B Ferenc (McP/MSE4-MFO) | F6: 19 | G6: 6 | H6: 4 | I6: 18 | J6: 0 | K6: 190604 | L6: Ejszaka | M6: 19060400
A7: 2019.06.06. 18:00:00 | B7: 2019.06.07. 06:00:00 | C7: K Laszlo (McP/MSE4-MFO) | D7: B Ferenc (McP/MSE4-MFO) | F7: 19 | G7: 6 | H7: 6 | I7: 18 | J7: 0 | K7: 190606 | L7: Ejszaka | M7: 19060600
A8: 2019.06.07. 18:00:00 | B8: 2019.06.08. 06:00:00 | C8: K Laszlo (McP/MSE4-MFO) | D8: B Ferenc (McP/MSE4-MFO) | F8: 19 | G8: 6 | H8: 7 | I8: 18 | J8: 0 | K8: 190607 | L8: Ejszaka | M8: 19060700
A9: 2019.06.11. 06:00:00 | B9: 2019.06.11. 18:00:00 | C9: K Laszlo (McP/MSE4-MFO) | D9: B Ferenc (McP/MSE4-MFO) | F9: 19 | G9: 6 | H9: 11 | I9: 6 | J9: 0 | K9: 190611 | L9: Nappal | M9: 1906110
A10: 2019.06.14. 18:00:00 | B10: 2019.06.15. 06:00:00 | C10: K Laszlo (McP/MSE4-MFO) | D10: B Ferenc (McP/MSE4-MFO) | E10: 00:33:44 | F10: 19 | G10: 6 | H10: 14 | I10: 18 | J10: 0 | K10: 190614 | L10: Ejszaka | M10: 19061400
A11: 2019.06.15. 18:00:00 | B11: 2019.06.16. 06:00:00 | C11: K Laszlo (McP/MSE4-MFO) | D11: B Ferenc (McP/MSE4-MFO) | F11: 19 | G11: 6 | H11: 15 | I11: 18 | J11: 0 | K11: 190615 | L11: Ejszaka | M11: 19061500
A12: 2019.06.16. 18:00:00 | B12: 2019.06.17. 06:00:00 | C12: T Lajos (McP/MSE4-MFO) | D12: B Ferenc (McP/MSE4-MFO) | E12: 00:15:03 | F12: 19 | G12: 6 | H12: 16 | I12: 18 | J12: 0 | K12: 190616 | L12: Ejszaka | M12: 19061600
A13: 2019.06.18. 06:00:00 | B13: 2019.06.18. 18:00:00 | C13: K Laszlo (McP/MSE4-MFO) | D13: B Ferenc (McP/MSE4-MFO) | E13: 00:15:27 | F13: 19 | G13: 6 | H13: 18 | I13: 6 | J13: 0 | K13: 190618 | L13: Nappal | M13: 1906180
A14: 2019.06.19. 06:00:00 | B14: 2019.06.19. 18:00:00 | C14: K Laszlo (McP/MSE4-MFO) | D14: B Ferenc (McP/MSE4-MFO) | F14: 19 | G14: 6 | H14: 19 | I14: 6 | J14: 0 | K14: 190619 | L14: Nappal | M14: 1906190
A15: 2019.06.22. 18:00:00 | B15: 2019.06.23. 06:00:00 | C15: K Laszlo (McP/MSE4-MFO) | D15: B Ferenc (McP/MSE4-MFO) | F15: 19 | G15: 6 | H15: 22 | I15: 18 | J15: 0 | K15: 190622 | L15: Ejszaka | M15: 19062200
A16: 2019.06.23. 06:00:00 | B16: 2019.06.23. 18:00:00 | C16: Z Lajos (McP/MSE4-MFO) | D16: O Andras (McP/MSE4-MFO) | F16: 19 | G16: 6 | H16: 23 | I16: 6 | J16: 0 | K16: 190623 | L16: Nappal | M16: =IF(L16="Nappal",K16*10,K16*100) -> 1906230
A17: 2019.06.23. 18:00:00 | B17: 2019.06.24. 06:00:00 | C17: K Laszlo (McP/MSE4-MFO) | D17: B Ferenc (McP/MSE4-MFO) | F17: 19 | G17: 6 | H17: 23 | I17: 18 | J17: 0 | K17: 190623 | L17: Ejszaka | M17: 19062300
A18: 2019.06.26. 06:00:00 | B18: 2019.06.26. 18:00:00 | C18: K Laszlo (McP/MSE4-MFO) | D18: Sz Laszlo (McP/MSE4-MFO) | F18: 19 | G18: 6 | H18: 26 | I18: 6 | J18: 0 | K18: 190626 | L18: Nappal | M18: 1906260
A19: 2019.06.27. 06:00:00 | B19: 2019.06.27. 18:00:00 | C19: K Laszlo (McP/MSE4-MFO) | D19: B Ferenc (McP/MSE4-MFO) | F19: 19 | G19: 6 | H19: 27 | I19: 6 | J19: 0 | K19: 190627 | L19: Nappal | M19: 1906270
A20: 2019.06.27. 18:00:00 | B20: 2019.06.28. 06:00:00 | C20: Z Lajos (McP/MSE4-MFO) | D20: O Andras (McP/MSE4-MFO) | E20: 00:18:01 | F20: 19 | G20: 6 | H20: 27 | I20: 18 | J20: 0 | K20: 190627 | L20: Ejszaka | M20: 19062700
A21: 2019.06.28. 06:00:00 | B21: 2019.06.28. 18:00:00 | C21: T Lajos (McP/MSE4-MFO) | D21: B Ferenc (McP/MSE4-MFO) | E21: 00:20:30 | F21: 19 | G21: 6 | H21: 28 | I21: 6 | J21: 0 | K21: 190628 | L21: Nappal | M21: 1906280
A22: 2019.06.30. 18:00:00 | B22: 2019.07.01. 06:00:00 | C22: K Laszlo (McP/MSE4-MFO) | D22: B Ferenc (McP/MSE4-MFO) | F22: 19 | G22: 6 | H22: 30 | I22: 18 | J22: 0 | K22: 190630 | L22: Ejszaka | M22: 19063000
A23: 2019.07.01. 18:00:00 | B23: 2019.07.02. 06:00:00 | C23: K Laszlo (McP/MSE4-MFO) | D23: B Ferenc (McP/MSE4-MFO) | E23: 00:10:57 | F23: 19 | G23: 7 | H23: 1 | I23: 18 | J23: 0 | K23: 190701 | L23: Ejszaka | M23: 19070100
A24: 2019.07.04. 06:00:00 | B24: 2019.07.04. 18:00:00 | C24: K Laszlo (McP/MSE4-MFO) | D24: B Ferenc (McP/MSE4-MFO) | F24: 19 | G24: 7 | H24: 4 | I24: 6 | J24: 0 | K24: 190704 | L24: Nappal | M24: 1907040
A25: 2019.07.05. 06:00:00 | B25: 2019.07.05. 18:00:00 | C25: K Laszlo (McP/MSE4-MFO) | D25: B Ferenc (McP/MSE4-MFO) | E25: 00:16:12 | F25: 19 | G25: 7 | H25: 5 | I25: 6 | J25: 0 | K25: 190705 | L25: Nappal | M25: 1907050
A26: 2019.07.08. 18:00:00 | B26: 2019.07.09. 06:00:00 | C26: K Laszlo (McP/MSE4-MFO) | D26: B Ferenc (McP/MSE4-MFO) | E26: 00:20:34 | F26: 19 | G26: 7 | H26: 8 | I26: 18 | J26: 0 | K26: 190708 | L26: Ejszaka | M26: 19070800
A27: 2019.07.12. 06:00:00 | B27: 2019.07.12. 18:00:00 | C27: K Laszlo (McP/MSE4-MFO) | D27: Sz Laszlo (McP/MSE4-MFO) | F27: 19 | G27: 7 | H27: 12 | I27: 6 | J27: 0 | K27: 190712 | L27: Nappal | M27: 1907120
A28: 2019.07.13. 06:00:00 | B28: 2019.07.13. 18:00:00 | C28: K Laszlo (McP/MSE4-MFO) | D28: B Ferenc (McP/MSE4-MFO) | E28: 00:09:25 | F28: 19 | G28: 7 | H28: 13 | I28: 6 | J28: 0 | K28: 190713 | L28: Nappal | M28: 1907130

Sheet Merolapok
A1: Name | B1: Extension | C1: Date accessed | D1: Date modified | E1: Date created | F1: Folder Path | G1: Datum | H1: Év | I1: Hónap | J1: Nap | K1: Óra | L1: Perc | M1: Műszak | N1: Év | O1: Hónap | P1: Nap | Q1: Óra | R1: Perc | S1: Műszak | T1: Datum | U1: Datum+muszak
A2: Mérőlap_MSE4_A1_1901041121.pdf | B2: .pdf | C2: 2019-07-31T13:55:31.671 | D2: 2019-01-04T11:21:01.193 | E2: 2019-07-18T07:25:49.897 | F2: U:\Merolapok motorsor\Anker 1\Merolapok\ | G2: =MID(A2,17,10) -> 1901041121 | H2: 2019 | I2: =MID(G2,4,1) -> 1 | J2: =MID(G2,5,2) -> 04 | K2: =MID(G2,7,2) -> 11 | L2: =MID(G2,9,2) -> 21 | N2: 2019 | O2: 1 | P2: 4 | Q2: 11 | R2: 21 | S2: =IF(Q2<6,"Ejszaka",IF(Q2<18,"Nappal","Ejszaka")) -> Nappal | T2: =MID(G2,1,6) -> 190104 | U2: =IF(S2="Nappal",T2*10,IF(Q2<6,T2*100-100,T2*100)) -> 1901040
A3: Mérőlap_MSE4_A1_1901132025.pdf | B3: .pdf | C3: 2019-07-31T13:55:33.002 | D3: 2019-01-13T20:27:10.093 | E3: 2019-07-18T07:25:50.879 | F3: U:\Merolapok motorsor\Anker 1\Merolapok\ | G3: =MID(A3,17,10) -> 1901132025 | H3: 2019 | I3: 1 | J3: 13 | K3: =MID(G3,7,2) -> 20 | L3: 25 | N3: 2019 | O3: 1 | P3: 13 | Q3: 20 | R3: 25 | S3: =IF(Q3<6,"Ejszaka",IF(Q3<18,"Nappal","Ejszaka")) -> Ejszaka | T3: 190113 | U3: =IF(S3="Nappal",T3*10,IF(Q3<6,T3*100-100,T3*100)) -> 19011300
A4: Mérőlap_MSE4_A1_1901132214.pdf | B4: .pdf | C4: 2019-07-31T13:55:34.389 | D4: 2019-01-13T22:15:50.226 | E4: 2019-07-18T07:25:51.637 | F4: U:\Merolapok motorsor\Anker 1\Merolapok\ | G4: 1901132214 | H4: 2019 | I4: 1 | J4: 13 | K4: 22 | L4: 14 | N4: 2019 | O4: 1 | P4: 13 | Q4: 22 | R4: 14 | S4: Ejszaka | T4: 190113 | U4: 19011300
A5: Mérőlap_MSE4_A1_1901140033.pdf | B5: .pdf | C5: 2019-07-31T13:55:35.685 | D5: 2019-01-14T00:34:28.170 | E5: 2019-07-18T07:25:52.433 | F5: U:\Merolapok motorsor\Anker 1\Merolapok\ | G5: 1901140033 | H5: 2019 | I5: 1 | J5: 14 | K5: 00 | L5: 33 | N5: 2019 | O5: 1 | P5: 14 | Q5: 0 | R5: 33 | S5: =IF(Q5<6,"Ejszaka",IF(Q5<18,"Nappal","Ejszaka")) -> Ejszaka | T5: 190114 | U5: 19011300
A6: Mérőlap_MSE4_A1_1901140232.pdf | B6: .pdf | C6: 2019-07-31T13:55:36.796 | D6: 2019-01-14T02:33:51.664 | E6: 2019-07-18T07:25:53.329 | F6: U:\Merolapok motorsor\Anker 1\Merolapok\ | G6: 1901140232 | H6: 2019 | I6: 1 | J6: 14 | K6: 02 | L6: 32 | N6: 2019 | O6: 1 | P6: 14 | Q6: 2 | R6: 32 | S6: =IF(Q6<6,"Ejszaka",IF(Q6<18,"Nappal","Ejszaka")) -> Ejszaka | T6: 190114 | U6: 19011300
A7: Mérőlap_MSE4_A1_1901291829.pdf | B7: .pdf | C7: 2019-07-31T13:55:37.735 | D7: 2019-01-29T18:31:02.368 | E7: 2019-07-18T07:25:54.178 | F7: U:\Merolapok motorsor\Anker 1\Merolapok\ | G7: 1901291829 | H7: 2019 | I7: 1 | J7: 29 | K7: 18 | L7: 29 | N7: 2019 | O7: 1 | P7: 29 | Q7: 18 | R7: 29 | S7: Ejszaka | T7: 190129 | U7: 19012900
A8: Mérőlap_MSE4_A1_1901292118.pdf | B8: .pdf | C8: 2019-07-31T13:55:38.791 | D8: 2019-01-29T21:19:11.545 | E8: 2019-07-18T07:25:55.058 | F8: U:\Merolapok motorsor\Anker 1\Merolapok\ | G8: 1901292118 | H8: 2019 | I8: 1 | J8: 29 | K8: 21 | L8: 18 | N8: 2019 | O8: 1 | P8: 29 | Q8: 21 | R8: 18 | S8: Ejszaka | T8: 190129 | U8: 19012900
A9: Mérőlap_MSE4_A1_1901300226.pdf | B9: .pdf | C9: 2019-07-31T13:55:39.835 | D9: 2019-01-30T02:27:33.041 | E9: 2019-07-18T07:25:56.185 | F9: U:\Merolapok motorsor\Anker 1\Merolapok\ | G9: 1901300226 | H9: 2019 | I9: 1 | J9: 30 | K9: 02 | L9: 26 | N9: 2019 | O9: 1 | P9: 30 | Q9: 2 | R9: 26 | S9: Ejszaka | T9: 190130 | U9: 19012900
A10: Mérőlap_MSE4_A1_1901300423.pdf | B10: .pdf | C10: 2019-07-31T13:55:40.939 | D10: 2019-01-30T04:24:17.370 | E10: 2019-07-18T07:25:57.134 | F10: U:\Merolapok motorsor\Anker 1\Merolapok\ | G10: 1901300423 | H10: 2019 | I10: 1 | J10: 30 | K10: 04 | L10: 23 | N10: 2019 | O10: 1 | P10: 30 | Q10: 4 | R10: 23 | S10: Ejszaka | T10: 190130 | U10: 19012900
A11: Mérőlap_MSE4_A1_1902020628.pdf | B11: .pdf | C11: 2019-07-31T13:55:42.094 | D11: 2019-02-02T06:28:59.649 | E11: 2019-07-18T07:25:58.153 | F11: U:\Merolapok motorsor\Anker 1\Merolapok\ | G11: 1902020628 | H11: 2019 | I11: 2 | J11: 02 | K11: 06 | L11: 28 | N11: 2019 | O11: 2 | P11: 2 | Q11: 6 | R11: 28 | S11: Nappal | T11: 190202 | U11: 1902020
A12: Mérőlap_MSE4_A1_1902020755.pdf | B12: .pdf | C12: 2019-07-31T13:55:43.545 | D12: 2019-02-02T07:56:30.540 | E12: 2019-07-18T07:25:59.238 | F12: U:\Merolapok motorsor\Anker 1\Merolapok\ | G12: 1902020755 | H12: 2019 | I12: 2 | J12: 02 | K12: 07 | L12: 55 | N12: 2019 | O12: 2 | P12: 2 | Q12: 7 | R12: 55 | S12: Nappal | T12: 190202 | U12: 1902020
A13: Mérőlap_MSE4_A1_1902021030.pdf | B13: .pdf | C13: 2019-07-31T13:55:44.537 | D13: 2019-02-02T10:31:44.763 | E13: 2019-07-18T07:26:00.111 | F13: U:\Merolapok motorsor\Anker 1\Merolapok\ | G13: 1902021030 | H13: 2019 | I13: 2 | J13: 02 | K13: 10 | L13: 30 | N13: 2019 | O13: 2 | P13: 2 | Q13: 10 | R13: 30 | S13: Nappal | T13: 190202 | U13: 1902020
A14: Mérőlap_MSE4_A1_1902021422.pdf | B14: .pdf | C14: 2019-07-31T13:55:45.545 | D14: 2019-02-02T14:23:11.666 | E14: 2019-07-18T07:26:01.127 | F14: U:\Merolapok motorsor\Anker 1\Merolapok\ | G14: 1902021422 | H14: 2019 | I14: 2 | J14: 02 | K14: 14 | L14: 22 | N14: 2019 | O14: 2 | P14: 2 | Q14: 14 | R14: 22 | S14: Nappal | T14: 190202 | U14: 1902020
A15: Mérőlap_MSE4_A1_1902021607.pdf | B15: .pdf | C15: 2019-07-31T13:55:46.794 | D15: 2019-02-02T16:08:26.611 | E15: 2019-07-18T07:26:02.173 | F15: U:\Merolapok motorsor\Anker 1\Merolapok\ | G15: 1902021607 | H15: 2019 | I15: 2 | J15: 02 | K15: 16 | L15: 07 | N15: 2019 | O15: 2 | P15: 2 | Q15: 16 | R15: 7 | S15: Nappal | T15: 190202 | U15: 1902020
A16: Mérőlap_MSE4_A1_1902030623.pdf | B16: .pdf | C16: 2019-07-31T13:55:47.980 | D16: 2019-02-03T06:24:19.646 | E16: 2019-07-18T07:26:03.110 | F16: U:\Merolapok motorsor\Anker 1\Merolapok\ | G16: 1902030623 | H16: 2019 | I16: 2 | J16: 03 | K16: 06 | L16: 23 | N16: 2019 | O16: 2 | P16: 3 | Q16: 6 | R16: 23 | S16: Nappal | T16: 190203 | U16: 1902030
A17: Mérőlap_MSE4_A1_1902030815.pdf | B17: .pdf | C17: 2019-07-31T13:55:49.243 | D17: 2019-02-03T08:16:11.983 | E17: 2019-07-18T07:26:04.076 | F17: U:\Merolapok motorsor\Anker 1\Merolapok\ | G17: 1902030815 | H17: 2019 | I17: 2 | J17: 03 | K17: 08 | L17: 15 | N17: 2019 | O17: 2 | P17: 3 | Q17: 8 | R17: 15 | S17: Nappal | T17: 190203 | U17: 1902030
A18: Mérőlap_MSE4_A1_1902031011.pdf | B18: .pdf | C18: 2019-07-31T13:55:50.420 | D18: 2019-02-03T10:12:06.680 | E18: 2019-07-18T07:26:05.164 | F18: U:\Merolapok motorsor\Anker 1\Merolapok\ | G18: 1902031011 | H18: 2019 | I18: 2 | J18: 03 | K18: 10 | L18: 11 | N18: 2019 | O18: 2 | P18: 3 | Q18: 10 | R18: 11 | S18: Nappal | T18: 190203 | U18: 1902030
A19: Mérőlap_MSE4_A1_1902031221.pdf | B19: .pdf | C19: 2019-07-31T13:55:51.693 | D19: 2019-02-03T12:23:15.243 | E19: 2019-07-18T07:26:06.040 | F19: U:\Merolapok motorsor\Anker 1\Merolapok\ | G19: 1902031221 | H19: 2019 | I19: 2 | J19: 03 | K19: 12 | L19: 21 | N19: 2019 | O19: 2 | P19: 3 | Q19: 12 | R19: 21 | S19: Nappal | T19: 190203 | U19: 1902030
A20: Mérőlap_MSE4_A1_1902031412.pdf | B20: .pdf | C20: 2019-07-31T13:55:53.070 | D20: 2019-02-03T14:14:04.014 | E20: 2019-07-18T07:26:06.978 | F20: U:\Merolapok motorsor\Anker 1\Merolapok\ | G20: 1902031412 | H20: 2019 | I20: 2 | J20: 03 | K20: 14 | L20: 12 | N20: 2019 | O20: 2 | P20: 3 | Q20: 14 | R20: 12 | S20: Nappal | T20: 190203 | U20: 1902030
A21: Mérőlap_MSE4_A1_1902031609.pdf | B21: .pdf | C21: 2019-07-31T13:55:54.443 | D21: 2019-02-03T16:10:47.751 | E21: 2019-07-18T07:26:07.939 | F21: U:\Merolapok motorsor\Anker 1\Merolapok\ | G21: 1902031609 | H21: 2019 | I21: 2 | J21: 03 | K21: 16 | L21: 09 | N21: 2019 | O21: 2 | P21: 3 | Q21: 16 | R21: 9 | S21: Nappal | T21: 190203 | U21: 1902030
A22: Mérőlap_MSE4_A1_1902061848.pdf | B22: .pdf | C22: 2019-07-31T13:55:55.580 | D22: 2019-02-06T18:49:29.767 | E22: 2019-07-18T07:26:08.839 | F22: U:\Merolapok motorsor\Anker 1\Merolapok\ | G22: 1902061848 | H22: 2019 | I22: 2 | J22: 06 | K22: 18 | L22: 48 | N22: 2019 | O22: 2 | P22: 6 | Q22: 18 | R22: 48 | S22: Ejszaka | T22: 190206 | U22: 19020600
A23: Mérőlap_MSE4_A1_1902062015.pdf | B23: .pdf | C23: 2019-07-31T13:55:57.215 | D23: 2019-02-06T20:16:11.401 | E23: 2019-07-18T07:26:09.868 | F23: U:\Merolapok motorsor\Anker 1\Merolapok\ | G23: 1902062015 | H23: 2019 | I23: 2 | J23: 06 | K23: 20 | L23: 15 | N23: 2019 | O23: 2 | P23: 6 | Q23: 20 | R23: 15 | S23: Ejszaka | T23: 190206 | U23: 19020600
A24: Mérőlap_MSE4_A1_1902062226.pdf | B24: .pdf | C24: 2019-07-31T13:55:58.346 | D24: 2019-02-06T22:27:07.143 | E24: 2019-07-18T07:26:10.901 | F24: U:\Merolapok motorsor\Anker 1\Merolapok\ | G24: 1902062226 | H24: 2019 | I24: 2 | J24: 06 | K24: 22 | L24: 26 | N24: 2019 | O24: 2 | P24: 6 | Q24: 22 | R24: 26 | S24: Ejszaka | T24: 190206 | U24: 19020600
A25: Mérőlap_MSE4_A1_1902070027.pdf | B25: .pdf | C25: 2019-07-31T13:55:59.314 | D25: 2019-02-07T00:28:58.966 | E25: 2019-07-18T07:26:11.943 | F25: U:\Merolapok motorsor\Anker 1\Merolapok\ | G25: 1902070027 | H25: 2019 | I25: 2 | J25: 07 | K25: 00 | L25: 27 | N25: 2019 | O25: 2 | P25: 7 | Q25: 0 | R25: 27 | S25: Ejszaka | T25: 190207 | U25: 19020600
A26: Mérőlap_MSE4_A1_1902070436.pdf | B26: .pdf | C26: 2019-07-31T13:56:00.383 | D26: 2019-02-07T04:37:45.209 | E26: 2019-07-18T07:26:12.900 | F26: U:\Merolapok motorsor\Anker 1\Merolapok\ | G26: 1902070436 | H26: 2019 | I26: 2 | J26: 07 | K26: 04 | L26: 36 | N26: 2019 | O26: 2 | P26: 7 | Q26: 4 | R26: 36 | S26: Ejszaka | T26: 190207 | U26: 19020600
A27: Mérőlap_MSE4_A1_1902071838.pdf | B27: .pdf | C27: 2019-07-31T13:56:01.346 | D27: 2019-02-07T18:38:54.184 | E27: 2019-07-18T07:26:13.709 | F27: U:\Merolapok motorsor\Anker 1\Merolapok\ | G27: 1902071838 | H27: 2019 | I27: 2 | J27: 07 | K27: 18 | L27: 38 | N27: 2019 | O27: 2 | P27: 7 | Q27: 18 | R27: 38 | S27: Ejszaka | T27: 190207 | U27: 19020700
A28: Mérőlap_MSE4_A1_1902072039.pdf | B28: .pdf | C28: 2019-07-31T13:56:02.279 | D28: 2019-02-07T20:40:46.915 | E28: 2019-07-18T07:26:14.478 | F28: U:\Merolapok motorsor\Anker 1\Merolapok\ | G28: 1902072039 | H28: 2019 | I28: 2 | J28: 07 | K28: =MID(G28,7,2) -> 20 | L28: 39 | N28: 2019 | O28: 2 | P28: 7 | Q28: 20 | R28: 39 | S28: Ejszaka | T28: 190207 | U28: 19020700
A29: Mérőlap_MSE4_A1_1902080043.pdf | B29: .pdf | C29: 2019-07-31T13:56:03.268 | D29: 2019-02-08T00:44:49.281 | E29: 2019-07-18T07:26:15.502 | F29: U:\Merolapok motorsor\Anker 1\Merolapok\ | G29: 1902080043 | H29: 2019 | I29: 2 | J29: 08 | K29: 00 | L29: 43 | N29: 2019 | O29: 2 | P29: 8 | Q29: 0 | R29: 43 | S29: Ejszaka | T29: 190208 | U29: 19020700
A30: Mérőlap_MSE4_A1_1902080348.pdf | B30: .pdf | C30: 2019-07-31T13:56:04.391 | D30: 2019-02-08T03:49:22.816 | E30: 2019-07-18T07:26:16.537 | F30: U:\Merolapok motorsor\Anker 1\Merolapok\ | G30: 1902080348 | H30: 2019 | I30: 2 | J30: 08 | K30: 03 | L30: 48 | N30: 2019 | O30: 2 | P30: 8 | Q30: 3 | R30: 48 | S30: Ejszaka | T30: 190208 | U30: 19020700
A31: Mérőlap_MSE4_A1_1902110634.pdf | B31: .pdf | C31: 2019-07-31T13:56:05.464 | D31: 2019-02-11T06:35:20.743 | E31: 2019-07-18T07:26:17.392 | F31: U:\Merolapok motorsor\Anker 1\Merolapok\ | G31: 1902110634 | H31: 2019 | I31: 2 | J31: 11 | K31: 06 | L31: 34 | N31: 2019 | O31: 2 | P31: 11 | Q31: 6 | R31: 34 | S31: Nappal | T31: 190211 | U31: 1902110
A32: Mérőlap_MSE4_A1_1902111152.pdf | B32: .pdf | C32: 2019-07-18T07:26:18.502 | D32: 2019-02-11T11:53:02.799 | E32: 2019-07-18T07:26:18.236 | F32: U:\Merolapok motorsor\Anker 1\Merolapok\ | G32: 1902111152 | H32: 2019 | I32: 2 | J32: 11 | K32: 11 | L32: 52 | N32: 2019 | O32: 2 | P32: 11 | Q32: 11 | R32: 52 | S32: Nappal | T32: 190211 | U32: 1902110
A33: Mérőlap_MSE4_A1_1902111434.pdf | B33: .pdf | C33: 2019-07-18T07:26:19.305 | D33: 2019-02-11T14:34:12.637 | E33: 2019-07-18T07:26:19.031 | F33: U:\Merolapok motorsor\Anker 1\Merolapok\ | G33: 1902111434 | H33: 2019 | I33: 2 | J33: 11 | K33: 14 | L33: 34 | N33: 2019 | O33: 2 | P33: 11 | Q33: 14 | R33: 34 | S33: Nappal | T33: 190211 | U33: 1902110
A34: Mérőlap_MSE4_A1_1902111628.pdf | B34: .pdf | C34: 2019-07-18T07:26:20.040 | D34: 2019-02-11T16:28:55.743 | E34: 2019-07-18T07:26:19.748 | F34: U:\Merolapok motorsor\Anker 1\Merolapok\ | G34: 1902111628 | H34: 2019 | I34: 2 | J34: 11 | K34: 16 | L34: 28 | N34: 2019 | O34: 2 | P34: 11 | Q34: 16 | R34: 28 | S34: Nappal | T34: 190211 | U34: 1902110
A35: Mérőlap_MSE4_A1_1902141823.pdf | B35: .pdf | C35: 2019-07-18T07:26:20.789 | D35: 2019-02-14T18:24:09.861 | E35: 2019-07-18T07:26:20.534 | F35: U:\Merolapok motorsor\Anker 1\Merolapok\ | G35: 1902141823 | H35: 2019 | I35: 2 | J35: 14 | K35: 18 | L35: 23 | N35: 2019 | O35: 2 | P35: 14 | Q35: 18 | R35: 23 | S35: Ejszaka | T35: 190214 | U35: 19021400
A36: Mérőlap_MSE4_A1_1902142209.pdf | B36: .pdf | C36: 2019-07-18T07:26:21.521 | D36: 2019-02-14T22:10:35.891 | E36: 2019-07-18T07:26:21.301 | F36: U:\Merolapok motorsor\Anker 1\Merolapok\ | G36: 1902142209 | H36: 2019 | I36: 2 | J36: 14 | K36: 22 | L36: 09 | N36: 2019 | O36: 2 | P36: 14 | Q36: 22 | R36: 9 | S36: Ejszaka | T36: 190214 | U36: 19021400
A37: Mérőlap_MSE4_A1_1902150034.pdf | B37: .pdf | C37: 2019-07-18T07:26:22.325 | D37: 2019-02-15T00:35:43.356 | E37: 2019-07-18T07:26:22.047 | F37: U:\Merolapok motorsor\Anker 1\Merolapok\ | G37: 1902150034 | H37: 2019 | I37: 2 | J37: 15 | K37: 00 | L37: 34 | N37: 2019 | O37: 2 | P37: 15 | Q37: 0 | R37: 34 | S37: Ejszaka | T37: 190215 | U37: 19021400
A38: Mérőlap_MSE4_A1_1902150249.pdf | B38: .pdf | C38: 2019-07-18T07:26:23.057 | D38: 2019-02-15T02:49:10.382 | E38: 2019-07-18T07:26:22.839 | F38: U:\Merolapok motorsor\Anker 1\Merolapok\ | G38: 1902150249 | H38: 2019 | I38: 2 | J38: 15 | K38: 02 | L38: 49 | N38: 2019 | O38: 2 | P38: 15 | Q38: 2 | R38: 49 | S38: Ejszaka | T38: 190215 | U38: 19021400
A39: Mérőlap_MSE4_A1_1902150443.pdf | B39: .pdf | C39: 2019-07-18T07:26:23.774 | D39: 2019-02-15T04:44:21.713 | E39: 2019-07-18T07:26:23.507 | F39: U:\Merolapok motorsor\Anker 1\Merolapok\ | G39: 1902150443 | H39: 2019 | I39: 2 | J39: 15 | K39: 04 | L39: 43 | N39: 2019 | O39: 2 | P39: 15 | Q39: 4 | R39: 43 | S39: Ejszaka | T39: 190215 | U39: 19021400
A40: Mérőlap_MSE4_A1_1902151814.pdf | B40: .pdf | C40: 2019-07-18T07:26:24.619 | D40: 2019-02-15T18:15:32.895 | E40: 2019-07-18T07:26:24.354 | F40: U:\Merolapok motorsor\Anker 1\Merolapok\ | G40: 1902151814 | H40: 2019 | I40: 2 | J40: 15 | K40: 18 | L40: 14 | N40: 2019 | O40: 2 | P40: 15 | Q40: 18 | R40: 14 | S40: Ejszaka | T40: 190215 | U40: 19021500
A41: Mérőlap_MSE4_A1_1902152029.pdf | B41: .pdf | C41: 2019-07-18T07:26:25.466 | D41: 2019-02-15T20:30:14.351 | E41: 2019-07-18T07:26:25.228 | F41: U:\Merolapok motorsor\Anker 1\Merolapok\ | G41: 1902152029 | H41: 2019 | I41: 2 | J41: 15 | K41: 20 | L41: 29 | N41: 2019 | O41: 2 | P41: 15 | Q41: 20 | R41: 29 | S41: Ejszaka | T41: 190215 | U41: 19021500
A42: Mérőlap_MSE4_A1_1902152217.pdf | B42: .pdf | C42: 2019-07-18T07:26:26.255 | D42: 2019-02-15T22:18:09.870 | E42: 2019-07-18T07:26:26.032 | F42: U:\Merolapok motorsor\Anker 1\Merolapok\ | G42: 1902152217 | H42: 2019 | I42: 2 | J42: 15 | K42: 22 | L42: 17 | N42: 2019 | O42: 2 | P42: 15 | Q42: 22 | R42: 17 | S42: Ejszaka | T42: 190215 | U42: 19021500
A43: Mérőlap_MSE4_A1_1902160036.pdf | B43: .pdf | C43: 2019-07-18T07:26:27.677 | D43: 2019-02-16T00:37:20.666 | E43: 2019-07-18T07:26:27.265 | F43: U:\Merolapok motorsor\Anker 1\Merolapok\ | G43: 1902160036 | H43: 2019 | I43: 2 | J43: 16 | K43: 00 | L43: 36 | N43: 2019 | O43: 2 | P43: 16 | Q43: 0 | R43: 36 | S43: Ejszaka | T43: 190216 | U43: 19021500
A44: Mérőlap_MSE4_A1_1902160221.pdf | B44: .pdf | C44: 2019-07-18T07:26:28.482 | D44: 2019-02-16T02:22:21.981 | E44: 2019-07-18T07:26:28.214 | F44: U:\Merolapok motorsor\Anker 1\Merolapok\ | G44: 1902160221 | H44: 2019 | I44: 2 | J44: 16 | K44: 02 | L44: 21 | N44: 2019 | O44: 2 | P44: 16 | Q44: 2 | R44: 21 | S44: Ejszaka | T44: 190216 | U44: 19021500
A45: Mérőlap_MSE4_A1_1902180636.pdf | B45: .pdf | C45: 2019-07-18T07:26:29.400 | D45: 2019-02-18T06:37:28.494 | E45: 2019-07-18T07:26:29.115 | F45: U:\Merolapok motorsor\Anker 1\Merolapok\ | G45: 1902180636 | H45: 2019 | I45: 2 | J45: 18 | K45: 06 | L45: 36 | N45: 2019 | O45: 2 | P45: 18 | Q45: 6 | R45: 36 | S45: Nappal | T45: 190218 | U45: 1902180
A46: Mérőlap_MSE4_A1_1902180757.pdf | B46: .pdf | C46: 2019-07-18T07:26:30.190 | D46: 2019-02-18T07:58:08.996 | E46: 2019-07-18T07:26:29.967 | F46: U:\Merolapok motorsor\Anker 1\Merolapok\ | G46: 1902180757 | H46: 2019 | I46: 2 | J46: 18 | K46: 07 | L46: 57 | N46: 2019 | O46: 2 | P46: 18 | Q46: 7 | R46: 57 | S46: Nappal | T46: 190218 | U46: 1902180
A47: Mérőlap_MSE4_A1_1902181250.pdf | B47: .pdf | C47: 2019-07-18T07:26:31.085 | D47: 2019-02-18T12:50:58.638 | E47: 2019-07-18T07:26:30.726 | F47: U:\Merolapok motorsor\Anker 1\Merolapok\ | G47: 1902181250 | H47: 2019 | I47: 2 | J47: 18 | K47: 12 | L47: 50 | N47: 2019 | O47: 2 | P47: 18 | Q47: 12 | R47: 50 | S47: Nappal | T47: 190218 | U47: 1902180
A48: Mérőlap_MSE4_A1_1902181407.pdf | B48: .pdf | C48: 2019-07-18T07:26:31.934 | D48: 2019-02-18T14:08:08.356 | E48: 2019-07-18T07:26:31.719 | F48: U:\Merolapok motorsor\Anker 1\Merolapok\ | G48: 1902181407 | H48: 2019 | I48: 2 | J48: 18 | K48: 14 | L48: 07 | N48: 2019 | O48: 2 | P48: 18 | Q48: 14 | R48: 7 | S48: Nappal | T48: 190218 | U48: 1902180
A49: Mérőlap_MSE4_A1_1902181613.pdf | B49: .pdf | C49: 2019-07-18T07:26:32.842 | D49: 2019-02-18T16:14:47.431 | E49: 2019-07-18T07:26:32.563 | F49: U:\Merolapok motorsor\Anker 1\Merolapok\ | G49: 1902181613 | H49: 2019 | I49: 2 | J49: 18 | K49: 16 | L49: 13 | N49: 2019 | O49: 2 | P49: 18 | Q49: 16 | R49: 13 | S49: Nappal | T49: 190218 | U49: 1902180
A50: Mérőlap_MSE4_A1_1902221814.pdf | B50: .pdf | C50: 2019-07-22T13:31:06.711 | D50: 2019-02-22T18:15:49.684 | E50: 2019-07-18T07:26:33.413 | F50: U:\Merolapok motorsor\Anker 1\Merolapok\ | G50: 1902221814 | H50: 2019 | I50: 2 | J50: 22 | K50: 18 | L50: 14 | N50: 2019 | O50: 2 | P50: 22 | Q50: 18 | R50: 14 | S50: Ejszaka | T50: 190222 | U50: 19022200
A51: Mérőlap_MSE4_A1_1902221957.pdf | B51: .pdf | C51: 2019-07-18T07:26:34.570 | D51: 2019-02-22T19:58:19.084 | E51: 2019-07-18T07:26:34.270 | F51: U:\Merolapok motorsor\Anker 1\Merolapok\ | G51: 1902221957 | H51: 2019 | I51: 2 | J51: 22 | K51: 19 | L51: 57 | N51: 2019 | O51: 2 | P51: 22 | Q51: 19 | R51: 57 | S51: Ejszaka | T51: 190222 | U51: 19022200
A52: Mérőlap_MSE4_A1_1902222223.pdf | B52: .pdf | C52: 2019-07-18T07:26:35.579 | D52: 2019-02-22T22:24:10.895 | E52: 2019-07-18T07:26:35.257 | F52: U:\Merolapok motorsor\Anker 1\Merolapok\ | G52: 1902222223 | H52: 2019 | I52: 2 | J52: 22 | K52: 22 | L52: 23 | N52: 2019 | O52: 2 | P52: 22 | Q52: 22 | R52: 23 | S52: Ejszaka | T52: 190222 | U52: 19022200
A53: Mérőlap_MSE4_A1_1902230157.pdf | B53: .pdf | C53: 2019-07-18T07:26:36.691 | D53: 2019-02-23T01:57:57.883 | E53: 2019-07-18T07:26:36.196 | F53: U:\Merolapok motorsor\Anker 1\Merolapok\ | G53: 1902230157 | H53: 2019 | I53: 2 | J53: 23 | K53: 01 | L53: 57 | N53: 2019 | O53: 2 | P53: 23 | Q53: 1 | R53: 57 | S53: Ejszaka | T53: 190223 | U53: 19022200
A54: Mérőlap_MSE4_A1_1902231825.pdf | B54: .pdf | C54: 2019-07-18T07:26:37.779 | D54: 2019-02-23T18:26:04.978 | E54: 2019-07-18T07:26:37.457 | F54: U:\Merolapok motorsor\Anker 1\Merolapok\ | G54: 1902231825 | H54: 2019 | I54: 2 | J54: 23 | K54: 18 | L54: 25 | N54: 2019 | O54: 2 | P54: 23 | Q54: 18 | R54: 25 | S54: Ejszaka | T54: 190223 | U54: 19022300
A55: Mérőlap_MSE4_A1_1902232013.pdf | B55: .pdf | C55: 2019-07-18T07:26:39.360 | D55: 2019-02-23T20:14:49.645 | E55: 2019-07-18T07:26:38.991 | F55: U:\Merolapok motorsor\Anker 1\Merolapok\ | G55: 1902232013 | H55: 2019 | I55: 2 | J55: 23 | K55: 20 | L55: 13 | N55: 2019 | O55: 2 | P55: 23 | Q55: 20 | R55: 13 | S55: Ejszaka | T55: 190223 | U55: 19022300
A56: Mérőlap_MSE4_A1_1902232204.pdf | B56: .pdf | C56: 2019-07-18T07:26:40.283 | D56: 2019-02-23T22:05:00.263 | E56: 2019-07-18T07:26:39.924 | F56: U:\Merolapok motorsor\Anker 1\Merolapok\ | G56: 1902232204 | H56: 2019 | I56: 2 | J56: 23 | K56: 22 | L56: 04 | N56: 2019 | O56: 2 | P56: 23 | Q56: 22 | R56: 4 | S56: Ejszaka | T56: 190223 | U56: 19022300
A57: Mérőlap_MSE4_A1_1902240250.pdf | B57: .pdf | C57: 2019-07-18T07:26:41.205 | D57: 2019-02-24T02:51:42.928 | E57: 2019-07-18T07:26:40.913 | F57: U:\Merolapok motorsor\Anker 1\Merolapok\ | G57: 1902240250 | H57: 2019 | I57: 2 | J57: 24 | K57: 02 | L57: 50 | N57: 2019 | O57: 2 | P57: 24 | Q57: 2 | R57: 50 | S57: Ejszaka | T57: 190224 | U57: 19022300
A58: Mérőlap_MSE4_A1_1902260628.pdf | B58: .pdf | C58: 2019-07-18T07:26:41.999 | D58: 2019-02-26T06:29:27.793 | E58: 2019-07-18T07:26:41.680 | F58: U:\Merolapok motorsor\Anker 1\Merolapok\ | G58: 1902260628 | H58: 2019 | I58: 2 | J58: 26 | K58: 06 | L58: 28 | N58: 2019 | O58: 2 | P58: 26 | Q58: 6 | R58: 28 | S58: Nappal | T58: 190226 | U58: 1902260
A59: Mérőlap_MSE4_A1_1902260819.pdf | B59: .pdf | C59: 2019-07-18T07:26:42.739 | D59: 2019-02-26T08:21:23.606 | E59: 2019-07-18T07:26:42.480 | F59: U:\Merolapok motorsor\Anker 1\Merolapok\ | G59: 1902260819 | H59: 2019 | I59: 2 | J59: 26 | K59: 08 | L59: 19 | N59: 2019 | O59: 2 | P59: 26 | Q59: 8 | R59: 19 | S59: Nappal | T59: 190226 | U59: 1902260
A60: Mérőlap_MSE4_A1_1902261020.pdf | B60: .pdf | C60: 2019-07-18T07:26:43.480 | D60: 2019-02-26T10:20:58.333 | E60: 2019-07-18T07:26:43.248 | F60: U:\Merolapok motorsor\Anker 1\Merolapok\ | G60: 1902261020 | H60: 2019 | I60: 2 | J60: 26 | K60: 10 | L60: 20 | N60: 2019 | O60: 2 | P60: 26 | Q60: 10 | R60: 20 | S60: Nappal | T60: 190226 | U60: 1902260
A61: Mérőlap_MSE4_A1_1902261243.pdf | B61: .pdf | C61: 2019-07-18T07:26:44.254 | D61: 2019-02-26T12:44:15.832 | E61: 2019-07-18T07:26:43.970 | F61: U:\Merolapok motorsor\Anker 1\Merolapok\ | G61: 1902261243 | H61: 2019 | I61: 2 | J61: 26 | K61: 12 | L61: 43 | N61: 2019 | O61: 2 | P61: 26 | Q61: 12 | R61: 43 | S61: Nappal | T61: 190226 | U61: 1902260
A62: Mérőlap_MSE4_A1_1902270617.pdf | B62: .pdf | C62: 2019-07-18T07:26:45.174 | D62: 2019-02-27T06:18:16.547 | E62: 2019-07-18T07:26:44.860 | F62: U:\Merolapok motorsor\Anker 1\Merolapok\ | G62: 1902270617 | H62: 2019 | I62: 2 | J62: 27 | K62: 06 | L62: 17 | N62: 2019 | O62: 2 | P62: 27 | Q62: 6 | R62: 17 | S62: Nappal | T62: 190227 | U62: 1902270
A63: Mérőlap_MSE4_A1_1902270859.pdf | B63: .pdf | C63: 2019-07-18T07:26:46.337 | D63: 2019-02-27T09:00:59.303 | E63: 2019-07-18T07:26:46.016 | F63: U:\Merolapok motorsor\Anker 1\Merolapok\ | G63: 1902270859 | H63: 2019 | I63: 2 | J63: 27 | K63: 08 | L63: 59 | N63: 2019 | O63: 2 | P63: 27 | Q63: 8 | R63: 59 | S63: Nappal | T63: 190227 | U63: 1902270
A64: Mérőlap_MSE4_A1_1902271247.pdf | B64: .pdf | C64: 2019-07-18T07:26:47.282 | D64: 2019-02-27T12:51:00.758 | E64: 2019-07-18T07:26:46.988 | F64: U:\Merolapok motorsor\Anker 1\Merolapok\ | G64: 1902271247 | H64: 2019 | I64: 2 | J64: 27 | K64: 12 | L64: 47 | N64: 2019 | O64: 2 | P64: 27 | Q64: 12 | R64: 47 | S64: Nappal | T64: 190227 | U64: 1902270
A65: Mérőlap_MSE4_A1_1902271443.pdf | B65: .pdf | C65: 2019-07-18T07:26:48.194 | D65: 2019-02-27T14:44:57.152 | E65: 2019-07-18T07:26:47.816 | F65: U:\Merolapok motorsor\Anker 1\Merolapok\ | G65: 1902271443 | H65: 2019 | I65: 2 | J65: 27 | K65: 14 | L65: 43 | N65: 2019 | O65: 2 | P65: 27 | Q65: 14 | R65: 43 | S65: Nappal | T65: 190227 | U65: 1902270
A66: Mérőlap_MSE4_A1_1903021833.pdf | B66: .pdf | C66: 2019-07-18T07:26:49.231 | D66: 2019-03-02T18:34:16.145 | E66: 2019-07-18T07:26:48.843 | F66: U:\Merolapok motorsor\Anker 1\Merolapok\ | G66: 1903021833 | H66: 2019 | I66: =MID(G66,4,1) -> 3 | J66: =MID(G66,5,2) -> 02 | K66: =MID(G66,7,2) -> 18 | L66: =MID(G66,9,2) -> 33 | N66: 2019 | O66: 3 | P66: 2 | Q66: 18 | R66: 33 | S66: Ejszaka | T66: =MID(G66,1,6) -> 190302 | U66: 19030200
A67: Mérőlap_MSE4_A1_1903022032.pdf | B67: .pdf | C67: 2019-07-18T07:26:50.156 | D67: 2019-03-02T20:33:51.995 | E67: 2019-07-18T07:26:49.928 | F67: U:\Merolapok motorsor\Anker 1\Merolapok\ | G67: =MID(A67,17,10) -> 1903022032 | H67: 2019 | I67: 3 | J67: 02 | K67: 20 | L67: 32 | N67: 2019 | O67: 3 | P67: 2 | Q67: 20 | R67: 32 | S67: =IF(Q67<6,"Ejszaka",IF(Q67<18,"Nappal","Ejszaka")) -> Ejszaka | T67: 190302 | U67: =IF(S67="Nappal",T67*10,IF(Q67<6,T67*100-100,T67*100)) -> 19030200
A68: Mérőlap_MSE4_A1_1903022212.pdf | B68: .pdf | C68: 2019-07-18T07:26:51.146 | D68: 2019-03-02T22:13:47.793 | E68: 2019-07-18T07:26:50.838 | F68: U:\Merolapok motorsor\Anker 1\Merolapok\ | G68: 1903022212 | H68: 2019 | I68: 3 | J68: 02 | K68: 22 | L68: 12 | N68: 2019 | O68: 3 | P68: 2 | Q68: 22 | R68: 12 | S68: Ejszaka | T68: 190302 | U68: 19030200
A69: Mérőlap_MSE4_A1_1903030044.pdf | B69: .pdf | C69: 2019-07-18T07:26:52.160 | D69: 2019-03-03T00:45:40.227 | E69: 2019-07-18T07:26:51.786 | F69: U:\Merolapok motorsor\Anker 1\Merolapok\ | G69: 1903030044 | H69: 2019 | I69: 3 | J69: 03 | K69: 00 | L69: 44 | N69: 2019 | O69: 3 | P69: 3 | Q69: 0 | R69: 44 | S69: Ejszaka | T69: 190303 | U69: 19030200
A70: Mérőlap_MSE4_A1_1903030437.pdf | B70: .pdf | C70: 2019-07-18T07:26:53.280 | D70: 2019-03-03T04:38:15.260 | E70: 2019-07-18T07:26:52.962 | F70: U:\Merolapok motorsor\Anker 1\Merolapok\ | G70: 1903030437 | H70: 2019 | I70: 3 | J70: 03 | K70: 04 | L70: 37 | N70: 2019 | O70: 3 | P70: 3 | Q70: 4 | R70: 37 | S70: Ejszaka | T70: 190303 | U70: 19030200
A71: Mérőlap_MSE4_A1_1903031818.pdf | B71: .pdf | C71: 2019-07-18T07:26:54.270 | D71: 2019-03-03T18:19:17.617 | E71: 2019-07-18T07:26:54.002 | F71: U:\Merolapok motorsor\Anker 1\Merolapok\ | G71: 1903031818 | H71: 2019 | I71: 3 | J71: 03 | K71: 18 | L71: 18 | N71: 2019 | O71: 3 | P71: 3 | Q71: 18 | R71: 18 | S71: Ejszaka | T71: 190303 | U71: 19030300
A72: Mérőlap_MSE4_A1_1903032139.pdf | B72: .pdf | C72: 2019-07-18T07:26:55.311 | D72: 2019-03-03T21:40:13.960 | E72: 2019-07-18T07:26:55.037 | F72: U:\Merolapok motorsor\Anker 1\Merolapok\ | G72: 1903032139 | H72: 2019 | I72: 3 | J72: 03 | K72: 21 | L72: 39 | N72: 2019 | O72: 3 | P72: 3 | Q72: 21 | R72: 39 | S72: Ejszaka | T72: 190303 | U72: 19030300
A73: Mérőlap_MSE4_A1_1903040415.pdf | B73: .pdf | C73: 2019-07-18T07:26:56.266 | D73: 2019-03-04T04:16:40.401 | E73: 2019-07-18T07:26:55.957 | F73: U:\Merolapok motorsor\Anker 1\Merolapok\ | G73: 1903040415 | H73: 2019 | I73: 3 | J73: 04 | K73: 04 | L73: 15 | N73: 2019 | O73: 3 | P73: 4 | Q73: 4 | R73: 15 | S73: Ejszaka | T73: 190304 | U73: 19030300
A74: Mérőlap_MSE4_A1_1903060624.pdf | B74: .pdf | C74: 2019-07-18T07:26:57.388 | D74: 2019-03-06T06:25:23.835 | E74: 2019-07-18T07:26:57.121 | F74: U:\Merolapok motorsor\Anker 1\Merolapok\ | G74: 1903060624 | H74: 2019 | I74: 3 | J74: 06 | K74: 06 | L74: 24 | N74: 2019 | O74: 3 | P74: 6 | Q74: 6 | R74: 24 | S74: Nappal | T74: 190306 | U74: 1903060
A75: Mérőlap_MSE4_A1_1903060821.pdf | B75: .pdf | C75: 2019-07-18T07:26:58.311 | D75: 2019-03-06T08:22:27.392 | E75: 2019-07-18T07:26:58.067 | F75: U:\Merolapok motorsor\Anker 1\Merolapok\ | G75: 1903060821 | H75: 2019 | I75: 3 | J75: 06 | K75: 08 | L75: 21 | N75: 2019 | O75: 3 | P75: 6 | Q75: 8 | R75: 21 | S75: Nappal | T75: 190306 | U75: 1903060
A76: Mérőlap_MSE4_A1_1903061024.pdf | B76: .pdf | C76: 2019-07-18T07:26:59.337 | D76: 2019-03-06T10:25:31.060 | E76: 2019-07-18T07:26:58.998 | F76: U:\Merolapok motorsor\Anker 1\Merolapok\ | G76: 1903061024 | H76: 2019 | I76: 3 | J76: 06 | K76: 10 | L76: 24 | N76: 2019 | O76: 3 | P76: 6 | Q76: 10 | R76: 24 | S76: Nappal | T76: 190306 | U76: 1903060
A77: Mérőlap_MSE4_A1_1903061213.pdf | B77: .pdf | C77: 2019-07-18T07:27:00.294 | D77: 2019-03-06T12:14:11.132 | E77: 2019-07-18T07:26:59.920 | F77: U:\Merolapok motorsor\Anker 1\Merolapok\ | G77: 1903061213 | H77: 2019 | I77: 3 | J77: 06 | K77: 12 | L77: 13 | N77: 2019 | O77: 3 | P77: 6 | Q77: 12 | R77: 13 | S77: Nappal | T77: 190306 | U77: 1903060
A78: Mérőlap_MSE4_A1_1903061417.pdf | B78: .pdf | C78: 2019-07-18T07:27:01.369 | D78: 2019-03-06T14:18:38.211 | E78: 2019-07-18T07:27:01.042 | F78: U:\Merolapok motorsor\Anker 1\Merolapok\ | G78: 1903061417 | H78: 2019 | I78: 3 | J78: 06 | K78: 14 | L78: 17 | N78: 2019 | O78: 3 | P78: 6 | Q78: 14 | R78: 17 | S78: Nappal | T78: 190306 | U78: 1903060
A79: Mérőlap_MSE4_A1_1903070751.pdf | B79: .pdf | C79: 2019-07-18T07:27:02.458 | D79: 2019-03-07T07:52:01.645 | E79: 2019-07-18T07:27:02.161 | F79: U:\Merolapok motorsor\Anker 1\Merolapok\ | G79: 1903070751 | H79: 2019 | I79: 3 | J79: 07 | K79: 07 | L79: 51 | N79: 2019 | O79: 3 | P79: 7 | Q79: 7 | R79: 51 | S79: Nappal | T79: 190307 | U79: 1903070
A80: Mérőlap_MSE4_A1_1903070956.pdf | B80: .pdf | C80: 2019-07-18T07:27:03.438 | D80: 2019-03-07T09:57:25.422 | E80: 2019-07-18T07:27:03.100 | F80: U:\Merolapok motorsor\Anker 1\Merolapok\ | G80: 1903070956 | H80: 2019 | I80: 3 | J80: 07 | K80: 09 | L80: 56 | N80: 2019 | O80: 3 | P80: 7 | Q80: 9 | R80: 56 | S80: Nappal | T80: 190307 | U80: 1903070
A81: Mérőlap_MSE4_A1_1903071207.pdf | B81: .pdf | C81: 2019-07-18T07:27:04.509 | D81: 2019-03-07T12:08:25.964 | E81: 2019-07-18T07:27:04.174 | F81: U:\Merolapok motorsor\Anker 1\Merolapok\ | G81: 1903071207 | H81: 2019 | I81: 3 | J81: 07 | K81: 12 | L81: 07 | N81: 2019 | O81: 3 | P81: 7 | Q81: 12 | R81: 7 | S81: Nappal | T81: 190307 | U81: 1903070
A82: Mérőlap_MSE4_A1_1903101835.pdf | B82: .pdf | C82: 2019-07-18T07:27:05.998 | D82: 2019-03-10T18:37:43.636 | E82: 2019-07-18T07:27:05.671 | F82: U:\Merolapok motorsor\Anker 1\Merolapok\ | G82: 1903101835 | H82: 2019 | I82: 3 | J82: 10 | K82: 18 | L82: 35 | N82: 2019 | O82: 3 | P82: 10 | Q82: 18 | R82: 35 | S82: Ejszaka | T82: 190310 | U82: 19031000
A83: Mérőlap_MSE4_A1_1903102034.pdf | B83: .pdf | C83: 2019-07-18T07:27:06.982 | D83: 2019-03-10T20:35:45.663 | E83: 2019-07-18T07:27:06.673 | F83: U:\Merolapok motorsor\Anker 1\Merolapok\ | G83: 1903102034 | H83: 2019 | I83: 3 | J83: 10 | K83: 20 | L83: 34 | N83: 2019 | O83: 3 | P83: 10 | Q83: 20 | R83: 34 | S83: Ejszaka | T83: 190310 | U83: 19031000
A84: Mérőlap_MSE4_A1_1903102208.pdf | B84: .pdf | C84: 2019-07-18T07:27:08.185 | D84: 2019-03-10T22:09:01.596 | E84: 2019-07-18T07:27:07.796 | F84: U:\Merolapok motorsor\Anker 1\Merolapok\ | G84: 1903102208 | H84: 2019 | I84: 3 | J84: 10 | K84: 22 | L84: 08 | N84: 2019 | O84: 3 | P84: 10 | Q84: 22 | R84: 8 | S84: Ejszaka | T84: 190310 | U84: 19031000
A85: Mérőlap_MSE4_A1_1903110050.pdf | B85: .pdf | C85: 2019-07-18T07:27:09.217 | D85: 2019-03-11T00:51:30.934 | E85: 2019-07-18T07:27:08.892 | F85: U:\Merolapok motorsor\Anker 1\Merolapok\ | G85: 1903110050 | H85: 2019 | I85: 3 | J85: 11 | K85: 00 | L85: 50 | N85: 2019 | O85: 3 | P85: 11 | Q85: 0 | R85: 50 | S85: Ejszaka | T85: 190311 | U85: 19031000
A86: Mérőlap_MSE4_A1_1903110357.pdf | B86: .pdf | C86: 2019-07-18T07:27:10.268 | D86: 2019-03-11T03:58:12.809 | E86: 2019-07-18T07:27:09.970 | F86: U:\Merolapok motorsor\Anker 1\Merolapok\ | G86: 1903110357 | H86: 2019 | I86: 3 | J86: 11 | K86: 03 | L86: 57 | N86: 2019 | O86: 3 | P86: 11 | Q86: 3 | R86: 57 | S86: Ejszaka | T86: 190311 | U86: 19031000
A87: Mérőlap_MSE4_A1_1903191831.pdf | B87: .pdf | C87: 2019-07-18T07:27:11.235 | D87: 2019-03-19T18:33:11.289 | E87: 2019-07-18T07:27:10.884 | F87: U:\Merolapok motorsor\Anker 1\Merolapok\ | G87: 1903191831 | H87: 2019 | I87: 3 | J87: 19 | K87: 18 | L87: 31 | N87: 2019 | O87: 3 | P87: 19 | Q87: 18 | R87: 31 | S87: Ejszaka | T87: 190319 | U87: 19031900
A88: Mérőlap_MSE4_A1_1903192149.pdf | B88: .pdf | C88: 2019-07-18T07:27:12.171 | D88: 2019-03-19T21:50:12.044 | E88: 2019-07-18T07:27:11.893 | F88: U:\Merolapok motorsor\Anker 1\Merolapok\ | G88: 1903192149 | H88: 2019 | I88: 3 | J88: 19 | K88: 21 | L88: 49 | N88: 2019 | O88: 3 | P88: 19 | Q88: 21 | R88: 49 | S88: Ejszaka | T88: 190319 | U88: 19031900
A89: Mérőlap_MSE4_A1_1903200215.pdf | B89: .pdf | C89: 2019-07-18T07:27:13.205 | D89: 2019-03-20T02:17:12.086 | E89: 2019-07-18T07:27:12.922 | F89: U:\Merolapok motorsor\Anker 1\Merolapok\ | G89: 1903200215 | H89: 2019 | I89: 3 | J89: 20 | K89: 02 | L89: 15 | N89: 2019 | O89: 3 | P89: 20 | Q89: 2 | R89: 15 | S89: Ejszaka | T89: 190320 | U89: 19031900
A90: Mérőlap_MSE4_A1_1903200442.pdf | B90: .pdf | C90: 2019-07-18T07:27:14.314 | D90: 2019-03-20T04:43:14.477 | E90: 2019-07-18T07:27:13.894 | F90: U:\Merolapok motorsor\Anker 1\Merolapok\ | G90: 1903200442 | H90: 2019 | I90: 3 | J90: 20 | K90: 04 | L90: 42 | N90: 2019 | O90: 3 | P90: 20 | Q90: 4 | R90: 42 | S90: Ejszaka | T90: 190320 | U90: 19031900
A91: Mérőlap_MSE4_A1_1903220633.pdf | B91: .pdf | C91: 2019-07-18T07:27:15.358 | D91: 2019-03-22T06:34:47.577 | E91: 2019-07-18T07:27:15.042 | F91: U:\Merolapok motorsor\Anker 1\Merolapok\ | G91: 1903220633 | H91: 2019 | I91: 3 | J91: 22 | K91: 06 | L91: 33 | N91: 2019 | O91: 3 | P91: 22 | Q91: 6 | R91: 33 | S91: Nappal | T91: 190322 | U91: 1903220
A92: Mérőlap_MSE4_A1_1903220905.pdf | B92: .pdf | C92: 2019-07-18T07:27:16.262 | D92: 2019-03-22T09:06:30.333 | E92: 2019-07-18T07:27:15.986 | F92: U:\Merolapok motorsor\Anker 1\Merolapok\ | G92: 1903220905 | H92: 2019 | I92: 3 | J92: 22 | K92: 09 | L92: 05 | N92: 2019 | O92: 3 | P92: 22 | Q92: 9 | R92: 5 | S92: Nappal | T92: 190322 | U92: 1903220
A93: Mérőlap_MSE4_A1_1903221031.pdf | B93: .pdf | C93: 2019-07-18T07:27:17.133 | D93: 2019-03-22T10:32:16.759 | E93: 2019-07-18T07:27:16.886 | F93: U:\Merolapok motorsor\Anker 1\Merolapok\ | G93: 1903221031 | H93: 2019 | I93: 3 | J93: 22 | K93: 10 | L93: 31 | N93: 2019 | O93: 3 | P93: 22 | Q93: 10 | R93: 31 | S93: Nappal | T93: 190322 | U93: 1903220
A94: Mérőlap_MSE4_A1_1903221421.pdf | B94: .pdf | C94: 2019-07-18T07:27:18.013 | D94: 2019-03-22T14:22:27.251 | E94: 2019-07-18T07:27:17.779 | F94: U:\Merolapok motorsor\Anker 1\Merolapok\ | G94: 1903221421 | H94: 2019 | I94: 3 | J94: 22 | K94: 14 | L94: 21 | N94: 2019 | O94: 3 | P94: 22 | Q94: 14 | R94: 21 | S94: Nappal | T94: 190322 | U94: 1903220
A95: Mérőlap_MSE4_A1_1903261940.pdf | B95: .pdf | C95: 2019-07-18T07:27:18.858 | D95: 2019-03-26T19:42:34.292 | E95: 2019-07-18T07:27:18.610 | F95: U:\Merolapok motorsor\Anker 1\Merolapok\ | G95: 1903261940 | H95: 2019 | I95: 3 | J95: 26 | K95: 19 | L95: 40 | N95: 2019 | O95: 3 | P95: 26 | Q95: 19 | R95: 40 | S95: Ejszaka | T95: 190326 | U95: 19032600
A96: Mérőlap_MSE4_A1_1903262158.pdf | B96: .pdf | C96: 2019-07-18T07:27:19.753 | D96: 2019-03-26T21:59:39.417 | E96: 2019-07-18T07:27:19.508 | F96: U:\Merolapok motorsor\Anker 1\Merolapok\ | G96: 1903262158 | H96: 2019 | I96: 3 | J96: 26 | K96: 21 | L96: 58 | N96: 2019 | O96: 3 | P96: 26 | Q96: 21 | R96: 58 | S96: Ejszaka | T96: 190326 | U96: 19032600
A97: Mérőlap_MSE4_A1_1903270038.pdf | B97: .pdf | C97: 2019-07-18T07:27:20.657 | D97: 2019-03-27T00:38:57.973 | E97: 2019-07-18T07:27:20.317 | F97: U:\Merolapok motorsor\Anker 1\Merolapok\ | G97: 1903270038 | H97: 2019 | I97: 3 | J97: 27 | K97: 00 | L97: 38 | N97: 2019 | O97: 3 | P97: 27 | Q97: 0 | R97: 38 | S97: Ejszaka | T97: 190327 | U97: 19032600
A98: Mérőlap_MSE4_A1_1903270207.pdf | B98: .pdf | C98: 2019-07-18T07:27:21.548 | D98: 2019-03-27T02:08:08.914 | E98: 2019-07-18T07:27:21.261 | F98: U:\Merolapok motorsor\Anker 1\Merolapok\ | G98: 1903270207 | H98: 2019 | I98: 3 | J98: 27 | K98: 02 | L98: 07 | N98: 2019 | O98: 3 | P98: 27 | Q98: 2 | R98: 7 | S98: Ejszaka | T98: 190327 | U98: 19032600
A99: Mérőlap_MSE4_A1_1903300643.pdf | B99: .pdf | C99: 2019-07-18T07:27:22.535 | D99: 2019-03-30T06:44:17.762 | E99: 2019-07-18T07:27:22.235 | F99: U:\Merolapok motorsor\Anker 1\Merolapok\ | G99: 1903300643 | H99: 2019 | I99: 3 | J99: 30 | K99: 06 | L99: 43 | N99: 2019 | O99: 3 | P99: 30 | Q99: 6 | R99: 43 | S99: Nappal | T99: 190330 | U99: 1903300
A100: Mérőlap_MSE4_A1_1903300833.pdf | B100: .pdf | C100: 2019-07-18T07:27:23.934 | D100: 2019-03-30T08:35:42.099 | E100: 2019-07-18T07:27:23.536 | F100: U:\Merolapok motorsor\Anker 1\Merolapok\ | G100: 1903300833 | H100: 2019 | I100: 3 | J100: 30 | K100: 08 | L100: 33 | N100: 2019 | O100: 3 | P100: 30 | Q100: 8 | R100: 33 | S100: Nappal | T100: 190330 | U100: 1903300
A101: Mérőlap_MSE4_A1_1904031828.pdf | B101: .pdf | C101: 2019-07-18T07:27:24.926 | D101: 2019-04-03T18:29:38.358 | E101: 2019-07-18T07:27:24.538 | F101: U:\Merolapok motorsor\Anker 1\Merolapok\ | G101: 1904031828 | H101: 2019 | I101: 4 | J101: 03 | K101: 18 | L101: 28 | N101: 2019 | O101: 4 | P101: 3 | Q101: 18 | R101: 28 | S101: Ejszaka | T101: 190403 | U101: 19040300
A102: Mérőlap_MSE4_A1_1904032000.pdf | B102: .pdf | C102: 2019-07-18T07:27:25.852 | D102: 2019-04-03T20:01:11.667 | E102: 2019-07-18T07:27:25.512 | F102: U:\Merolapok motorsor\Anker 1\Merolapok\ | G102: 1904032000 | H102: 2019 | I102: 4 | J102: 03 | K102: 20 | L102: 00 | N102: 2019 | O102: 4 | P102: 3 | Q102: 20 | R102: 0 | S102: Ejszaka | T102: 190403 | U102: 19040300
A103: Mérőlap_MSE4_A1_1904032228.pdf | B103: .pdf | C103: 2019-07-18T07:27:26.871 | D103: 2019-04-03T22:29:48.792 | E103: 2019-07-18T07:27:26.531 | F103: U:\Merolapok motorsor\Anker 1\Merolapok\ | G103: 1904032228 | H103: 2019 | I103: 4 | J103: 03 | K103: 22 | L103: 28 | N103: 2019 | O103: 4 | P103: 3 | Q103: 22 | R103: 28 | S103: Ejszaka | T103: 190403 | U103: 19040300
A104: Mérőlap_MSE4_A1_1904040224.pdf | B104: .pdf | C104: 2019-07-18T07:27:27.750 | D104: 2019-04-04T02:24:59.592 | E104: 2019-07-18T07:27:27.453 | F104: U:\Merolapok motorsor\Anker 1\Merolapok\ | G104: 1904040224 | H104: 2019 | I104: 4 | J104: 04 | K104: 02 | L104: 24 | N104: 2019 | O104: 4 | P104: 4 | Q104: 2 | R104: 24 | S104: Ejszaka | T104: 190404 | U104: 19040300
A105: Mérőlap_MSE4_A1_1904040429.pdf | B105: .pdf | C105: 2019-07-18T07:27:28.634 | D105: 2019-04-04T04:30:29.246 | E105: 2019-07-18T07:27:28.360 | F105: U:\Merolapok motorsor\Anker 1\Merolapok\ | G105: 1904040429 | H105: 2019 | I105: 4 | J105: 04 | K105: 04 | L105: 29 | N105: 2019 | O105: 4 | P105: 4 | Q105: 4 | R105: 29 | S105: Ejszaka | T105: 190404 | U105: 19040300
A106: Mérőlap_MSE4_A1_1904070623.pdf | B106: .pdf | C106: 2019-07-18T07:27:29.788 | D106: 2019-04-07T06:24:10.753 | E106: 2019-07-18T07:27:29.470 | F106: U:\Merolapok motorsor\Anker 1\Merolapok\ | G106: 1904070623 | H106: 2019 | I106: 4 | J106: 07 | K106: 06 | L106: 23 | N106: 2019 | O106: 4 | P106: 7 | Q106: 6 | R106: 23 | S106: Nappal | T106: 190407 | U106: 1904070
A107: Mérőlap_MSE4_A1_1904070801.pdf | B107: .pdf | C107: 2019-07-18T07:27:30.664 | D107: 2019-04-07T08:02:22.831 | E107: 2019-07-18T07:27:30.395 | F107: U:\Merolapok motorsor\Anker 1\Merolapok\ | G107: 1904070801 | H107: 2019 | I107: 4 | J107: 07 | K107: 08 | L107: 01 | N107: 2019 | O107: 4 | P107: 7 | Q107: 8 | R107: 1 | S107: Nappal | T107: 190407 | U107: 1904070
A108: Mérőlap_MSE4_A1_1904070951.pdf | B108: .pdf | C108: 2019-07-18T07:27:31.601 | D108: 2019-04-07T09:52:11.432 | E108: 2019-07-18T07:27:31.255 | F108: U:\Merolapok motorsor\Anker 1\Merolapok\ | G108: 1904070951 | H108: 2019 | I108: 4 | J108: 07 | K108: 09 | L108: 51 | N108: 2019 | O108: 4 | P108: 7 | Q108: 9 | R108: 51 | S108: Nappal | T108: 190407 | U108: 1904070
A109: Mérőlap_MSE4_A1_1904071232.pdf | B109: .pdf | C109: 2019-07-18T07:27:32.527 | D109: 2019-04-07T12:33:45.126 | E109: 2019-07-18T07:27:32.238 | F109: U:\Merolapok motorsor\Anker 1\Merolapok\ | G109: 1904071232 | H109: 2019 | I109: 4 | J109: 07 | K109: 12 | L109: 32 | N109: 2019 | O109: 4 | P109: 7 | Q109: 12 | R109: 32 | S109: Nappal | T109: 190407 | U109: 1904070
A110: Mérőlap_MSE4_A1_1904071425.pdf | B110: .pdf | C110: 2019-07-18T07:27:33.421 | D110: 2019-04-07T14:26:12.508 | E110: 2019-07-18T07:27:33.156 | F110: U:\Merolapok motorsor\Anker 1\Merolapok\ | G110: 1904071425 | H110: 2019 | I110: 4 | J110: 07 | K110: 14 | L110: 25 | N110: 2019 | O110: 4 | P110: 7 | Q110: 14 | R110: 25 | S110: Nappal | T110: 190407 | U110: 1904070
A111: Mérőlap_MSE4_A1_1904071623.pdf | B111: .pdf | C111: 2019-07-18T07:27:34.271 | D111: 2019-04-07T16:24:45.799 | E111: 2019-07-18T07:27:33.968 | F111: U:\Merolapok motorsor\Anker 1\Merolapok\ | G111: 1904071623 | H111: 2019 | I111: 4 | J111: 07 | K111: 16 | L111: 23 | N111: 2019 | O111: 4 | P111: 7 | Q111: 16 | R111: 23 | S111: Nappal | T111: 190407 | U111: 1904070
A112: Mérőlap_MSE4_A1_1904080802.pdf | B112: .pdf | C112: 2019-07-18T07:27:35.156 | D112: 2019-04-08T08:03:36.477 | E112: 2019-07-18T07:27:34.873 | F112: U:\Merolapok motorsor\Anker 1\Merolapok\ | G112: 1904080802 | H112: 2019 | I112: 4 | J112: 08 | K112: 08 | L112: 02 | N112: 2019 | O112: 4 | P112: 8 | Q112: 8 | R112: 2 | S112: Nappal | T112: 190408 | U112: 1904080
A113: Mérőlap_MSE4_A1_1904081010.pdf | B113: .pdf | C113: 2019-07-18T07:27:36.135 | D113: 2019-04-08T10:11:23.665 | E113: 2019-07-18T07:27:35.768 | F113: U:\Merolapok motorsor\Anker 1\Merolapok\ | G113: 1904081010 | H113: 2019 | I113: 4 | J113: 08 | K113: 10 | L113: 10 | N113: 2019 | O113: 4 | P113: 8 | Q113: 10 | R113: 10 | S113: Nappal | T113: 190408 | U113: 1904080
A114: Mérőlap_MSE4_A1_1904081207.pdf | B114: .pdf | C114: 2019-07-18T07:27:37.021 | D114: 2019-04-08T12:11:36.694 | E114: 2019-07-18T07:27:36.768 | F114: U:\Merolapok motorsor\Anker 1\Merolapok\ | G114: 1904081207 | H114: 2019 | I114: 4 | J114: 08 | K114: 12 | L114: 07 | N114: 2019 | O114: 4 | P114: 8 | Q114: 12 | R114: 7 | S114: Nappal | T114: 190408 | U114: 1904080
A115: Mérőlap_MSE4_A1_1904081615.pdf | B115: .pdf | C115: 2019-07-18T07:27:38.008 | D115: 2019-04-08T16:16:36.555 | E115: 2019-07-18T07:27:37.645 | F115: U:\Merolapok motorsor\Anker 1\Merolapok\ | G115: 1904081615 | H115: 2019 | I115: 4 | J115: 08 | K115: 16 | L115: 15 | N115: 2019 | O115: 4 | P115: 8 | Q115: 16 | R115: 15 | S115: Nappal | T115: 190408 | U115: 1904080
A116: Mérőlap_MSE4_A1_1904121855.pdf | B116: .pdf | C116: 2019-07-18T07:27:39.058 | D116: 2019-04-12T18:56:19.742 | E116: 2019-07-18T07:27:38.751 | F116: U:\Merolapok motorsor\Anker 1\Merolapok\ | G116: 1904121855 | H116: 2019 | I116: 4 | J116: 12 | K116: 18 | L116: 55 | N116: 2019 | O116: 4 | P116: 12 | Q116: 18 | R116: 55 | S116: Ejszaka | T116: 190412 | U116: 19041200
A117: Mérőlap_MSE4_A1_1904122037.pdf | B117: .pdf | C117: 2019-07-18T07:27:40.087 | D117: 2019-04-12T20:38:58.426 | E117: 2019-07-18T07:27:39.777 | F117: U:\Merolapok motorsor\Anker 1\Merolapok\ | G117: 1904122037 | H117: 2019 | I117: 4 | J117: 12 | K117: 20 | L117: 37 | N117: 2019 | O117: 4 | P117: 12 | Q117: 20 | R117: 37 | S117: Ejszaka | T117: 190412 | U117: 19041200
A118: Mérőlap_MSE4_A1_1904130215.pdf | B118: .pdf | C118: 2019-07-18T07:27:41.616 | D118: 2019-04-13T02:16:35.962 | E118: 2019-07-18T07:27:41.183 | F118: U:\Merolapok motorsor\Anker 1\Merolapok\ | G118: 1904130215 | H118: 2019 | I118: 4 | J118: 13 | K118: 02 | L118: 15 | N118: 2019 | O118: 4 | P118: 13 | Q118: 2 | R118: 15 | S118: Ejszaka | T118: 190413 | U118: 19041200
A119: Mérőlap_MSE4_A1_1904130359.pdf | B119: .pdf | C119: 2019-07-18T07:27:42.826 | D119: 2019-04-13T04:00:22.469 | E119: 2019-07-18T07:27:42.318 | F119: U:\Merolapok motorsor\Anker 1\Merolapok\ | G119: 1904130359 | H119: 2019 | I119: 4 | J119: 13 | K119: 03 | L119: 59 | N119: 2019 | O119: 4 | P119: 13 | Q119: 3 | R119: 59 | S119: Ejszaka | T119: 190413 | U119: 19041200
A120: Mérőlap_MSE4_A1_1904150625.pdf | B120: .pdf | C120: 2019-07-18T07:27:44.365 | D120: 2019-04-15T06:26:31.643 | E120: 2019-07-18T07:27:43.351 | F120: U:\Merolapok motorsor\Anker 1\Merolapok\ | G120: 1904150625 | H120: 2019 | I120: 4 | J120: 15 | K120: 06 | L120: 25 | N120: 2019 | O120: 4 | P120: 15 | Q120: 6 | R120: 25 | S120: Nappal | T120: 190415 | U120: 1904150
A121: Mérőlap_MSE4_A1_1904151001.pdf | B121: .pdf | C121: 2019-07-18T07:27:47.553 | D121: 2019-04-15T10:02:40.796 | E121: 2019-07-18T07:27:45.636 | F121: U:\Merolapok motorsor\Anker 1\Merolapok\ | G121: 1904151001 | H121: 2019 | I121: 4 | J121: 15 | K121: 10 | L121: 01 | N121: 2019 | O121: 4 | P121: 15 | Q121: 10 | R121: 1 | S121: Nappal | T121: 190415 | U121: 1904150
A122: Mérőlap_MSE4_A1_1904151615.pdf | B122: .pdf | C122: 2019-07-18T07:27:49.107 | D122: 2019-04-15T16:16:33.513 | E122: 2019-07-18T07:27:48.791 | F122: U:\Merolapok motorsor\Anker 1\Merolapok\ | G122: 1904151615 | H122: 2019 | I122: 4 | J122: 15 | K122: 16 | L122: 15 | N122: 2019 | O122: 4 | P122: 15 | Q122: 16 | R122: 15 | S122: Nappal | T122: 190415 | U122: 1904150
A123: Mérőlap_MSE4_A1_1904161513.pdf | B123: .pdf | C123: 2019-07-18T07:27:50.122 | D123: 2019-04-16T15:13:02.044 | E123: 2019-07-18T07:27:49.904 | F123: U:\Merolapok motorsor\Anker 1\Merolapok\ | G123: 1904161513 | H123: 2019 | I123: 4 | J123: 16 | K123: 15 | L123: 13 | N123: 2019 | O123: 4 | P123: 16 | Q123: 15 | R123: 13 | S123: Nappal | T123: 190416 | U123: 1904160
A124: Mérőlap_MSE4_A1_1904230742.pdf | B124: .pdf | C124: 2019-07-18T07:27:51.931 | D124: 2019-04-23T07:44:04.860 | E124: 2019-07-18T07:27:51.602 | F124: U:\Merolapok motorsor\Anker 1\Merolapok\ | G124: 1904230742 | H124: 2019 | I124: 4 | J124: 23 | K124: 07 | L124: 42 | N124: 2019 | O124: 4 | P124: 23 | Q124: 7 | R124: 42 | S124: Nappal | T124: 190423 | U124: 1904230
A125: Mérőlap_MSE4_A1_1904231417.pdf | B125: .pdf | C125: 2019-07-18T07:27:53.221 | D125: 2019-04-23T14:17:53.926 | E125: 2019-07-18T07:27:53.045 | F125: U:\Merolapok motorsor\Anker 1\Merolapok\ | G125: 1904231417 | H125: 2019 | I125: 4 | J125: 23 | K125: 14 | L125: 17 | N125: 2019 | O125: 4 | P125: 23 | Q125: 14 | R125: 17 | S125: Nappal | T125: 190423 | U125: 1904230
A126: Mérőlap_MSE4_A1_1904231644.pdf | B126: .pdf | C126: 2019-07-18T07:27:53.999 | D126: 2019-04-23T16:48:24.226 | E126: 2019-07-18T07:27:53.754 | F126: U:\Merolapok motorsor\Anker 1\Merolapok\ | G126: 1904231644 | H126: 2019 | I126: 4 | J126: 23 | K126: 16 | L126: 44 | N126: 2019 | O126: 4 | P126: 23 | Q126: 16 | R126: 44 | S126: Nappal | T126: 190423 | U126: 1904230
A127: Mérőlap_MSE4_A1_1904240631.pdf | B127: .pdf | C127: 2019-07-18T07:27:54.956 | D127: 2019-04-24T06:32:57.121 | E127: 2019-07-18T07:27:54.620 | F127: U:\Merolapok motorsor\Anker 1\Merolapok\ | G127: 1904240631 | H127: 2019 | I127: 4 | J127: 24 | K127: 06 | L127: 31 | N127: 2019 | O127: 4 | P127: 24 | Q127: 6 | R127: 31 | S127: Nappal | T127: 190424 | U127: 1904240
A128: Mérőlap_MSE4_A1_1904240839.pdf | B128: .pdf | C128: 2019-07-18T07:27:55.943 | D128: 2019-04-24T08:40:17.497 | E128: 2019-07-18T07:27:55.557 | F128: U:\Merolapok motorsor\Anker 1\Merolapok\ | G128: 1904240839 | H128: 2019 | I128: 4 | J128: 24 | K128: 08 | L128: 39 | N128: 2019 | O128: 4 | P128: 24 | Q128: 8 | R128: 39 | S128: Nappal | T128: 190424 | U128: 1904240
A129: Mérőlap_MSE4_A1_1904241220.pdf | B129: .pdf | C129: 2019-07-18T07:27:56.947 | D129: 2019-04-24T12:21:46.322 | E129: 2019-07-18T07:27:56.715 | F129: U:\Merolapok motorsor\Anker 1\Merolapok\ | G129: 1904241220 | H129: 2019 | I129: 4 | J129: 24 | K129: 12 | L129: 20 | N129: 2019 | O129: 4 | P129: 24 | Q129: 12 | R129: 20 | S129: Nappal | T129: 190424 | U129: 1904240
A130: Mérőlap_MSE4_A1_1904241438.pdf | B130: .pdf | C130: 2019-07-18T07:27:57.825 | D130: 2019-04-24T14:39:55.943 | E130: 2019-07-18T07:27:57.582 | F130: U:\Merolapok motorsor\Anker 1\Merolapok\ | G130: 1904241438 | H130: 2019 | I130: =MID(G130,4,1) -> 4 | J130: =MID(G130,5,2) -> 24 | K130: =MID(G130,7,2) -> 14 | L130: =MID(G130,9,2) -> 38 | N130: 2019 | O130: 4 | P130: 24 | Q130: 14 | R130: 38 | S130: Nappal | T130: =MID(G130,1,6) -> 190424 | U130: 1904240
A131: Mérőlap_MSE4_A1_1904271824.pdf | B131: .pdf | C131: 2019-07-18T07:27:58.892 | D131: 2019-04-27T18:25:22.533 | E131: 2019-07-18T07:27:58.579 | F131: U:\Merolapok motorsor\Anker 1\Merolapok\ | G131: =MID(A131,17,10) -> 1904271824 | H131: 2019 | I131: 4 | J131: 27 | K131: 18 | L131: 24 | N131: 2019 | O131: 4 | P131: 27 | Q131: 18 | R131: 24 | S131: =IF(Q131<6,"Ejszaka",IF(Q131<18,"Nappal","Ejszaka")) -> Ejszaka | T131: 190427 | U131: =IF(S131="Nappal",T131*10,IF(Q131<6,T131*100-100,T131*100)) -> 19042700
A132: Mérőlap_MSE4_A1_1904272137.pdf | B132: .pdf | C132: 2019-07-18T07:28:00.069 | D132: 2019-04-27T21:38:30.841 | E132: 2019-07-18T07:27:59.754 | F132: U:\Merolapok motorsor\Anker 1\Merolapok\ | G132: 1904272137 | H132: 2019 | I132: 4 | J132: 27 | K132: 21 | L132: 37 | N132: 2019 | O132: 4 | P132: 27 | Q132: 21 | R132: 37 | S132: Ejszaka | T132: 190427 | U132: 19042700
A133: Mérőlap_MSE4_A1_1904280030.pdf | B133: .pdf | C133: 2019-07-18T07:28:01.261 | D133: 2019-04-28T00:31:48.582 | E133: 2019-07-18T07:28:00.861 | F133: U:\Merolapok motorsor\Anker 1\Merolapok\ | G133: 1904280030 | H133: 2019 | I133: 4 | J133: 28 | K133: 00 | L133: 30 | N133: 2019 | O133: 4 | P133: 28 | Q133: 0 | R133: 30 | S133: Ejszaka | T133: 190428 | U133: 19042700
A134: Mérőlap_MSE4_A1_1904280240.pdf | B134: .pdf | C134: 2019-07-18T07:28:02.383 | D134: 2019-04-28T02:41:56.227 | E134: 2019-07-18T07:28:02.054 | F134: U:\Merolapok motorsor\Anker 1\Merolapok\ | G134: 1904280240 | H134: 2019 | I134: 4 | J134: 28 | K134: 02 | L134: 40 | N134: 2019 | O134: 4 | P134: 28 | Q134: 2 | R134: 40 | S134: Ejszaka | T134: 190428 | U134: 19042700
A135: Mérőlap_MSE4_A1_1904281829.pdf | B135: .pdf | C135: 2019-07-18T07:28:03.277 | D135: 2019-04-28T18:30:34.946 | E135: 2019-07-18T07:28:02.990 | F135: U:\Merolapok motorsor\Anker 1\Merolapok\ | G135: 1904281829 | H135: 2019 | I135: 4 | J135: 28 | K135: 18 | L135: 29 | N135: 2019 | O135: 4 | P135: 28 | Q135: 18 | R135: 29 | S135: Ejszaka | T135: 190428 | U135: 19042800
A136: Mérőlap_MSE4_A1_1904282009.pdf | B136: .pdf | C136: 2019-07-18T07:28:04.136 | D136: 2019-04-28T20:10:42.134 | E136: 2019-07-18T07:28:03.851 | F136: U:\Merolapok motorsor\Anker 1\Merolapok\ | G136: 1904282009 | H136: 2019 | I136: 4 | J136: 28 | K136: 20 | L136: 09 | N136: 2019 | O136: 4 | P136: 28 | Q136: 20 | R136: 9 | S136: Ejszaka | T136: 190428 | U136: 19042800
A137: Mérőlap_MSE4_A1_1904282141.pdf | B137: .pdf | C137: 2019-07-18T07:28:05.344 | D137: 2019-04-28T21:43:10.239 | E137: 2019-07-18T07:28:04.734 | F137: U:\Merolapok motorsor\Anker 1\Merolapok\ | G137: 1904282141 | H137: 2019 | I137: 4 | J137: 28 | K137: 21 | L137: 41 | N137: 2019 | O137: 4 | P137: 28 | Q137: 21 | R137: 41 | S137: Ejszaka | T137: 190428 | U137: 19042800
A138: Mérőlap_MSE4_A1_1904290047.pdf | B138: .pdf | C138: 2019-07-18T07:28:06.220 | D138: 2019-04-29T00:48:19.883 | E138: 2019-07-18T07:28:05.945 | F138: U:\Merolapok motorsor\Anker 1\Merolapok\ | G138: 1904290047 | H138: 2019 | I138: 4 | J138: 29 | K138: 00 | L138: 47 | N138: 2019 | O138: 4 | P138: 29 | Q138: 0 | R138: 47 | S138: Ejszaka | T138: 190429 | U138: 19042800
A139: Mérőlap_MSE4_A1_1904290443.pdf | B139: .pdf | C139: 2019-07-18T07:28:07.090 | D139: 2019-04-29T04:44:00.599 | E139: 2019-07-18T07:28:06.813 | F139: U:\Merolapok motorsor\Anker 1\Merolapok\ | G139: 1904290443 | H139: 2019 | I139: 4 | J139: 29 | K139: 04 | L139: 43 | N139: 2019 | O139: 4 | P139: 29 | Q139: 4 | R139: 43 | S139: Ejszaka | T139: 190429 | U139: 19042800
A140: Mérőlap_MSE4_A1_1905020625.pdf | B140: .pdf | C140: 2019-07-18T07:28:08.670 | D140: 2019-05-02T06:26:40.754 | E140: 2019-07-18T07:28:08.344 | F140: U:\Merolapok motorsor\Anker 1\Merolapok\ | G140: 1905020625 | H140: 2019 | I140: 5 | J140: 02 | K140: 06 | L140: 25 | N140: 2019 | O140: 5 | P140: 2 | Q140: 6 | R140: 25 | S140: Nappal | T140: 190502 | U140: 1905020
A141: Mérőlap_MSE4_A1_1905020806.pdf | B141: .pdf | C141: 2019-07-18T07:28:09.671 | D141: 2019-05-02T08:08:23.318 | E141: 2019-07-18T07:28:09.320 | F141: U:\Merolapok motorsor\Anker 1\Merolapok\ | G141: 1905020806 | H141: 2019 | I141: 5 | J141: 02 | K141: 08 | L141: 06 | N141: 2019 | O141: 5 | P141: 2 | Q141: 8 | R141: 6 | S141: Nappal | T141: 190502 | U141: 1905020
A142: Mérőlap_MSE4_A1_1905020951.pdf | B142: .pdf | C142: 2019-07-18T07:28:11.290 | D142: 2019-05-02T09:52:02.949 | E142: 2019-07-18T07:28:10.365 | F142: U:\Merolapok motorsor\Anker 1\Merolapok\ | G142: 1905020951 | H142: 2019 | I142: 5 | J142: 02 | K142: 09 | L142: 51 | N142: 2019 | O142: 5 | P142: 2 | Q142: 9 | R142: 51 | S142: Nappal | T142: 190502 | U142: 1905020
A143: Mérőlap_MSE4_A1_1905021549.pdf | B143: .pdf | C143: 2019-07-18T07:28:12.664 | D143: 2019-05-02T15:50:17.390 | E143: 2019-07-18T07:28:12.348 | F143: U:\Merolapok motorsor\Anker 1\Merolapok\ | G143: 1905021549 | H143: 2019 | I143: 5 | J143: 02 | K143: 15 | L143: 49 | N143: 2019 | O143: 5 | P143: 2 | Q143: 15 | R143: 49 | S143: Nappal | T143: 190502 | U143: 1905020
A144: Mérőlap_MSE4_A1_1905061823.pdf | B144: .pdf | C144: 2019-07-18T07:28:13.788 | D144: 2019-05-06T18:24:52.520 | E144: 2019-07-18T07:28:13.482 | F144: U:\Merolapok motorsor\Anker 1\Merolapok\ | G144: 1905061823 | H144: 2019 | I144: 5 | J144: 06 | K144: 18 | L144: 23 | N144: 2019 | O144: 5 | P144: 6 | Q144: 18 | R144: 23 | S144: Ejszaka | T144: 190506 | U144: 19050600
A145: Mérőlap_MSE4_A1_1905062000.pdf | B145: .pdf | C145: 2019-07-18T07:28:14.827 | D145: 2019-05-06T20:01:06.796 | E145: 2019-07-18T07:28:14.550 | F145: U:\Merolapok motorsor\Anker 1\Merolapok\ | G145: 1905062000 | H145: 2019 | I145: 5 | J145: 06 | K145: 20 | L145: 00 | N145: 2019 | O145: 5 | P145: 6 | Q145: 20 | R145: 0 | S145: Ejszaka | T145: 190506 | U145: 19050600
A146: Mérőlap_MSE4_A1_1905062213.pdf | B146: .pdf | C146: 2019-07-18T07:28:15.950 | D146: 2019-05-06T22:14:43.782 | E146: 2019-07-18T07:28:15.590 | F146: U:\Merolapok motorsor\Anker 1\Merolapok\ | G146: 1905062213 | H146: 2019 | I146: 5 | J146: 06 | K146: 22 | L146: 13 | N146: 2019 | O146: 5 | P146: 6 | Q146: 22 | R146: 13 | S146: Ejszaka | T146: 190506 | U146: 19050600
A147: Mérőlap_MSE4_A1_1905070218.pdf | B147: .pdf | C147: 2019-07-18T07:28:18.426 | D147: 2019-05-07T02:19:41.486 | E147: 2019-07-18T07:28:18.145 | F147: U:\Merolapok motorsor\Anker 1\Merolapok\ | G147: 1905070218 | H147: 2019 | I147: 5 | J147: 07 | K147: 02 | L147: 18 | N147: 2019 | O147: 5 | P147: 7 | Q147: 2 | R147: 18 | S147: Ejszaka | T147: 190507 | U147: 19050600
A148: Mérőlap_MSE4_A1_1905070344.pdf | B148: .pdf | C148: 2019-07-18T07:28:19.582 | D148: 2019-05-07T03:45:50.205 | E148: 2019-07-18T07:28:19.262 | F148: U:\Merolapok motorsor\Anker 1\Merolapok\ | G148: 1905070344 | H148: 2019 | I148: 5 | J148: 07 | K148: 03 | L148: 44 | N148: 2019 | O148: 5 | P148: 7 | Q148: 3 | R148: 44 | S148: Ejszaka | T148: 190507 | U148: 19050600
A149: Mérőlap_MSE4_A1_1905090756.pdf | B149: .pdf | C149: 2019-07-18T07:28:21.064 | D149: 2019-05-09T07:57:00.643 | E149: 2019-07-18T07:28:20.592 | F149: U:\Merolapok motorsor\Anker 1\Merolapok\ | G149: 1905090756 | H149: 2019 | I149: 5 | J149: 09 | K149: 07 | L149: 56 | N149: 2019 | O149: 5 | P149: 9 | Q149: 7 | R149: 56 | S149: Nappal | T149: 190509 | U149: 1905090
A150: Mérőlap_MSE4_A1_1905090949.pdf | B150: .pdf | C150: 2019-07-18T07:28:22.078 | D150: 2019-05-09T09:50:16.159 | E150: 2019-07-18T07:28:21.811 | F150: U:\Merolapok motorsor\Anker 1\Merolapok\ | G150: 1905090949 | H150: 2019 | I150: 5 | J150: 09 | K150: 09 | L150: 49 | N150: 2019 | O150: 5 | P150: 9 | Q150: 9 | R150: 49 | S150: Nappal | T150: 190509 | U150: 1905090
A151: Mérőlap_MSE4_A1_1905091144.pdf | B151: .pdf | C151: 2019-07-18T07:28:23.106 | D151: 2019-05-09T11:45:46.224 | E151: 2019-07-18T07:28:22.830 | F151: U:\Merolapok motorsor\Anker 1\Merolapok\ | G151: 1905091144 | H151: 2019 | I151: 5 | J151: 09 | K151: 11 | L151: 44 | N151: 2019 | O151: 5 | P151: 9 | Q151: 11 | R151: 44 | S151: Nappal | T151: 190509 | U151: 1905090
A152: Mérőlap_MSE4_A1_1905091355.pdf | B152: .pdf | C152: 2019-07-18T07:28:24.364 | D152: 2019-05-09T13:56:52.589 | E152: 2019-07-18T07:28:24.013 | F152: U:\Merolapok motorsor\Anker 1\Merolapok\ | G152: 1905091355 | H152: 2019 | I152: 5 | J152: 09 | K152: 13 | L152: 55 | N152: 2019 | O152: 5 | P152: 9 | Q152: 13 | R152: 55 | S152: Nappal | T152: 190509 | U152: 1905090
A153: Mérőlap_MSE4_A1_1905091558.pdf | B153: .pdf | C153: 2019-07-18T07:28:25.331 | D153: 2019-05-09T15:59:59.432 | E153: 2019-07-18T07:28:25.072 | F153: U:\Merolapok motorsor\Anker 1\Merolapok\ | G153: 1905091558 | H153: 2019 | I153: 5 | J153: 09 | K153: 15 | L153: 58 | N153: 2019 | O153: 5 | P153: 9 | Q153: 15 | R153: 58 | S153: Nappal | T153: 190509 | U153: 1905090
A154: Mérőlap_MSE4_A1_1905110626.pdf | B154: .pdf | C154: 2019-07-18T07:28:26.499 | D154: 2019-05-11T06:27:44.816 | E154: 2019-07-18T07:28:26.098 | F154: U:\Merolapok motorsor\Anker 1\Merolapok\ | G154: 1905110626 | H154: 2019 | I154: 5 | J154: 11 | K154: 06 | L154: 26 | N154: 2019 | O154: 5 | P154: 11 | Q154: 6 | R154: 26 | S154: Nappal | T154: 190511 | U154: 1905110
A155: Mérőlap_MSE4_A1_1905110833.pdf | B155: .pdf | C155: 2019-07-18T07:28:27.646 | D155: 2019-05-11T08:34:10.848 | E155: 2019-07-18T07:28:27.243 | F155: U:\Merolapok motorsor\Anker 1\Merolapok\ | G155: 1905110833 | H155: 2019 | I155: 5 | J155: 11 | K155: 08 | L155: 33 | N155: 2019 | O155: 5 | P155: 11 | Q155: 8 | R155: 33 | S155: Nappal | T155: 190511 | U155: 1905110
A156: Mérőlap_MSE4_A1_1905111006.pdf | B156: .pdf | C156: 2019-07-18T07:28:28.591 | D156: 2019-05-11T10:07:58.741 | E156: 2019-07-18T07:28:28.324 | F156: U:\Merolapok motorsor\Anker 1\Merolapok\ | G156: 1905111006 | H156: 2019 | I156: 5 | J156: 11 | K156: 10 | L156: 06 | N156: 2019 | O156: 5 | P156: 11 | Q156: 10 | R156: 6 | S156: Nappal | T156: 190511 | U156: 1905110
A157: Mérőlap_MSE4_A1_1905111416.pdf | B157: .pdf | C157: 2019-07-18T07:28:30.459 | D157: 2019-05-11T14:18:10.147 | E157: 2019-07-18T07:28:29.480 | F157: U:\Merolapok motorsor\Anker 1\Merolapok\ | G157: 1905111416 | H157: 2019 | I157: 5 | J157: 11 | K157: 14 | L157: 16 | N157: 2019 | O157: 5 | P157: 11 | Q157: 14 | R157: 16 | S157: Nappal | T157: 190511 | U157: 1905110
A158: Mérőlap_MSE4_A1_1905111626.pdf | B158: .pdf | C158: 2019-07-18T07:28:31.555 | D158: 2019-05-11T16:28:02.789 | E158: 2019-07-18T07:28:31.228 | F158: U:\Merolapok motorsor\Anker 1\Merolapok\ | G158: 1905111626 | H158: 2019 | I158: 5 | J158: 11 | K158: 16 | L158: 26 | N158: 2019 | O158: 5 | P158: 11 | Q158: 16 | R158: 26 | S158: Nappal | T158: 190511 | U158: 1905110
A159: Mérőlap_MSE4_A1_1905131838.pdf | B159: .pdf | C159: 2019-07-18T07:28:32.693 | D159: 2019-05-13T18:39:08.880 | E159: 2019-07-18T07:28:32.249 | F159: U:\Merolapok motorsor\Anker 1\Merolapok\ | G159: 1905131838 | H159: 2019 | I159: 5 | J159: 13 | K159: 18 | L159: 38 | N159: 2019 | O159: 5 | P159: 13 | Q159: 18 | R159: 38 | S159: Ejszaka | T159: 190513 | U159: 19051300
A160: Mérőlap_MSE4_A1_1905132223.pdf | B160: .pdf | C160: 2019-07-18T07:28:33.731 | D160: 2019-05-13T22:24:36.972 | E160: 2019-07-18T07:28:33.376 | F160: U:\Merolapok motorsor\Anker 1\Merolapok\ | G160: 1905132223 | H160: 2019 | I160: 5 | J160: 13 | K160: 22 | L160: 23 | N160: 2019 | O160: 5 | P160: 13 | Q160: 22 | R160: 23 | S160: Ejszaka | T160: 190513 | U160: 19051300
A161: Mérőlap_MSE4_A1_1905140022.pdf | B161: .pdf | C161: 2019-07-18T07:28:34.865 | D161: 2019-05-14T00:23:28.920 | E161: 2019-07-18T07:28:34.402 | F161: U:\Merolapok motorsor\Anker 1\Merolapok\ | G161: 1905140022 | H161: 2019 | I161: 5 | J161: 14 | K161: 00 | L161: 22 | N161: 2019 | O161: 5 | P161: 14 | Q161: 0 | R161: 22 | S161: Ejszaka | T161: 190514 | U161: 19051300
A162: Mérőlap_MSE4_A1_1905140233.pdf | B162: .pdf | C162: 2019-07-18T07:28:36.086 | D162: 2019-05-14T02:34:39.358 | E162: 2019-07-18T07:28:35.696 | F162: U:\Merolapok motorsor\Anker 1\Merolapok\ | G162: 1905140233 | H162: 2019 | I162: 5 | J162: 14 | K162: 02 | L162: 33 | N162: 2019 | O162: 5 | P162: 14 | Q162: 2 | R162: 33 | S162: Ejszaka | T162: 190514 | U162: 19051300
A163: Mérőlap_MSE4_A1_1905170616.pdf | B163: .pdf | C163: 2019-07-18T07:28:37.004 | D163: 2019-05-17T06:17:41.734 | E163: 2019-07-18T07:28:36.651 | F163: U:\Merolapok motorsor\Anker 1\Merolapok\ | G163: 1905170616 | H163: 2019 | I163: 5 | J163: 17 | K163: 06 | L163: 16 | N163: 2019 | O163: 5 | P163: 17 | Q163: 6 | R163: 16 | S163: Nappal | T163: 190517 | U163: 1905170
A164: Mérőlap_MSE4_A1_1905170803.pdf | B164: .pdf | C164: 2019-07-18T07:28:38.058 | D164: 2019-05-17T08:04:19.569 | E164: 2019-07-18T07:28:37.613 | F164: U:\Merolapok motorsor\Anker 1\Merolapok\ | G164: 1905170803 | H164: 2019 | I164: 5 | J164: 17 | K164: 08 | L164: 03 | N164: 2019 | O164: 5 | P164: 17 | Q164: 8 | R164: 3 | S164: Nappal | T164: 190517 | U164: 1905170
A165: Mérőlap_MSE4_A1_1905171023.pdf | B165: .pdf | C165: 2019-07-18T07:28:38.862 | D165: 2019-05-17T10:24:04.312 | E165: 2019-07-18T07:28:38.592 | F165: U:\Merolapok motorsor\Anker 1\Merolapok\ | G165: 1905171023 | H165: 2019 | I165: 5 | J165: 17 | K165: 10 | L165: 23 | N165: 2019 | O165: 5 | P165: 17 | Q165: 10 | R165: 23 | S165: Nappal | T165: 190517 | U165: 1905170
A166: Mérőlap_MSE4_A1_1905171153.pdf | B166: .pdf | C166: 2019-07-18T07:28:39.680 | D166: 2019-05-17T11:54:14.243 | E166: 2019-07-18T07:28:39.385 | F166: U:\Merolapok motorsor\Anker 1\Merolapok\ | G166: 1905171153 | H166: 2019 | I166: 5 | J166: 17 | K166: 11 | L166: 53 | N166: 2019 | O166: 5 | P166: 17 | Q166: 11 | R166: 53 | S166: Nappal | T166: 190517 | U166: 1905170
A167: Mérőlap_MSE4_A1_1905171547.pdf | B167: .pdf | C167: 2019-07-18T07:28:41.270 | D167: 2019-05-17T15:48:42.052 | E167: 2019-07-18T07:28:40.210 | F167: U:\Merolapok motorsor\Anker 1\Merolapok\ | G167: 1905171547 | H167: 2019 | I167: 5 | J167: 17 | K167: 15 | L167: 47 | N167: 2019 | O167: 5 | P167: 17 | Q167: 15 | R167: 47 | S167: Nappal | T167: 190517 | U167: 1905170
A168: Mérőlap_MSE4_A1_1905180614.pdf | B168: .pdf | C168: 2019-07-18T07:28:42.688 | D168: 2019-05-18T06:15:34.974 | E168: 2019-07-18T07:28:42.316 | F168: U:\Merolapok motorsor\Anker 1\Merolapok\ | G168: 1905180614 | H168: 2019 | I168: 5 | J168: 18 | K168: 06 | L168: 14 | N168: 2019 | O168: 5 | P168: 18 | Q168: 6 | R168: 14 | S168: Nappal | T168: 190518 | U168: 1905180
A169: Mérőlap_MSE4_A1_1905180800.pdf | B169: .pdf | C169: 2019-07-18T07:28:43.526 | D169: 2019-05-18T08:01:55.429 | E169: 2019-07-18T07:28:43.309 | F169: U:\Merolapok motorsor\Anker 1\Merolapok\ | G169: 1905180800 | H169: 2019 | I169: 5 | J169: 18 | K169: 08 | L169: 00 | N169: 2019 | O169: 5 | P169: 18 | Q169: 8 | R169: 0 | S169: Nappal | T169: 190518 | U169: 1905180
A170: Mérőlap_MSE4_A1_1905181341.pdf | B170: .pdf | C170: 2019-07-18T07:28:44.334 | D170: 2019-05-18T13:42:34.696 | E170: 2019-07-18T07:28:44.022 | F170: U:\Merolapok motorsor\Anker 1\Merolapok\ | G170: 1905181341 | H170: 2019 | I170: 5 | J170: 18 | K170: 13 | L170: 41 | N170: 2019 | O170: 5 | P170: 18 | Q170: 13 | R170: 41 | S170: Nappal | T170: 190518 | U170: 1905180
A171: Mérőlap_MSE4_A1_1905181612.pdf | B171: .pdf | C171: 2019-07-18T07:28:45.102 | D171: 2019-05-18T16:13:08.445 | E171: 2019-07-18T07:28:44.866 | F171: U:\Merolapok motorsor\Anker 1\Merolapok\ | G171: 1905181612 | H171: 2019 | I171: 5 | J171: 18 | K171: 16 | L171: 12 | N171: 2019 | O171: 5 | P171: 18 | Q171: 16 | R171: 12 | S171: Nappal | T171: 190518 | U171: 1905180
A172: Mérőlap_MSE4_A1_1905211832.pdf | B172: .pdf | C172: 2019-07-18T07:28:45.963 | D172: 2019-05-21T18:33:12.753 | E172: 2019-07-18T07:28:45.679 | F172: U:\Merolapok motorsor\Anker 1\Merolapok\ | G172: 1905211832 | H172: 2019 | I172: 5 | J172: 21 | K172: 18 | L172: 32 | N172: 2019 | O172: 5 | P172: 21 | Q172: 18 | R172: 32 | S172: Ejszaka | T172: 190521 | U172: 19052100
A173: Mérőlap_MSE4_A1_1905212020.pdf | B173: .pdf | C173: 2019-07-18T07:28:46.783 | D173: 2019-05-21T20:21:56.843 | E173: 2019-07-18T07:28:46.514 | F173: U:\Merolapok motorsor\Anker 1\Merolapok\ | G173: 1905212020 | H173: 2019 | I173: 5 | J173: 21 | K173: 20 | L173: 20 | N173: 2019 | O173: 5 | P173: 21 | Q173: 20 | R173: 20 | S173: Ejszaka | T173: 190521 | U173: 19052100
A174: Mérőlap_MSE4_A1_1905212212.pdf | B174: .pdf | C174: 2019-07-18T07:28:47.728 | D174: 2019-05-21T22:14:17.552 | E174: 2019-07-18T07:28:47.407 | F174: U:\Merolapok motorsor\Anker 1\Merolapok\ | G174: 1905212212 | H174: 2019 | I174: 5 | J174: 21 | K174: 22 | L174: 12 | N174: 2019 | O174: 5 | P174: 21 | Q174: 22 | R174: 12 | S174: Ejszaka | T174: 190521 | U174: 19052100
A175: Mérőlap_MSE4_A1_1905220034.pdf | B175: .pdf | C175: 2019-07-18T07:28:48.750 | D175: 2019-05-22T00:35:13.343 | E175: 2019-07-18T07:28:48.508 | F175: U:\Merolapok motorsor\Anker 1\Merolapok\ | G175: 1905220034 | H175: 2019 | I175: 5 | J175: 22 | K175: 00 | L175: 34 | N175: 2019 | O175: 5 | P175: 22 | Q175: 0 | R175: 34 | S175: Ejszaka | T175: 190522 | U175: 19052100
A176: Mérőlap_MSE4_A1_1905220420.pdf | B176: .pdf | C176: 2019-07-18T07:28:49.720 | D176: 2019-05-22T04:21:43.573 | E176: 2019-07-18T07:28:49.409 | F176: U:\Merolapok motorsor\Anker 1\Merolapok\ | G176: 1905220420 | H176: 2019 | I176: 5 | J176: 22 | K176: 04 | L176: 20 | N176: 2019 | O176: 5 | P176: 22 | Q176: 4 | R176: 20 | S176: Ejszaka | T176: 190522 | U176: 19052100
A177: Mérőlap_MSE4_A1_1905250620.pdf | B177: .pdf | C177: 2019-07-18T07:28:50.704 | D177: 2019-05-25T06:22:00.391 | E177: 2019-07-18T07:28:50.374 | F177: U:\Merolapok motorsor\Anker 1\Merolapok\ | G177: 1905250620 | H177: 2019 | I177: 5 | J177: 25 | K177: 06 | L177: 20 | N177: 2019 | O177: 5 | P177: 25 | Q177: 6 | R177: 20 | S177: Nappal | T177: 190525 | U177: 1905250
A178: Mérőlap_MSE4_A1_1905250813.pdf | B178: .pdf | C178: 2019-07-18T07:28:51.587 | D178: 2019-05-25T08:14:01.985 | E178: 2019-07-18T07:28:51.318 | F178: U:\Merolapok motorsor\Anker 1\Merolapok\ | G178: 1905250813 | H178: 2019 | I178: 5 | J178: 25 | K178: 08 | L178: 13 | N178: 2019 | O178: 5 | P178: 25 | Q178: 8 | R178: 13 | S178: Nappal | T178: 190525 | U178: 1905250
A179: Mérőlap_MSE4_A1_1905251217.pdf | B179: .pdf | C179: 2019-07-18T07:28:53.131 | D179: 2019-05-25T12:19:46.782 | E179: 2019-07-18T07:28:52.195 | F179: U:\Merolapok motorsor\Anker 1\Merolapok\ | G179: 1905251217 | H179: 2019 | I179: 5 | J179: 25 | K179: 12 | L179: 17 | N179: 2019 | O179: 5 | P179: 25 | Q179: 12 | R179: 17 | S179: Nappal | T179: 190525 | U179: 1905250
A180: Mérőlap_MSE4_A1_1905260619.pdf | B180: .pdf | C180: 2019-07-18T07:28:54.265 | D180: 2019-05-26T06:24:41.448 | E180: 2019-07-18T07:28:53.986 | F180: U:\Merolapok motorsor\Anker 1\Merolapok\ | G180: 1905260619 | H180: 2019 | I180: 5 | J180: 26 | K180: 06 | L180: 19 | N180: 2019 | O180: 5 | P180: 26 | Q180: 6 | R180: 19 | S180: Nappal | T180: 190526 | U180: 1905260
A181: Mérőlap_MSE4_A1_1905260804.pdf | B181: .pdf | C181: 2019-07-18T07:28:55.265 | D181: 2019-05-26T08:08:30.211 | E181: 2019-07-18T07:28:54.965 | F181: U:\Merolapok motorsor\Anker 1\Merolapok\ | G181: 1905260804 | H181: 2019 | I181: 5 | J181: 26 | K181: 08 | L181: 04 | N181: 2019 | O181: 5 | P181: 26 | Q181: 8 | R181: 4 | S181: Nappal | T181: 190526 | U181: 1905260
A182: Mérőlap_MSE4_A1_1905261223.pdf | B182: .pdf | C182: 2019-07-18T07:28:56.190 | D182: 2019-05-26T12:24:43.643 | E182: 2019-07-18T07:28:55.921 | F182: U:\Merolapok motorsor\Anker 1\Merolapok\ | G182: 1905261223 | H182: 2019 | I182: 5 | J182: 26 | K182: 12 | L182: 23 | N182: 2019 | O182: 5 | P182: 26 | Q182: 12 | R182: 23 | S182: Nappal | T182: 190526 | U182: 1905260
A183: Mérőlap_MSE4_A1_1905261403.pdf | B183: .pdf | C183: 2019-07-18T07:28:57.180 | D183: 2019-05-26T14:04:34.044 | E183: 2019-07-18T07:28:56.898 | F183: U:\Merolapok motorsor\Anker 1\Merolapok\ | G183: 1905261403 | H183: 2019 | I183: 5 | J183: 26 | K183: 14 | L183: 03 | N183: 2019 | O183: 5 | P183: 26 | Q183: 14 | R183: 3 | S183: Nappal | T183: 190526 | U183: 1905260
A184: Mérőlap_MSE4_A1_1905292228.pdf | B184: .pdf | C184: 2019-07-18T07:28:58.176 | D184: 2019-05-29T22:29:43.008 | E184: 2019-07-18T07:28:57.845 | F184: U:\Merolapok motorsor\Anker 1\Merolapok\ | G184: 1905292228 | H184: 2019 | I184: 5 | J184: 29 | K184: 22 | L184: 28 | N184: 2019 | O184: 5 | P184: 29 | Q184: 22 | R184: 28 | S184: Ejszaka | T184: 190529 | U184: 19052900
A185: Mérőlap_MSE4_A1_1905300032.pdf | B185: .pdf | C185: 2019-07-18T07:28:59.091 | D185: 2019-05-30T00:33:21.890 | E185: 2019-07-18T07:28:58.777 | F185: U:\Merolapok motorsor\Anker 1\Merolapok\ | G185: 1905300032 | H185: 2019 | I185: 5 | J185: 30 | K185: 00 | L185: 32 | N185: 2019 | O185: 5 | P185: 30 | Q185: 0 | R185: 32 | S185: Ejszaka | T185: 190530 | U185: 19052900
A186: Mérőlap_MSE4_A1_1905300205.pdf | B186: .pdf | C186: 2019-07-18T07:29:00.005 | D186: 2019-05-30T02:06:22.909 | E186: 2019-07-18T07:28:59.717 | F186: U:\Merolapok motorsor\Anker 1\Merolapok\ | G186: 1905300205 | H186: 2019 | I186: 5 | J186: 30 | K186: 02 | L186: 05 | N186: 2019 | O186: 5 | P186: 30 | Q186: 2 | R186: 5 | S186: Ejszaka | T186: 190530 | U186: 19052900
A187: Mérőlap_MSE4_A1_1905300428.pdf | B187: .pdf | C187: 2019-07-18T07:29:00.965 | D187: 2019-05-30T04:29:52.177 | E187: 2019-07-18T07:29:00.707 | F187: U:\Merolapok motorsor\Anker 1\Merolapok\ | G187: 1905300428 | H187: 2019 | I187: 5 | J187: 30 | K187: 04 | L187: 28 | N187: 2019 | O187: 5 | P187: 30 | Q187: 4 | R187: 28 | S187: Ejszaka | T187: 190530 | U187: 19052900
A188: Mérőlap_MSE4_A1_1905301835.pdf | B188: .pdf | C188: 2019-07-18T07:29:01.910 | D188: 2019-05-30T18:36:04.077 | E188: 2019-07-18T07:29:01.651 | F188: U:\Merolapok motorsor\Anker 1\Merolapok\ | G188: 1905301835 | H188: 2019 | I188: 5 | J188: 30 | K188: 18 | L188: 35 | N188: 2019 | O188: 5 | P188: 30 | Q188: 18 | R188: 35 | S188: Ejszaka | T188: 190530 | U188: 19053000
A189: Mérőlap_MSE4_A1_1905302008.pdf | B189: .pdf | C189: 2019-07-18T07:29:02.977 | D189: 2019-05-30T20:09:48.568 | E189: 2019-07-18T07:29:02.604 | F189: U:\Merolapok motorsor\Anker 1\Merolapok\ | G189: 1905302008 | H189: 2019 | I189: 5 | J189: 30 | K189: 20 | L189: 08 | N189: 2019 | O189: 5 | P189: 30 | Q189: 20 | R189: 8 | S189: Ejszaka | T189: 190530 | U189: 19053000
A190: Mérőlap_MSE4_A1_1905302226.pdf | B190: .pdf | C190: 2019-07-18T07:29:04.879 | D190: 2019-05-30T22:27:35.638 | E190: 2019-07-18T07:29:04.155 | F190: U:\Merolapok motorsor\Anker 1\Merolapok\ | G190: 1905302226 | H190: 2019 | I190: 5 | J190: 30 | K190: 22 | L190: 26 | N190: 2019 | O190: 5 | P190: 30 | Q190: 22 | R190: 26 | S190: Ejszaka | T190: 190530 | U190: 19053000
A191: Mérőlap_MSE4_A1_1906020627.pdf | B191: .pdf | C191: 2019-07-18T07:29:06.371 | D191: 2019-06-02T06:28:31.163 | E191: 2019-07-18T07:29:05.731 | F191: U:\Merolapok motorsor\Anker 1\Merolapok\ | G191: 1906020627 | H191: 2019 | I191: 6 | J191: 02 | K191: 06 | L191: 27 | N191: 2019 | O191: 6 | P191: 2 | Q191: 6 | R191: 27 | S191: Nappal | T191: 190602 | U191: 1906020
A192: Mérőlap_MSE4_A1_1906021016.pdf | B192: .pdf | C192: 2019-07-18T07:29:07.234 | D192: 2019-06-02T10:24:44.926 | E192: 2019-07-18T07:29:06.973 | F192: U:\Merolapok motorsor\Anker 1\Merolapok\ | G192: 1906021016 | H192: 2019 | I192: 6 | J192: 02 | K192: 10 | L192: 16 | N192: 2019 | O192: 6 | P192: 2 | Q192: 10 | R192: 16 | S192: Nappal | T192: 190602 | U192: 1906020
A193: Mérőlap_MSE4_A1_1906021423.pdf | B193: .pdf | C193: 2019-07-18T07:29:08.264 | D193: 2019-06-02T14:24:23.604 | E193: 2019-07-18T07:29:07.960 | F193: U:\Merolapok motorsor\Anker 1\Merolapok\ | G193: 1906021423 | H193: 2019 | I193: 6 | J193: 02 | K193: 14 | L193: 23 | N193: 2019 | O193: 6 | P193: 2 | Q193: 14 | R193: 23 | S193: Nappal | T193: 190602 | U193: 1906020
A194: Mérőlap_MSE4_A1_1906021620.pdf | B194: .pdf | C194: 2019-07-18T07:29:09.516 | D194: 2019-06-02T16:21:23.537 | E194: 2019-07-18T07:29:09.020 | F194: U:\Merolapok motorsor\Anker 1\Merolapok\ | G194: 1906021620 | H194: 2019 | I194: =MID(G194,4,1) -> 6 | J194: =MID(G194,5,2) -> 02 | K194: =MID(G194,7,2) -> 16 | L194: =MID(G194,9,2) -> 20 | N194: 2019 | O194: 6 | P194: 2 | Q194: 16 | R194: 20 | S194: Nappal | T194: =MID(G194,1,6) -> 190602 | U194: 1906020
A195: Mérőlap_MSE4_A1_1906021945.pdf | B195: .pdf | C195: 2019-07-18T07:29:10.739 | D195: 2019-06-02T19:46:43.085 | E195: 2019-07-18T07:29:10.155 | F195: U:\Merolapok motorsor\Anker 1\Merolapok\ | G195: =MID(A195,17,10) -> 1906021945 | H195: 2019 | I195: 6 | J195: 02 | K195: 19 | L195: 45 | N195: 2019 | O195: 6 | P195: 2 | Q195: 19 | R195: 45 | S195: =IF(Q195<6,"Ejszaka",IF(Q195<18,"Nappal","Ejszaka")) -> Ejszaka | T195: 190602 | U195: =IF(S195="Nappal",T195*10,IF(Q195<6,T195*100-100,T195*100)) -> 19060200
A196: Mérőlap_MSE4_A1_1906030941.pdf | B196: .pdf | C196: 2019-07-18T07:29:12.376 | D196: 2019-06-03T09:42:36.220 | E196: 2019-07-18T07:29:12.039 | F196: U:\Merolapok motorsor\Anker 1\Merolapok\ | G196: 1906030941 | H196: 2019 | I196: 6 | J196: 03 | K196: 09 | L196: 41 | N196: 2019 | O196: 6 | P196: 3 | Q196: 9 | R196: 41 | S196: Nappal | T196: 190603 | U196: 1906030
A197: Mérőlap_MSE4_A1_1906031212.pdf | B197: .pdf | C197: 2019-07-18T07:29:13.482 | D197: 2019-06-03T12:17:55.686 | E197: 2019-07-18T07:29:13.151 | F197: U:\Merolapok motorsor\Anker 1\Merolapok\ | G197: 1906031212 | H197: 2019 | I197: 6 | J197: 03 | K197: 12 | L197: 12 | N197: 2019 | O197: 6 | P197: 3 | Q197: 12 | R197: 12 | S197: Nappal | T197: 190603 | U197: 1906030
A198: Mérőlap_MSE4_A1_1906031618.pdf | B198: .pdf | C198: 2019-07-18T07:29:14.470 | D198: 2019-06-03T16:19:58.224 | E198: 2019-07-18T07:29:14.179 | F198: U:\Merolapok motorsor\Anker 1\Merolapok\ | G198: 1906031618 | H198: 2019 | I198: 6 | J198: 03 | K198: 16 | L198: 18 | N198: 2019 | O198: 6 | P198: 3 | Q198: 16 | R198: 18 | S198: Nappal | T198: 190603 | U198: 1906030
A199: Mérőlap_MSE4_A1_1906031813.pdf | B199: .pdf | C199: 2019-07-18T07:29:15.347 | D199: 2019-06-03T18:14:15.124 | E199: 2019-07-18T07:29:15.052 | F199: U:\Merolapok motorsor\Anker 1\Merolapok\ | G199: 1906031813 | H199: 2019 | I199: 6 | J199: 03 | K199: 18 | L199: 13 | N199: 2019 | O199: 6 | P199: 3 | Q199: 18 | R199: 13 | S199: Ejszaka | T199: 190603 | U199: 19060300
A200: Mérőlap_MSE4_A1_1906032039.pdf | B200: .pdf | C200: 2019-07-18T07:29:16.330 | D200: 2019-06-03T20:40:41.538 | E200: 2019-07-18T07:29:16.070 | F200: U:\Merolapok motorsor\Anker 1\Merolapok\ | G200: 1906032039 | H200: 2019 | I200: 6 | J200: 03 | K200: 20 | L200: 39 | N200: 2019 | O200: 6 | P200: 3 | Q200: 20 | R200: 39 | S200: Ejszaka | T200: 190603 | U200: 19060300
... 118 more rows

Sheet SPC
A1: Name | B1: Extension | C1: Date accessed | D1: Date modified | E1: Date created | F1: Folder Path | H1: Datum | I1: Év | J1: Hónap | K1: Nap | L1: Óra | M1: Perc | N1: Műszak | O1: Év | P1: Hónap | Q1: Nap | R1: Óra | S1: Perc | T1: Műszak | U1: Datum | V1: Datum+muszak
A2: Mérőlap_MSE4_A1_1906020627.xls.pdf | B2: .pdf | C2: 2019-07-22T10:11:16.729 | D2: 2019-06-02T06:28:00.625 | E2: 2019-07-22T10:11:16.433 | F2: U:\Merolapok motorsor\SPC lapok\ | H2: =MID(SPC_lapok[[#This Row],[Name]],17,10) -> 1906020627 | I2: 2019 | J2: =MID(H2,4,1) -> 6 | K2: =MID(H2,5,2) -> 02 | L2: =MID(H2,7,2) -> 06 | M2: =MID(H2,9,2) -> 27 | N2: =IF(L2<6,"Ejszaka",IF(L2<18,"Nappal","Ejszaka")) -> Ejszaka | O2: 2019 | P2: 6 | Q2: 2 | R2: 6 | S2: 27 | T2: =IF(R2<6,"Ejszaka",IF(R2<18,"Nappal","Ejszaka")) -> Nappal | U2: =MID(H2,1,6) -> 190602 | V2: =IF(T2="Nappal",U2*10,IF(R2<6,U2*100-100,U2*100)) -> 1906020
A3: Mérőlap_MSE4_A1_1906021016.xls.pdf | B3: .pdf | C3: 2019-07-22T10:11:17.096 | D3: 2019-06-02T10:24:15.479 | E3: 2019-07-22T10:11:16.790 | F3: U:\Merolapok motorsor\SPC lapok\ | H3: =MID(SPC_lapok[[#This Row],[Name]],17,10) -> 1906021016 | I3: 2019 | J3: =MID(H3,4,1) -> 6 | K3: =MID(H3,5,2) -> 02 | L3: 10 | M3: =MID(H3,9,2) -> 16 | O3: 2019 | P3: 6 | Q3: 2 | R3: 10 | S3: 16 | T3: =IF(R3<6,"Ejszaka",IF(R3<18,"Nappal","Ejszaka")) -> Nappal | U3: =MID(H3,1,6) -> 190602 | V3: =IF(T3="Nappal",U3*10,IF(R3<6,U3*100-100,U3*100)) -> 1906020
A4: Mérőlap_MSE4_A1_1906021423.xls.pdf | B4: .pdf | C4: 2019-07-22T10:11:17.497 | D4: 2019-06-02T14:23:48.991 | E4: 2019-07-22T10:11:17.155 | F4: U:\Merolapok motorsor\SPC lapok\ | H4: =MID(SPC_lapok[[#This Row],[Name]],17,10) -> 1906021423 | I4: 2019 | J4: 6 | K4: 02 | L4: 14 | M4: 23 | O4: 2019 | P4: 6 | Q4: 2 | R4: 14 | S4: 23 | T4: Nappal | U4: 190602 | V4: 1906020
A5: Mérőlap_MSE4_A1_1906021620.xls.pdf | B5: .pdf | C5: 2019-07-22T10:11:17.954 | D5: 2019-06-02T16:20:50.507 | E5: 2019-07-22T10:11:17.562 | F5: U:\Merolapok motorsor\SPC lapok\ | H5: =MID(SPC_lapok[[#This Row],[Name]],17,10) -> 1906021620 | I5: 2019 | J5: 6 | K5: 02 | L5: 16 | M5: 20 | O5: 2019 | P5: 6 | Q5: 2 | R5: 16 | S5: 20 | T5: Nappal | U5: 190602 | V5: 1906020
A6: Mérőlap_MSE4_A1_1906030941.xls.pdf | B6: .pdf | C6: 2019-07-22T10:11:18.386 | D6: 2019-06-03T09:41:35.009 | E6: 2019-07-22T10:11:18.075 | F6: U:\Merolapok motorsor\SPC lapok\ | H6: =MID(SPC_lapok[[#This Row],[Name]],17,10) -> 1906030941 | I6: 2019 | J6: 6 | K6: 03 | L6: 09 | M6: 41 | O6: 2019 | P6: 6 | Q6: 3 | R6: 9 | S6: 41 | T6: Nappal | U6: 190603 | V6: 1906030
A7: Mérőlap_MSE4_A1_1906031212.xls.pdf | B7: .pdf | C7: 2019-07-22T10:11:18.848 | D7: 2019-06-03T12:17:18.166 | E7: 2019-07-22T10:11:18.460 | F7: U:\Merolapok motorsor\SPC lapok\ | H7: =MID(SPC_lapok[[#This Row],[Name]],17,10) -> 1906031212 | I7: 2019 | J7: 6 | K7: 03 | L7: 12 | M7: 12 | O7: 2019 | P7: 6 | Q7: 3 | R7: 12 | S7: 12 | T7: Nappal | U7: 190603 | V7: 1906030
A8: Mérőlap_MSE4_A1_1906031618.xls.pdf | B8: .pdf | C8: 2019-07-22T10:11:19.221 | D8: 2019-06-03T16:19:26.576 | E8: 2019-07-22T10:11:18.919 | F8: U:\Merolapok motorsor\SPC lapok\ | H8: =MID(SPC_lapok[[#This Row],[Name]],17,10) -> 1906031618 | I8: 2019 | J8: 6 | K8: 03 | L8: 16 | M8: 18 | O8: 2019 | P8: 6 | Q8: 3 | R8: 16 | S8: 18 | T8: Nappal | U8: 190603 | V8: 1906030
A9: Mérőlap_MSE4_A1_1906041840.xls.pdf | B9: .pdf | C9: 2019-07-22T10:11:19.746 | D9: 2019-06-04T18:41:01.398 | E9: 2019-07-22T10:11:19.335 | F9: U:\Merolapok motorsor\SPC lapok\ | H9: =MID(SPC_lapok[[#This Row],[Name]],17,10) -> 1906041840 | I9: 2019 | J9: 6 | K9: 04 | L9: 18 | M9: 40 | O9: 2019 | P9: 6 | Q9: 4 | R9: 18 | S9: 40 | T9: Ejszaka | U9: 190604 | V9: 19060400
A10: Mérőlap_MSE4_A1_1906042001.xls.pdf | B10: .pdf | C10: 2019-07-22T10:11:20.131 | D10: 2019-06-04T20:02:09.270 | E10: 2019-07-22T10:11:19.813 | F10: U:\Merolapok motorsor\SPC lapok\ | H10: =MID(SPC_lapok[[#This Row],[Name]],17,10) -> 1906042001 | I10: 2019 | J10: 6 | K10: 04 | L10: 20 | M10: 01 | O10: 2019 | P10: 6 | Q10: 4 | R10: 20 | S10: 1 | T10: Ejszaka | U10: 190604 | V10: 19060400
A11: Mérőlap_MSE4_A1_1906042202.xls.pdf | B11: .pdf | C11: 2019-07-22T10:11:20.815 | D11: 2019-06-04T22:07:36.348 | E11: 2019-07-22T10:11:20.217 | F11: U:\Merolapok motorsor\SPC lapok\ | H11: =MID(SPC_lapok[[#This Row],[Name]],17,10) -> 1906042202 | I11: 2019 | J11: 6 | K11: 04 | L11: 22 | M11: 02 | O11: 2019 | P11: 6 | Q11: 4 | R11: 22 | S11: 2 | T11: Ejszaka | U11: 190604 | V11: 19060400
A12: Mérőlap_MSE4_A1_1906050210.xls.pdf | B12: .pdf | C12: 2019-07-22T10:11:21.335 | D12: 2019-06-05T02:11:07.219 | E12: 2019-07-22T10:11:20.942 | F12: U:\Merolapok motorsor\SPC lapok\ | H12: =MID(SPC_lapok[[#This Row],[Name]],17,10) -> 1906050210 | I12: 2019 | J12: 6 | K12: 05 | L12: 02 | M12: 10 | O12: 2019 | P12: 6 | Q12: 5 | R12: 2 | S12: 10 | T12: Ejszaka | U12: 190605 | V12: 19060400
A13: Mérőlap_MSE4_A1_1906050356.xls.pdf | B13: .pdf | C13: 2019-07-22T10:11:21.746 | D13: 2019-06-05T03:57:19.694 | E13: 2019-07-22T10:11:21.403 | F13: U:\Merolapok motorsor\SPC lapok\ | H13: =MID(SPC_lapok[[#This Row],[Name]],17,10) -> 1906050356 | I13: 2019 | J13: 6 | K13: 05 | L13: 03 | M13: 56 | O13: 2019 | P13: 6 | Q13: 5 | R13: 3 | S13: 56 | T13: Ejszaka | U13: 190605 | V13: 19060400
A14: Mérőlap_MSE4_A1_1906061831.xls.pdf | B14: .pdf | C14: 2019-07-22T10:11:22.345 | D14: 2019-06-06T18:31:48.243 | E14: 2019-07-22T10:11:21.862 | F14: U:\Merolapok motorsor\SPC lapok\ | H14: =MID(SPC_lapok[[#This Row],[Name]],17,10) -> 1906061831 | I14: 2019 | J14: 6 | K14: 06 | L14: 18 | M14: 31 | O14: 2019 | P14: 6 | Q14: 6 | R14: 18 | S14: 31 | T14: Ejszaka | U14: 190606 | V14: 19060600
A15: Mérőlap_MSE4_A1_1906062153.xls.pdf | B15: .pdf | C15: 2019-07-22T10:11:22.941 | D15: 2019-06-06T21:53:58.245 | E15: 2019-07-22T10:11:22.465 | F15: U:\Merolapok motorsor\SPC lapok\ | H15: =MID(SPC_lapok[[#This Row],[Name]],17,10) -> 1906062153 | I15: 2019 | J15: 6 | K15: 06 | L15: 21 | M15: 53 | O15: 2019 | P15: 6 | Q15: 6 | R15: 21 | S15: 53 | T15: Ejszaka | U15: 190606 | V15: 19060600
A16: Mérőlap_MSE4_A1_1906070046.xls.pdf | B16: .pdf | C16: 2019-07-22T10:11:23.312 | D16: 2019-06-07T00:47:03.837 | E16: 2019-07-22T10:11:23.007 | F16: U:\Merolapok motorsor\SPC lapok\ | H16: =MID(SPC_lapok[[#This Row],[Name]],17,10) -> 1906070046 | I16: 2019 | J16: 6 | K16: 07 | L16: 00 | M16: 46 | O16: 2019 | P16: 6 | Q16: 7 | R16: 0 | S16: 46 | T16: Ejszaka | U16: 190607 | V16: 19060600
A17: Mérőlap_MSE4_A1_1906070228.xls.pdf | B17: .pdf | C17: 2019-07-22T10:11:23.834 | D17: 2019-06-07T02:28:49.746 | E17: 2019-07-22T10:11:23.470 | F17: U:\Merolapok motorsor\SPC lapok\ | H17: =MID(SPC_lapok[[#This Row],[Name]],17,10) -> 1906070228 | I17: 2019 | J17: 6 | K17: 07 | L17: 02 | M17: 28 | O17: 2019 | P17: 6 | Q17: 7 | R17: 2 | S17: 28 | T17: Ejszaka | U17: 190607 | V17: 19060600
A18: Mérőlap_MSE4_A1_1906071845.xls.pdf | B18: .pdf | C18: 2019-07-22T10:11:24.206 | D18: 2019-06-07T18:46:20.472 | E18: 2019-07-22T10:11:23.895 | F18: U:\Merolapok motorsor\SPC lapok\ | H18: =MID(SPC_lapok[[#This Row],[Name]],17,10) -> 1906071845 | I18: 2019 | J18: 6 | K18: 07 | L18: 18 | M18: 45 | O18: 2019 | P18: 6 | Q18: 7 | R18: 18 | S18: 45 | T18: Ejszaka | U18: 190607 | V18: 19060700
A19: Mérőlap_MSE4_A1_1906072003.xls.pdf | B19: .pdf | C19: 2019-07-22T10:11:24.599 | D19: 2019-06-07T20:04:10.918 | E19: 2019-07-22T10:11:24.265 | F19: U:\Merolapok motorsor\SPC lapok\ | H19: =MID(SPC_lapok[[#This Row],[Name]],17,10) -> 1906072003 | I19: 2019 | J19: 6 | K19: 07 | L19: 20 | M19: 03 | O19: 2019 | P19: 6 | Q19: 7 | R19: 20 | S19: 3 | T19: Ejszaka | U19: 190607 | V19: 19060700
A20: Mérőlap_MSE4_A1_1906072155.xls.pdf | B20: .pdf | C20: 2019-07-22T10:11:25.156 | D20: 2019-06-07T21:56:30.673 | E20: 2019-07-22T10:11:24.735 | F20: U:\Merolapok motorsor\SPC lapok\ | H20: =MID(SPC_lapok[[#This Row],[Name]],17,10) -> 1906072155 | I20: 2019 | J20: 6 | K20: 07 | L20: 21 | M20: 55 | O20: 2019 | P20: 6 | Q20: 7 | R20: 21 | S20: 55 | T20: Ejszaka | U20: 190607 | V20: 19060700
A21: Mérőlap_MSE4_A1_1906080219.xls.pdf | B21: .pdf | C21: 2019-07-22T10:11:25.651 | D21: 2019-06-08T02:20:27.577 | E21: 2019-07-22T10:11:25.301 | F21: U:\Merolapok motorsor\SPC lapok\ | H21: =MID(SPC_lapok[[#This Row],[Name]],17,10) -> 1906080219 | I21: 2019 | J21: 6 | K21: 08 | L21: 02 | M21: 19 | O21: 2019 | P21: 6 | Q21: 8 | R21: 2 | S21: 19 | T21: Ejszaka | U21: 190608 | V21: 19060700
A22: Mérőlap_MSE4_A1_1906080434.xls.pdf | B22: .pdf | C22: 2019-07-22T10:11:26.118 | D22: 2019-06-08T04:35:26.421 | E22: 2019-07-22T10:11:25.748 | F22: U:\Merolapok motorsor\SPC lapok\ | H22: =MID(SPC_lapok[[#This Row],[Name]],17,10) -> 1906080434 | I22: 2019 | J22: 6 | K22: 08 | L22: 04 | M22: 34 | O22: 2019 | P22: 6 | Q22: 8 | R22: 4 | S22: 34 | T22: Ejszaka | U22: 190608 | V22: 19060700
A23: Mérőlap_MSE4_A1_1906110639.xls.pdf | B23: .pdf | C23: 2019-07-22T10:11:26.647 | D23: 2019-06-11T06:40:27.286 | E23: 2019-07-22T10:11:26.298 | F23: U:\Merolapok motorsor\SPC lapok\ | H23: =MID(SPC_lapok[[#This Row],[Name]],17,10) -> 1906110639 | I23: 2019 | J23: 6 | K23: 11 | L23: 06 | M23: 39 | O23: 2019 | P23: 6 | Q23: 11 | R23: 6 | S23: 39 | T23: Nappal | U23: 190611 | V23: 1906110
A24: Mérőlap_MSE4_A1_1906110754.xls.pdf | B24: .pdf | C24: 2019-07-22T10:11:27.268 | D24: 2019-06-11T07:54:50.640 | E24: 2019-07-22T10:11:26.757 | F24: U:\Merolapok motorsor\SPC lapok\ | H24: =MID(SPC_lapok[[#This Row],[Name]],17,10) -> 1906110754 | I24: 2019 | J24: 6 | K24: 11 | L24: 07 | M24: 54 | O24: 2019 | P24: 6 | Q24: 11 | R24: 7 | S24: 54 | T24: Nappal | U24: 190611 | V24: 1906110
A25: Mérőlap_MSE4_A1_1906111031.xls.pdf | B25: .pdf | C25: 2019-07-22T10:11:27.697 | D25: 2019-06-11T10:33:26.992 | E25: 2019-07-22T10:11:27.376 | F25: U:\Merolapok motorsor\SPC lapok\ | H25: =MID(SPC_lapok[[#This Row],[Name]],17,10) -> 1906111031 | I25: 2019 | J25: 6 | K25: 11 | L25: 10 | M25: 31 | O25: 2019 | P25: 6 | Q25: 11 | R25: 10 | S25: 31 | T25: Nappal | U25: 190611 | V25: 1906110
A26: Mérőlap_MSE4_A1_1906111438.xls.pdf | B26: .pdf | C26: 2019-07-22T10:11:28.285 | D26: 2019-06-11T14:38:39.734 | E26: 2019-07-22T10:11:27.814 | F26: U:\Merolapok motorsor\SPC lapok\ | H26: =MID(SPC_lapok[[#This Row],[Name]],17,10) -> 1906111438 | I26: 2019 | J26: 6 | K26: 11 | L26: 14 | M26: 38 | O26: 2019 | P26: 6 | Q26: 11 | R26: 14 | S26: 38 | T26: Nappal | U26: 190611 | V26: 1906110
A27: Mérőlap_MSE4_A1_1906111616.xls.pdf | B27: .pdf | C27: 2019-07-22T10:11:28.817 | D27: 2019-06-11T16:17:07.317 | E27: 2019-07-22T10:11:28.409 | F27: U:\Merolapok motorsor\SPC lapok\ | H27: =MID(SPC_lapok[[#This Row],[Name]],17,10) -> 1906111616 | I27: 2019 | J27: 6 | K27: 11 | L27: 16 | M27: 16 | O27: 2019 | P27: 6 | Q27: 11 | R27: 16 | S27: 16 | T27: Nappal | U27: 190611 | V27: 1906110
A28: Mérőlap_MSE4_A1_1906141817.xls.pdf | B28: .pdf | C28: 2019-07-22T10:11:29.338 | D28: 2019-06-14T18:19:06.665 | E28: 2019-07-22T10:11:29.034 | F28: U:\Merolapok motorsor\SPC lapok\ | H28: =MID(SPC_lapok[[#This Row],[Name]],17,10) -> 1906141817 | I28: 2019 | J28: 6 | K28: 14 | L28: 18 | M28: 17 | O28: 2019 | P28: 6 | Q28: 14 | R28: 18 | S28: 17 | T28: Ejszaka | U28: 190614 | V28: 19061400
A29: Mérőlap_MSE4_A1_1906142019.xls.pdf | B29: .pdf | C29: 2019-07-22T10:11:29.723 | D29: 2019-06-14T20:20:21.951 | E29: 2019-07-22T10:11:29.432 | F29: U:\Merolapok motorsor\SPC lapok\ | H29: =MID(SPC_lapok[[#This Row],[Name]],17,10) -> 1906142019 | I29: 2019 | J29: 6 | K29: 14 | L29: 20 | M29: 19 | O29: 2019 | P29: 6 | Q29: 14 | R29: 20 | S29: 19 | T29: Ejszaka | U29: 190614 | V29: 19061400
A30: Mérőlap_MSE4_A1_1906142232.xls.pdf | B30: .pdf | C30: 2019-07-22T10:11:30.190 | D30: 2019-06-14T22:33:09.564 | E30: 2019-07-22T10:11:29.801 | F30: U:\Merolapok motorsor\SPC lapok\ | H30: =MID(SPC_lapok[[#This Row],[Name]],17,10) -> 1906142232 | I30: 2019 | J30: 6 | K30: 14 | L30: 22 | M30: 32 | O30: 2019 | P30: 6 | Q30: 14 | R30: 22 | S30: 32 | T30: Ejszaka | U30: 190614 | V30: 19061400
A31: Mérőlap_MSE4_A1_1906150048.xls.pdf | B31: .pdf | C31: 2019-07-22T10:11:30.725 | D31: 2019-06-15T00:49:31.412 | E31: 2019-07-22T10:11:30.326 | F31: U:\Merolapok motorsor\SPC lapok\ | H31: =MID(SPC_lapok[[#This Row],[Name]],17,10) -> 1906150048 | I31: 2019 | J31: 6 | K31: 15 | L31: 00 | M31: 48 | O31: 2019 | P31: 6 | Q31: 15 | R31: 0 | S31: 48 | T31: Ejszaka | U31: 190615 | V31: 19061400
A32: Mérőlap_MSE4_A1_1906150526.xls.pdf | B32: .pdf | C32: 2019-07-22T10:11:31.112 | D32: 2019-06-15T05:26:31.770 | E32: 2019-07-22T10:11:30.833 | F32: U:\Merolapok motorsor\SPC lapok\ | H32: =MID(SPC_lapok[[#This Row],[Name]],17,10) -> 1906150526 | I32: 2019 | J32: 6 | K32: 15 | L32: 05 | M32: 26 | O32: 2019 | P32: 6 | Q32: 15 | R32: 5 | S32: 26 | T32: Ejszaka | U32: 190615 | V32: 19061400
A33: Mérőlap_MSE4_A1_1906151830.xls.pdf | B33: .pdf | C33: 2019-07-22T10:11:31.417 | D33: 2019-06-15T18:30:46.480 | E33: 2019-07-22T10:11:31.172 | F33: U:\Merolapok motorsor\SPC lapok\ | H33: =MID(SPC_lapok[[#This Row],[Name]],17,10) -> 1906151830 | I33: 2019 | J33: 6 | K33: 15 | L33: 18 | M33: 30 | O33: 2019 | P33: 6 | Q33: 15 | R33: 18 | S33: 30 | T33: Ejszaka | U33: 190615 | V33: 19061500
A34: Mérőlap_MSE4_A1_1906152035.xls.pdf | B34: .pdf | C34: 2019-07-22T10:11:31.804 | D34: 2019-06-15T20:35:56.390 | E34: 2019-07-22T10:11:31.478 | F34: U:\Merolapok motorsor\SPC lapok\ | H34: =MID(SPC_lapok[[#This Row],[Name]],17,10) -> 1906152035 | I34: 2019 | J34: 6 | K34: =MID(H34,5,2) -> 15 | L34: 20 | M34: 35 | O34: 2019 | P34: 6 | Q34: 15 | R34: 20 | S34: 35 | T34: Ejszaka | U34: 190615 | V34: 19061500
A35: Mérőlap_MSE4_A1_1906160147.xls.pdf | B35: .pdf | C35: 2019-07-22T10:11:32.251 | D35: 2019-06-16T01:48:36.405 | E35: 2019-07-22T10:11:31.905 | F35: U:\Merolapok motorsor\SPC lapok\ | H35: =MID(SPC_lapok[[#This Row],[Name]],17,10) -> 1906160147 | I35: 2019 | J35: 6 | K35: 16 | L35: 01 | M35: 47 | O35: 2019 | P35: 6 | Q35: 16 | R35: 1 | S35: 47 | T35: Ejszaka | U35: 190616 | V35: 19061500
A36: Mérőlap_MSE4_A1_1906160433.xls.pdf | B36: .pdf | C36: 2019-07-22T10:11:32.639 | D36: 2019-06-16T04:33:36.354 | E36: 2019-07-22T10:11:32.356 | F36: U:\Merolapok motorsor\SPC lapok\ | H36: =MID(SPC_lapok[[#This Row],[Name]],17,10) -> 1906160433 | I36: 2019 | J36: 6 | K36: 16 | L36: 04 | M36: 33 | O36: 2019 | P36: 6 | Q36: 16 | R36: 4 | S36: 33 | T36: Ejszaka | U36: 190616 | V36: 19061500
A37: Mérőlap_MSE4_A1_1906161904.xls.pdf | B37: .pdf | C37: 2019-07-22T10:11:33.002 | D37: 2019-06-16T19:05:15.474 | E37: 2019-07-22T10:11:32.738 | F37: U:\Merolapok motorsor\SPC lapok\ | H37: =MID(SPC_lapok[[#This Row],[Name]],17,10) -> 1906161904 | I37: 2019 | J37: 6 | K37: 16 | L37: 19 | M37: 04 | O37: 2019 | P37: 6 | Q37: 16 | R37: 19 | S37: 4 | T37: Ejszaka | U37: 190616 | V37: 19061600
A38: Mérőlap_MSE4_A1_1906162029.xls.pdf | B38: .pdf | C38: 2019-07-22T10:11:33.406 | D38: 2019-06-16T20:30:03.139 | E38: 2019-07-22T10:11:33.087 | F38: U:\Merolapok motorsor\SPC lapok\ | H38: =MID(SPC_lapok[[#This Row],[Name]],17,10) -> 1906162029 | I38: 2019 | J38: 6 | K38: 16 | L38: 20 | M38: 29 | O38: 2019 | P38: 6 | Q38: 16 | R38: 20 | S38: 29 | T38: Ejszaka | U38: 190616 | V38: 19061600
A39: Mérőlap_MSE4_A1_1906170139.xls.pdf | B39: .pdf | C39: 2019-07-22T10:11:34.100 | D39: 2019-06-17T01:40:37.875 | E39: 2019-07-22T10:11:33.504 | F39: U:\Merolapok motorsor\SPC lapok\ | H39: =MID(SPC_lapok[[#This Row],[Name]],17,10) -> 1906170139 | I39: 2019 | J39: 6 | K39: 17 | L39: 01 | M39: 39 | O39: 2019 | P39: 6 | Q39: 17 | R39: 1 | S39: 39 | T39: Ejszaka | U39: 190617 | V39: 19061600
A40: Mérőlap_MSE4_A1_1906180654.xls.pdf | B40: .pdf | C40: 2019-07-22T10:11:34.639 | D40: 2019-06-18T06:54:52.520 | E40: 2019-07-22T10:11:34.237 | F40: U:\Merolapok motorsor\SPC lapok\ | H40: =MID(SPC_lapok[[#This Row],[Name]],17,10) -> 1906180654 | I40: 2019 | J40: 6 | K40: 18 | L40: 06 | M40: 54 | O40: 2019 | P40: 6 | Q40: 18 | R40: 6 | S40: 54 | T40: Nappal | U40: 190618 | V40: 1906180
A41: Mérőlap_MSE4_A1_1906181235.xls.pdf | B41: .pdf | C41: 2019-07-22T10:11:35.170 | D41: 2019-06-18T12:35:58.224 | E41: 2019-07-22T10:11:34.763 | F41: U:\Merolapok motorsor\SPC lapok\ | H41: =MID(SPC_lapok[[#This Row],[Name]],17,10) -> 1906181235 | I41: 2019 | J41: 6 | K41: 18 | L41: 12 | M41: 35 | O41: 2019 | P41: 6 | Q41: 18 | R41: 12 | S41: 35 | T41: Nappal | U41: 190618 | V41: 1906180
A42: Mérőlap_MSE4_A1_1906181410.xls.pdf | B42: .pdf | C42: 2019-07-22T10:11:35.757 | D42: 2019-06-18T14:11:15.856 | E42: 2019-07-22T10:11:35.344 | F42: U:\Merolapok motorsor\SPC lapok\ | H42: =MID(SPC_lapok[[#This Row],[Name]],17,10) -> 1906181410 | I42: 2019 | J42: 6 | K42: 18 | L42: 14 | M42: 10 | O42: 2019 | P42: 6 | Q42: 18 | R42: 14 | S42: 10 | T42: Nappal | U42: 190618 | V42: 1906180
A43: Mérőlap_MSE4_A1_1906181622.xls.pdf | B43: .pdf | C43: 2019-07-22T10:11:36.245 | D43: 2019-06-18T16:22:40.782 | E43: 2019-07-22T10:11:35.841 | F43: U:\Merolapok motorsor\SPC lapok\ | H43: =MID(SPC_lapok[[#This Row],[Name]],17,10) -> 1906181622 | I43: 2019 | J43: 6 | K43: 18 | L43: 16 | M43: 22 | O43: 2019 | P43: 6 | Q43: 18 | R43: 16 | S43: 22 | T43: Nappal | U43: 190618 | V43: 1906180
A44: Mérőlap_MSE4_A1_1906190617.xls.pdf | B44: .pdf | C44: 2019-07-22T10:11:36.696 | D44: 2019-06-19T06:17:58.753 | E44: 2019-07-22T10:11:36.351 | F44: U:\Merolapok motorsor\SPC lapok\ | H44: =MID(SPC_lapok[[#This Row],[Name]],17,10) -> 1906190617 | I44: 2019 | J44: 6 | K44: 19 | L44: 06 | M44: 17 | O44: 2019 | P44: 6 | Q44: 19 | R44: 6 | S44: 17 | T44: Nappal | U44: 190619 | V44: 1906190
A45: Mérőlap_MSE4_A1_1906190956.xls.pdf | B45: .pdf | C45: 2019-07-22T10:11:37.275 | D45: 2019-06-19T09:56:49.542 | E45: 2019-07-22T10:11:36.842 | F45: U:\Merolapok motorsor\SPC lapok\ | H45: =MID(SPC_lapok[[#This Row],[Name]],17,10) -> 1906190956 | I45: 2019 | J45: 6 | K45: 19 | L45: 09 | M45: 56 | O45: 2019 | P45: 6 | Q45: 19 | R45: 9 | S45: 56 | T45: Nappal | U45: 190619 | V45: 1906190
A46: Mérőlap_MSE4_A1_1906191222.xls.pdf | B46: .pdf | C46: 2019-07-22T10:11:37.685 | D46: 2019-06-19T12:22:37.001 | E46: 2019-07-22T10:11:37.394 | F46: U:\Merolapok motorsor\SPC lapok\ | H46: =MID(SPC_lapok[[#This Row],[Name]],17,10) -> 1906191222 | I46: 2019 | J46: 6 | K46: 19 | L46: 12 | M46: 22 | O46: 2019 | P46: 6 | Q46: 19 | R46: 12 | S46: 22 | T46: Nappal | U46: 190619 | V46: 1906190
A47: Mérőlap_MSE4_A1_1906191356.xls.pdf | B47: .pdf | C47: 2019-07-22T10:11:38.233 | D47: 2019-06-19T13:57:06.744 | E47: 2019-07-22T10:11:37.775 | F47: U:\Merolapok motorsor\SPC lapok\ | H47: =MID(SPC_lapok[[#This Row],[Name]],17,10) -> 1906191356 | I47: 2019 | J47: 6 | K47: 19 | L47: 13 | M47: 56 | O47: 2019 | P47: 6 | Q47: 19 | R47: 13 | S47: 56 | T47: Nappal | U47: 190619 | V47: 1906190
A48: Mérőlap_MSE4_A1_1906221818.xls.pdf | B48: .pdf | C48: 2019-07-22T10:11:38.905 | D48: 2019-06-22T18:19:26.211 | E48: 2019-07-22T10:11:38.410 | F48: U:\Merolapok motorsor\SPC lapok\ | H48: =MID(SPC_lapok[[#This Row],[Name]],17,10) -> 1906221818 | I48: 2019 | J48: 6 | K48: 22 | L48: 18 | M48: 18 | O48: 2019 | P48: 6 | Q48: 22 | R48: 18 | S48: 18 | T48: Ejszaka | U48: 190622 | V48: 19062200
A49: Mérőlap_MSE4_A1_1906222008.xls.pdf | B49: .pdf | C49: 2019-07-22T10:11:39.359 | D49: 2019-06-22T20:08:50.139 | E49: 2019-07-22T10:11:38.995 | F49: U:\Merolapok motorsor\SPC lapok\ | H49: =MID(SPC_lapok[[#This Row],[Name]],17,10) -> 1906222008 | I49: 2019 | J49: 6 | K49: 22 | L49: 20 | M49: 08 | O49: 2019 | P49: 6 | Q49: 22 | R49: 20 | S49: 8 | T49: Ejszaka | U49: 190622 | V49: 19062200
A50: Mérőlap_MSE4_A1_1906230031.xls.pdf | B50: .pdf | C50: 2019-07-22T10:11:39.812 | D50: 2019-06-23T00:31:43.240 | E50: 2019-07-22T10:11:39.457 | F50: U:\Merolapok motorsor\SPC lapok\ | H50: =MID(SPC_lapok[[#This Row],[Name]],17,10) -> 1906230031 | I50: 2019 | J50: 6 | K50: 23 | L50: 00 | M50: 31 | O50: 2019 | P50: 6 | Q50: 23 | R50: 0 | S50: 31 | T50: Ejszaka | U50: 190623 | V50: 19062200
A51: Mérőlap_MSE4_A1_1906230235.xls.pdf | B51: .pdf | C51: 2019-07-22T10:11:40.551 | D51: 2019-06-23T02:36:02.733 | E51: 2019-07-22T10:11:40.063 | F51: U:\Merolapok motorsor\SPC lapok\ | H51: =MID(SPC_lapok[[#This Row],[Name]],17,10) -> 1906230235 | I51: 2019 | J51: 6 | K51: 23 | L51: 02 | M51: 35 | O51: 2019 | P51: 6 | Q51: 23 | R51: 2 | S51: 35 | T51: Ejszaka | U51: 190623 | V51: 19062200
A52: Mérőlap_MSE4_A1_1906230355.xls.pdf | B52: .pdf | C52: 2019-07-22T10:11:41.315 | D52: 2019-06-23T03:56:22.075 | E52: 2019-07-22T10:11:41.088 | F52: U:\Merolapok motorsor\SPC lapok\ | H52: =MID(SPC_lapok[[#This Row],[Name]],17,10) -> 1906230355 | I52: 2019 | J52: 6 | K52: 23 | L52: 03 | M52: 55 | O52: 2019 | P52: 6 | Q52: 23 | R52: 3 | S52: 51 | T52: Ejszaka | U52: 190623 | V52: 19062200
A53: Mérőlap_MSE4_A1_1906230351.xls.pdf | B53: .pdf | C53: 2019-07-22T10:11:40.977 | D53: 2019-06-23T03:58:02.936 | E53: 2019-07-22T10:11:40.713 | F53: U:\Merolapok motorsor\SPC lapok\ | H53: =MID(SPC_lapok[[#This Row],[Name]],17,10) -> 1906230351 | I53: 2019 | J53: 6 | K53: 23 | L53: 03 | M53: 51 | O53: 2019 | P53: 6 | Q53: 23 | R53: 3 | S53: 55 | T53: Ejszaka | U53: 190623 | V53: 19062200
A54: Mérőlap_MSE4_A1_1906231822.xls.pdf | B54: .pdf | C54: 2019-07-22T10:11:41.730 | D54: 2019-06-23T18:23:21.618 | E54: 2019-07-22T10:11:41.447 | F54: U:\Merolapok motorsor\SPC lapok\ | H54: =MID(SPC_lapok[[#This Row],[Name]],17,10) -> 1906231822 | I54: 2019 | J54: 6 | K54: 23 | L54: 18 | M54: 22 | O54: 2019 | P54: 6 | Q54: 23 | R54: 18 | S54: 22 | T54: Ejszaka | U54: 190623 | V54: 19062300
A55: Mérőlap_MSE4_A1_1906240108.xls.pdf | B55: .pdf | C55: 2019-07-22T10:11:42.688 | D55: 2019-06-24T01:09:28.999 | E55: 2019-07-22T10:11:41.910 | F55: U:\Merolapok motorsor\SPC lapok\ | H55: =MID(SPC_lapok[[#This Row],[Name]],17,10) -> 1906240108 | I55: 2019 | J55: 6 | K55: 24 | L55: 01 | M55: 08 | O55: 2019 | P55: 6 | Q55: 24 | R55: 1 | S55: 8 | T55: Ejszaka | U55: 190624 | V55: 19062300
A56: Mérőlap_MSE4_A1_1906240246.xls.pdf | B56: .pdf | C56: 2019-07-22T10:11:43.341 | D56: 2019-06-24T02:46:54.738 | E56: 2019-07-22T10:11:42.862 | F56: U:\Merolapok motorsor\SPC lapok\ | H56: =MID(SPC_lapok[[#This Row],[Name]],17,10) -> 1906240246 | I56: 2019 | J56: 6 | K56: 24 | L56: 02 | M56: 46 | O56: 2019 | P56: 6 | Q56: 24 | R56: 2 | S56: 46 | T56: Ejszaka | U56: 190624 | V56: 19062300
A57: Mérőlap_MSE4_A1_1906240432.xls.pdf | B57: .pdf | C57: 2019-07-22T10:11:43.880 | D57: 2019-06-24T04:33:20.574 | E57: 2019-07-22T10:11:43.457 | F57: U:\Merolapok motorsor\SPC lapok\ | H57: =MID(SPC_lapok[[#This Row],[Name]],17,10) -> 1906240432 | I57: 2019 | J57: 6 | K57: 24 | L57: 04 | M57: 32 | O57: 2019 | P57: 6 | Q57: 24 | R57: 4 | S57: 32 | T57: Ejszaka | U57: 190624 | V57: 19062300
A58: Mérőlap_MSE4_A1_1906260708.xls.pdf | B58: .pdf | C58: 2019-07-22T10:11:44.741 | D58: 2019-06-26T07:12:33 | E58: 2019-07-22T10:11:44.106 | F58: U:\Merolapok motorsor\SPC lapok\ | H58: =MID(SPC_lapok[[#This Row],[Name]],17,10) -> 1906260708 | I58: 2019 | J58: 6 | K58: 26 | L58: 07 | M58: 08 | O58: 2019 | P58: 6 | Q58: 26 | R58: 7 | S58: 8 | T58: Nappal | U58: 190626 | V58: 1906260
A59: Mérőlap_MSE4_A1_1906260821.xls.pdf | B59: .pdf | C59: 2019-07-22T10:11:45.352 | D59: 2019-06-26T08:22:16.781 | E59: 2019-07-22T10:11:44.996 | F59: U:\Merolapok motorsor\SPC lapok\ | H59: =MID(SPC_lapok[[#This Row],[Name]],17,10) -> 1906260821 | I59: 2019 | J59: 6 | K59: 26 | L59: 08 | M59: 21 | O59: 2019 | P59: 6 | Q59: 26 | R59: 8 | S59: 21 | T59: Nappal | U59: 190626 | V59: 1906260
A60: Mérőlap_MSE4_A1_1906261018.xls.pdf | B60: .pdf | C60: 2019-07-22T10:11:45.947 | D60: 2019-06-26T10:19:47.888 | E60: 2019-07-22T10:11:45.576 | F60: U:\Merolapok motorsor\SPC lapok\ | H60: =MID(SPC_lapok[[#This Row],[Name]],17,10) -> 1906261018 | I60: 2019 | J60: 6 | K60: 26 | L60: 10 | M60: 18 | O60: 2019 | P60: 6 | Q60: 26 | R60: 10 | S60: 18 | T60: Nappal | U60: 190626 | V60: 1906260
A61: Mérőlap_MSE4_A1_1906261206.xls.pdf | B61: .pdf | C61: 2019-07-22T10:11:46.448 | D61: 2019-06-26T12:07:49.105 | E61: 2019-07-22T10:11:46.130 | F61: U:\Merolapok motorsor\SPC lapok\ | H61: =MID(SPC_lapok[[#This Row],[Name]],17,10) -> 1906261206 | I61: 2019 | J61: 6 | K61: 26 | L61: 12 | M61: 06 | O61: 2019 | P61: 6 | Q61: 26 | R61: 12 | S61: 6 | T61: Nappal | U61: 190626 | V61: 1906260
A62: Mérőlap_MSE4_A1_1906261443.xls.pdf | B62: .pdf | C62: 2019-07-22T10:11:47.535 | D62: 2019-06-26T14:44:33.405 | E62: 2019-07-22T10:11:46.839 | F62: U:\Merolapok motorsor\SPC lapok\ | H62: =MID(SPC_lapok[[#This Row],[Name]],17,10) -> 1906261443 | I62: 2019 | J62: 6 | K62: 26 | L62: 14 | M62: 43 | O62: 2019 | P62: 6 | Q62: 26 | R62: 14 | S62: 43 | T62: Nappal | U62: 190626 | V62: 1906260
A63: Mérőlap_MSE4_A1_1906261620.xls.pdf | B63: .pdf | C63: 2019-07-22T10:11:48.457 | D63: 2019-06-26T16:24:57.215 | E63: 2019-07-22T10:11:47.846 | F63: U:\Merolapok motorsor\SPC lapok\ | H63: =MID(SPC_lapok[[#This Row],[Name]],17,10) -> 1906261620 | I63: 2019 | J63: 6 | K63: 26 | L63: 16 | M63: 20 | O63: 2019 | P63: 6 | Q63: 26 | R63: 16 | S63: 20 | T63: Nappal | U63: 190626 | V63: 1906260
A64: Mérőlap_MSE4_A1_1906270619.xls.pdf | B64: .pdf | C64: 2019-07-22T10:11:49.076 | D64: 2019-06-27T06:20:12.466 | E64: 2019-07-22T10:11:48.717 | F64: U:\Merolapok motorsor\SPC lapok\ | H64: =MID(SPC_lapok[[#This Row],[Name]],17,10) -> 1906270619 | I64: 2019 | J64: 6 | K64: 27 | L64: 06 | M64: 19 | O64: 2019 | P64: 6 | Q64: 27 | R64: 6 | S64: 19 | T64: Nappal | U64: 190627 | V64: 1906270
A65: Mérőlap_MSE4_A1_1906270934.xls.pdf | B65: .pdf | C65: 2019-07-22T10:11:49.623 | D65: 2019-06-27T09:35:17.440 | E65: 2019-07-22T10:11:49.170 | F65: U:\Merolapok motorsor\SPC lapok\ | H65: =MID(SPC_lapok[[#This Row],[Name]],17,10) -> 1906270934 | I65: 2019 | J65: 6 | K65: 27 | L65: 09 | M65: 34 | O65: 2019 | P65: 6 | Q65: 27 | R65: 9 | S65: 34 | T65: Nappal | U65: 190627 | V65: 1906270
A66: Mérőlap_MSE4_A1_1906271147.xls.pdf | B66: .pdf | C66: 2019-07-22T10:11:50.043 | D66: 2019-06-27T11:47:40.792 | E66: 2019-07-22T10:11:49.740 | F66: U:\Merolapok motorsor\SPC lapok\ | H66: =MID(SPC_lapok[[#This Row],[Name]],17,10) -> 1906271147 | I66: 2019 | J66: 6 | K66: =MID(H66,5,2) -> 27 | L66: 11 | M66: 47 | O66: 2019 | P66: 6 | Q66: 27 | R66: 11 | S66: 47 | T66: Nappal | U66: 190627 | V66: 1906270
A67: Mérőlap_MSE4_A1_1906271559.xls.pdf | B67: .pdf | C67: 2019-07-22T10:11:50.570 | D67: 2019-06-27T16:00:38.870 | E67: 2019-07-22T10:11:50.198 | F67: U:\Merolapok motorsor\SPC lapok\ | H67: =MID(SPC_lapok[[#This Row],[Name]],17,10) -> 1906271559 | I67: 2019 | J67: =MID(H67,4,1) -> 6 | K67: 27 | L67: =MID(H67,7,2) -> 15 | M67: =MID(H67,9,2) -> 59 | O67: 2019 | P67: 6 | Q67: 27 | R67: 15 | S67: 59 | T67: =IF(R67<6,"Ejszaka",IF(R67<18,"Nappal","Ejszaka")) -> Nappal | U67: =MID(H67,1,6) -> 190627 | V67: =IF(T67="Nappal",U67*10,IF(R67<6,U67*100-100,U67*100)) -> 1906270
A68: Mérőlap_MSE4_A1_1906280631.xls.pdf | B68: .pdf | C68: 2019-07-22T10:11:51.415 | D68: 2019-06-28T06:32:02.816 | E68: 2019-07-22T10:11:50.714 | F68: U:\Merolapok motorsor\SPC lapok\ | H68: =MID(SPC_lapok[[#This Row],[Name]],17,10) -> 1906280631 | I68: 2019 | J68: 6 | K68: 28 | L68: 06 | M68: 31 | O68: 2019 | P68: 6 | Q68: 28 | R68: 6 | S68: 31 | T68: Nappal | U68: 190628 | V68: 1906280
A69: Mérőlap_MSE4_A1_1906280813.xls.pdf | B69: .pdf | C69: 2019-07-22T10:11:52.011 | D69: 2019-06-28T08:13:50.077 | E69: 2019-07-22T10:11:51.523 | F69: U:\Merolapok motorsor\SPC lapok\ | H69: =MID(SPC_lapok[[#This Row],[Name]],17,10) -> 1906280813 | I69: 2019 | J69: 6 | K69: 28 | L69: 08 | M69: 13 | O69: 2019 | P69: 6 | Q69: 28 | R69: 8 | S69: 13 | T69: Nappal | U69: 190628 | V69: 1906280
A70: Mérőlap_MSE4_A1_1906281002.xls.pdf | B70: .pdf | C70: 2019-07-22T10:11:52.508 | D70: 2019-06-28T10:03:26.332 | E70: 2019-07-22T10:11:52.149 | F70: U:\Merolapok motorsor\SPC lapok\ | H70: =MID(SPC_lapok[[#This Row],[Name]],17,10) -> 1906281002 | I70: 2019 | J70: 6 | K70: 28 | L70: 10 | M70: 02 | O70: 2019 | P70: 6 | Q70: 28 | R70: 10 | S70: 2 | T70: Nappal | U70: 190628 | V70: 1906280
A71: Mérőlap_MSE4_A1_1906281243.xls.pdf | B71: .pdf | C71: 2019-07-22T10:11:52.982 | D71: 2019-06-28T12:44:08.527 | E71: 2019-07-22T10:11:52.615 | F71: U:\Merolapok motorsor\SPC lapok\ | H71: =MID(SPC_lapok[[#This Row],[Name]],17,10) -> 1906281243 | I71: 2019 | J71: 6 | K71: 28 | L71: 12 | M71: 43 | O71: 2019 | P71: 6 | Q71: 28 | R71: 12 | S71: 43 | T71: Nappal | U71: 190628 | V71: 1906280
A72: Mérőlap_MSE4_A1_1906281403.xls.pdf | B72: .pdf | C72: 2019-07-22T10:11:53.453 | D72: 2019-06-28T14:04:17.276 | E72: 2019-07-22T10:11:53.097 | F72: U:\Merolapok motorsor\SPC lapok\ | H72: =MID(SPC_lapok[[#This Row],[Name]],17,10) -> 1906281403 | I72: 2019 | J72: 6 | K72: 28 | L72: 14 | M72: 03 | O72: 2019 | P72: 6 | Q72: 28 | R72: 14 | S72: 3 | T72: Nappal | U72: 190628 | V72: 1906280
A73: Mérőlap_MSE4_A1_1906281622.xls.pdf | B73: .pdf | C73: 2019-07-22T10:11:54.031 | D73: 2019-06-28T16:23:13.708 | E73: 2019-07-22T10:11:53.575 | F73: U:\Merolapok motorsor\SPC lapok\ | H73: =MID(SPC_lapok[[#This Row],[Name]],17,10) -> 1906281622 | I73: 2019 | J73: 6 | K73: 28 | L73: 16 | M73: 22 | O73: 2019 | P73: 6 | Q73: 28 | R73: 16 | S73: 22 | T73: Nappal | U73: 190628 | V73: 1906280
A74: Mérőlap_MSE4_A1_1906302010.xls.pdf | B74: .pdf | C74: 2019-07-22T10:11:54.530 | D74: 2019-06-30T20:11:15.669 | E74: 2019-07-22T10:11:54.193 | F74: U:\Merolapok motorsor\SPC lapok\ | H74: =MID(SPC_lapok[[#This Row],[Name]],17,10) -> 1906302010 | I74: 2019 | J74: 6 | K74: 30 | L74: 20 | M74: 10 | O74: 2019 | P74: 6 | Q74: 30 | R74: 20 | S74: 10 | T74: Ejszaka | U74: 190630 | V74: 19063000
A75: Mérőlap_MSE4_A1_1906302148.xls.pdf | B75: .pdf | C75: 2019-07-22T10:11:55.210 | D75: 2019-06-30T21:49:31.411 | E75: 2019-07-22T10:11:54.691 | F75: U:\Merolapok motorsor\SPC lapok\ | H75: =MID(SPC_lapok[[#This Row],[Name]],17,10) -> 1906302148 | I75: 2019 | J75: 6 | K75: 30 | L75: 21 | M75: 48 | O75: 2019 | P75: 6 | Q75: 30 | R75: 21 | S75: 48 | T75: Ejszaka | U75: 190630 | V75: 19063000
A76: Mérőlap_MSE4_A1_1907010040.xls.pdf | B76: .pdf | C76: 2019-07-22T10:11:55.812 | D76: 2019-07-01T00:40:56.914 | E76: 2019-07-22T10:11:55.279 | F76: U:\Merolapok motorsor\SPC lapok\ | H76: =MID(SPC_lapok[[#This Row],[Name]],17,10) -> 1907010040 | I76: 2019 | J76: 7 | K76: 01 | L76: 00 | M76: 40 | O76: 2019 | P76: 7 | Q76: 1 | R76: 0 | S76: 40 | T76: Ejszaka | U76: 190701 | V76: 19070000
A77: Mérőlap_MSE4_A1_1907010231.xls.pdf | B77: .pdf | C77: 2019-07-22T10:11:56.480 | D77: 2019-07-01T02:31:49.234 | E77: 2019-07-22T10:11:56.013 | F77: U:\Merolapok motorsor\SPC lapok\ | H77: =MID(SPC_lapok[[#This Row],[Name]],17,10) -> 1907010231 | I77: 2019 | J77: 7 | K77: 01 | L77: 02 | M77: 31 | O77: 2019 | P77: 7 | Q77: 1 | R77: 2 | S77: 31 | T77: Ejszaka | U77: 190701 | V77: 19070000
A78: Mérőlap_MSE4_A1_1907010430.xls.pdf | B78: .pdf | C78: 2019-07-22T10:11:56.881 | D78: 2019-07-01T04:30:40.605 | E78: 2019-07-22T10:11:56.555 | F78: U:\Merolapok motorsor\SPC lapok\ | H78: =MID(SPC_lapok[[#This Row],[Name]],17,10) -> 1907010430 | I78: 2019 | J78: 7 | K78: 01 | L78: 04 | M78: 30 | O78: 2019 | P78: 7 | Q78: 1 | R78: 4 | S78: 30 | T78: Ejszaka | U78: 190701 | V78: 19070000
A79: Mérőlap_MSE4_A1_1907011854.xls.pdf | B79: .pdf | C79: 2019-07-22T10:11:57.270 | D79: 2019-07-01T18:55:01.511 | E79: 2019-07-22T10:11:56.983 | F79: U:\Merolapok motorsor\SPC lapok\ | H79: =MID(SPC_lapok[[#This Row],[Name]],17,10) -> 1907011854 | I79: 2019 | J79: 7 | K79: 01 | L79: 18 | M79: 54 | O79: 2019 | P79: 7 | Q79: 1 | R79: 18 | S79: 54 | T79: Ejszaka | U79: 190701 | V79: 19070100
A80: Mérőlap_MSE4_A1_1907012021.xls.pdf | B80: .pdf | C80: 2019-07-22T10:11:57.825 | D80: 2019-07-01T20:22:24.078 | E80: 2019-07-22T10:11:57.355 | F80: U:\Merolapok motorsor\SPC lapok\ | H80: =MID(SPC_lapok[[#This Row],[Name]],17,10) -> 1907012021 | I80: 2019 | J80: 7 | K80: 01 | L80: 20 | M80: 21 | O80: 2019 | P80: 7 | Q80: 1 | R80: 20 | S80: 21 | T80: Ejszaka | U80: 190701 | V80: 19070100
A81: Mérőlap_MSE4_A1_1907012240.xls.pdf | B81: .pdf | C81: 2019-07-22T10:11:58.591 | D81: 2019-07-01T22:41:02.561 | E81: 2019-07-22T10:11:57.957 | F81: U:\Merolapok motorsor\SPC lapok\ | H81: =MID(SPC_lapok[[#This Row],[Name]],17,10) -> 1907012240 | I81: 2019 | J81: 7 | K81: 01 | L81: 22 | M81: 40 | O81: 2019 | P81: 7 | Q81: 1 | R81: 22 | S81: 40 | T81: Ejszaka | U81: 190701 | V81: 19070100
A82: Mérőlap_MSE4_A1_1907020457.xls.pdf | B82: .pdf | C82: 2019-07-22T10:11:58.983 | D82: 2019-07-02T05:12:30.101 | E82: 2019-07-22T10:11:58.713 | F82: U:\Merolapok motorsor\SPC lapok\ | H82: =MID(SPC_lapok[[#This Row],[Name]],17,10) -> 1907020457 | I82: 2019 | J82: 7 | K82: 02 | L82: 04 | M82: 57 | O82: 2019 | P82: 7 | Q82: 2 | R82: 4 | S82: 57 | T82: Ejszaka | U82: 190702 | V82: 19070100
A83: Mérőlap_MSE4_A1_1907040618.xls.pdf | B83: .pdf | C83: 2019-07-22T10:11:59.422 | D83: 2019-07-04T06:19:01.772 | E83: 2019-07-22T10:11:59.063 | F83: U:\Merolapok motorsor\SPC lapok\ | H83: =MID(SPC_lapok[[#This Row],[Name]],17,10) -> 1907040618 | I83: 2019 | J83: 7 | K83: 04 | L83: 06 | M83: 18 | O83: 2019 | P83: 7 | Q83: 4 | R83: 6 | S83: 18 | T83: Nappal | U83: 190704 | V83: 1907040
A84: Mérőlap_MSE4_A1_1907040832.xls.pdf | B84: .pdf | C84: 2019-07-22T10:11:59.873 | D84: 2019-07-04T08:33:23.267 | E84: 2019-07-22T10:11:59.541 | F84: U:\Merolapok motorsor\SPC lapok\ | H84: =MID(SPC_lapok[[#This Row],[Name]],17,10) -> 1907040832 | I84: 2019 | J84: 7 | K84: 04 | L84: 08 | M84: 32 | O84: 2019 | P84: 7 | Q84: 4 | R84: 8 | S84: 32 | T84: Nappal | U84: 190704 | V84: 1907040
A85: Mérőlap_MSE4_A1_1907041025.xls.pdf | B85: .pdf | C85: 2019-07-22T10:11:06.852 | D85: 2019-07-04T10:26:31.907 | E85: 2019-07-22T10:11:06.276 | F85: U:\Merolapok motorsor\SPC lapok\ | H85: =MID(SPC_lapok[[#This Row],[Name]],17,10) -> 1907041025 | I85: 2019 | J85: 7 | K85: 04 | L85: 10 | M85: 25 | O85: 2019 | P85: 7 | Q85: 4 | R85: 10 | S85: 25 | T85: Nappal | U85: 190704 | V85: 1907040
A86: Mérőlap_MSE4_A1_1907041424.xls.pdf | B86: .pdf | C86: 2019-07-22T10:11:07.340 | D86: 2019-07-04T14:24:38.420 | E86: 2019-07-22T10:11:07.042 | F86: U:\Merolapok motorsor\SPC lapok\ | H86: =MID(SPC_lapok[[#This Row],[Name]],17,10) -> 1907041424 | I86: 2019 | J86: 7 | K86: 04 | L86: 14 | M86: 24 | O86: 2019 | P86: 7 | Q86: 4 | R86: 14 | S86: 24 | T86: Nappal | U86: 190704 | V86: 1907040
A87: Mérőlap_MSE4_A1_1907041629.xls.pdf | B87: .pdf | C87: 2019-07-22T10:11:07.624 | D87: 2019-07-04T16:30:15.226 | E87: 2019-07-22T10:11:07.396 | F87: U:\Merolapok motorsor\SPC lapok\ | H87: =MID(SPC_lapok[[#This Row],[Name]],17,10) -> 1907041629 | I87: 2019 | J87: 7 | K87: 04 | L87: 16 | M87: 29 | O87: 2019 | P87: 7 | Q87: 4 | R87: 16 | S87: 29 | T87: Nappal | U87: 190704 | V87: 1907040
A88: Mérőlap_MSE4_A1_1907050616.xls.pdf | B88: .pdf | C88: 2019-07-22T10:11:07.922 | D88: 2019-07-05T06:17:13.069 | E88: 2019-07-22T10:11:07.693 | F88: U:\Merolapok motorsor\SPC lapok\ | H88: =MID(SPC_lapok[[#This Row],[Name]],17,10) -> 1907050616 | I88: 2019 | J88: 7 | K88: 05 | L88: 06 | M88: 16 | O88: 2019 | P88: 7 | Q88: 5 | R88: 6 | S88: 16 | T88: Nappal | U88: 190705 | V88: 1907050
A89: Mérőlap_MSE4_A1_1907050848.xls.pdf | B89: .pdf | C89: 2019-07-22T10:11:08.381 | D89: 2019-07-05T08:48:39.151 | E89: 2019-07-22T10:11:07.998 | F89: U:\Merolapok motorsor\SPC lapok\ | H89: =MID(SPC_lapok[[#This Row],[Name]],17,10) -> 1907050848 | I89: 2019 | J89: 7 | K89: 05 | L89: 08 | M89: 48 | O89: 2019 | P89: 7 | Q89: 5 | R89: 8 | S89: 48 | T89: Nappal | U89: 190705 | V89: 1907050
A90: Mérőlap_MSE4_A1_1907051023.xls.pdf | B90: .pdf | C90: 2019-07-22T10:11:08.841 | D90: 2019-07-05T10:23:57.508 | E90: 2019-07-22T10:11:08.442 | F90: U:\Merolapok motorsor\SPC lapok\ | H90: =MID(SPC_lapok[[#This Row],[Name]],17,10) -> 1907051023 | I90: 2019 | J90: 7 | K90: 05 | L90: 10 | M90: 23 | O90: 2019 | P90: 7 | Q90: 5 | R90: 10 | S90: 23 | T90: Nappal | U90: 190705 | V90: 1907050
A91: Mérőlap_MSE4_A1_1907051215.xls.pdf | B91: .pdf | C91: 2019-07-22T10:11:09.333 | D91: 2019-07-05T12:16:04.364 | E91: 2019-07-22T10:11:08.992 | F91: U:\Merolapok motorsor\SPC lapok\ | H91: =MID(SPC_lapok[[#This Row],[Name]],17,10) -> 1907051215 | I91: 2019 | J91: 7 | K91: 05 | L91: 12 | M91: 15 | O91: 2019 | P91: 7 | Q91: 5 | R91: 12 | S91: 15 | T91: Nappal | U91: 190705 | V91: 1907050
A92: Mérőlap_MSE4_A1_1907051644.xls.pdf | B92: .pdf | C92: 2019-07-22T10:11:09.745 | D92: 2019-07-05T16:45:13.585 | E92: 2019-07-22T10:11:09.435 | F92: U:\Merolapok motorsor\SPC lapok\ | H92: =MID(SPC_lapok[[#This Row],[Name]],17,10) -> 1907051644 | I92: 2019 | J92: 7 | K92: 05 | L92: 16 | M92: 44 | O92: 2019 | P92: 7 | Q92: 5 | R92: 16 | S92: 44 | T92: Nappal | U92: 190705 | V92: 1907050
A93: Mérőlap_MSE4_A1_1907081821.xls.pdf | B93: .pdf | C93: 2019-07-22T10:11:10.197 | D93: 2019-07-08T18:22:26.330 | E93: 2019-07-22T10:11:09.833 | F93: U:\Merolapok motorsor\SPC lapok\ | H93: =MID(SPC_lapok[[#This Row],[Name]],17,10) -> 1907081821 | I93: 2019 | J93: 7 | K93: 08 | L93: 18 | M93: 21 | O93: 2019 | P93: 7 | Q93: 8 | R93: 18 | S93: 21 | T93: Ejszaka | U93: 190708 | V93: 19070800
A94: Mérőlap_MSE4_A1_1907082051.xls.pdf | B94: .pdf | C94: 2019-07-22T10:11:10.784 | D94: 2019-07-08T20:52:15.184 | E94: 2019-07-22T10:11:10.304 | F94: U:\Merolapok motorsor\SPC lapok\ | H94: =MID(SPC_lapok[[#This Row],[Name]],17,10) -> 1907082051 | I94: 2019 | J94: 7 | K94: 08 | L94: 20 | M94: 51 | O94: 2019 | P94: 7 | Q94: 8 | R94: 20 | S94: 51 | T94: Ejszaka | U94: 190708 | V94: 19070800
A95: Mérőlap_MSE4_A1_1907082242.xls.pdf | B95: .pdf | C95: 2019-07-22T10:11:11.213 | D95: 2019-07-08T22:43:23.469 | E95: 2019-07-22T10:11:10.909 | F95: U:\Merolapok motorsor\SPC lapok\ | H95: =MID(SPC_lapok[[#This Row],[Name]],17,10) -> 1907082242 | I95: 2019 | J95: 7 | K95: 08 | L95: 22 | M95: 42 | O95: 2019 | P95: 7 | Q95: 8 | R95: 22 | S95: 42 | T95: Ejszaka | U95: 190708 | V95: 19070800
A96: Mérőlap_MSE4_A1_1907090229.xls.pdf | B96: .pdf | C96: 2019-07-22T10:11:11.617 | D96: 2019-07-09T02:30:13.167 | E96: 2019-07-22T10:11:11.270 | F96: U:\Merolapok motorsor\SPC lapok\ | H96: =MID(SPC_lapok[[#This Row],[Name]],17,10) -> 1907090229 | I96: 2019 | J96: 7 | K96: 09 | L96: 02 | M96: 29 | O96: 2019 | P96: 7 | Q96: 9 | R96: 2 | S96: 29 | T96: Ejszaka | U96: 190709 | V96: 19070800
A97: Mérőlap_MSE4_A1_1907090422.xls.pdf | B97: .pdf | C97: 2019-07-22T10:11:12.213 | D97: 2019-07-09T04:22:40.511 | E97: 2019-07-22T10:11:11.774 | F97: U:\Merolapok motorsor\SPC lapok\ | H97: =MID(SPC_lapok[[#This Row],[Name]],17,10) -> 1907090422 | I97: 2019 | J97: 7 | K97: 09 | L97: 04 | M97: 22 | O97: 2019 | P97: 7 | Q97: 9 | R97: 4 | S97: 22 | T97: Ejszaka | U97: 190709 | V97: 19070800
A98: Mérőlap_MSE4_A1_1907120723.xls.pdf | B98: .pdf | C98: 2019-07-22T10:11:12.836 | D98: 2019-07-12T07:28:45.954 | E98: 2019-07-22T10:11:12.359 | F98: U:\Merolapok motorsor\SPC lapok\ | H98: =MID(SPC_lapok[[#This Row],[Name]],17,10) -> 1907120723 | I98: 2019 | J98: 7 | K98: =MID(H98,5,2) -> 12 | L98: 07 | M98: 23 | O98: 2019 | P98: 7 | Q98: 12 | R98: 7 | S98: 23 | T98: Nappal | U98: 190712 | V98: 1907120
A99: Mérőlap_MSE4_A1_1907121236.xls.pdf | B99: .pdf | C99: 2019-07-22T10:11:13.298 | D99: 2019-07-12T12:37:25.046 | E99: 2019-07-22T10:11:13.032 | F99: U:\Merolapok motorsor\SPC lapok\ | H99: =MID(SPC_lapok[[#This Row],[Name]],17,10) -> 1907121236 | I99: 2019 | J99: 7 | K99: 12 | L99: 12 | M99: 36 | O99: 2019 | P99: 7 | Q99: 12 | R99: 12 | S99: 36 | T99: Nappal | U99: 190712 | V99: 1907120
A100: Mérőlap_MSE4_A1_1907121525.xls.pdf | B100: .pdf | C100: 2019-07-22T10:11:14.069 | D100: 2019-07-12T15:26:51.030 | E100: 2019-07-22T10:11:13.608 | F100: U:\Merolapok motorsor\SPC lapok\ | H100: =MID(SPC_lapok[[#This Row],[Name]],17,10) -> 1907121525 | I100: 2019 | J100: 7 | K100: 12 | L100: 15 | M100: 25 | O100: 2019 | P100: 7 | Q100: 12 | R100: 15 | S100: 25 | T100: Nappal | U100: 190712 | V100: 1907120
A101: Mérőlap_MSE4_A1_1907130618.xls.pdf | B101: .pdf | C101: 2019-07-22T10:11:14.724 | D101: 2019-07-13T06:18:53.896 | E101: 2019-07-22T10:11:14.249 | F101: U:\Merolapok motorsor\SPC lapok\ | H101: =MID(SPC_lapok[[#This Row],[Name]],17,10) -> 1907130618 | I101: 2019 | J101: 7 | K101: 13 | L101: 06 | M101: 18 | O101: 2019 | P101: 7 | Q101: 13 | R101: 6 | S101: 18 | T101: Nappal | U101: 190713 | V101: 1907130
A102: Mérőlap_MSE4_A1_1907130812.xls.pdf | B102: .pdf | C102: 2019-07-22T10:11:15.304 | D102: 2019-07-13T08:13:33.055 | E102: 2019-07-22T10:11:14.817 | F102: U:\Merolapok motorsor\SPC lapok\ | H102: =MID(SPC_lapok[[#This Row],[Name]],17,10) -> 1907130812 | I102: 2019 | J102: 7 | K102: 13 | L102: 08 | M102: 12 | O102: 2019 | P102: 7 | Q102: 13 | R102: 8 | S102: 12 | T102: Nappal | U102: 190713 | V102: 1907130
A103: Mérőlap_MSE4_A1_1907131313.xls.pdf | B103: .pdf | C103: 2019-07-22T10:11:15.894 | D103: 2019-07-13T13:14:22.603 | E103: 2019-07-22T10:11:15.366 | F103: U:\Merolapok motorsor\SPC lapok\ | H103: =MID(SPC_lapok[[#This Row],[Name]],17,10) -> 1907131313 | I103: 2019 | J103: 7 | K103: 13 | L103: 13 | M103: 13 | O103: 2019 | P103: 7 | Q103: 13 | R103: 13 | S103: 13 | T103: Nappal | U103: 190713 | V103: 1907130
A104: Mérőlap_MSE4_A1_1907131603.xls.pdf | B104: .pdf | C104: 2019-07-22T10:11:16.379 | D104: 2019-07-13T16:03:59.654 | E104: 2019-07-22T10:11:16.004 | F104: U:\Merolapok motorsor\SPC lapok\ | H104: =MID(SPC_lapok[[#This Row],[Name]],17,10) -> 1907131603 | I104: 2019 | J104: 7 | K104: 13 | L104: 16 | M104: 03 | O104: 2019 | P104: 7 | Q104: 13 | R104: 16 | S104: 3 | T104: Nappal | U104: 190713 | V104: 1907130
